Service Delivery Area(T),Service Delivery Team(T),CostC,ExpenditureGroup(T),Account(T),Supplier Name(T),Trans Date,Amount
Adult Social Services,Access & Enablement,HMAA,Employees,Staff Training,Clinical Audit Support CentreLtd,12/11/2014,150.00
Adult Social Services,Access & Enablement,HMAA,Employees,Staff Training,Drugs training.com Ltd,26/11/2014,115
Adult Social Services,Access & Enablement,HMAA,Supplies & Services,Service Contracts,SRCL LTD,26/11/2014,760.57
Adult Social Services,Access & Enablement,HMAX,Supplies & Services,Financial Services,DUN & BRADSTREET LIMITED,20/11/2014,101.99
Adult Social Services,Access & Enablement,HOAC,Supplies & Services,Purchased Meals,ACCORD HOUSING ASSOCIATION LIMITED,11/11/2014,233.22
Adult Social Services,Access & Enablement,HOAC,Supplies & Services,Purchased Meals,ACCORD HOUSING ASSOCIATION LIMITED,11/11/2014,182.39
Adult Social Services,Access & Enablement,HOAC,Supplies & Services,Purchased Meals,APETITO LTD,11/11/2014,569.70
Adult Social Services,Access & Enablement,HOAC,Supplies & Services,Purchased Meals,ROYAL VOLUNTARY SERVICES,11/11/2014,259.56
Adult Social Services,Access & Enablement,HOAG,Supplies & Services,Aids & Appliances,SW RETAIL LTD T/A IC,04/11/2014,115.00
Adult Social Services,Access & Enablement,HOAG,Supplies & Services,Translation Services,VISS LTD,19/11/2014,125.00
Adult Social Services,Access & Enablement,HOAG,Third Party Payments,Interpreters Fees,VISS LTD,03/11/2014,125.00
Adult Social Services,Access & Enablement,HOAP,Supplies & Services,Adaptations,TRAVIS PERKINS TRADING CO LIMITED,28/11/2014,108.53
Adult Social Services,Access & Enablement,HOAP,Supplies & Services,Adaptations,TRAVIS PERKINS TRADING CO LIMITED,05/11/2014,164.22
Adult Social Services,Access & Enablement,HOAP,Supplies & Services,Adaptations,TRAVIS PERKINS TRADING CO LIMITED,12/11/2014,864
Adult Social Services,Access & Enablement,HOAP,Supplies & Services,Aids & Appliances,AA Moving Solutions Ltd,11/11/2014,534.45
Adult Social Services,Access & Enablement,HOAP,Supplies & Services,Aids & Appliances,AIDSERVICE LTD,12/11/2014,149
Adult Social Services,Access & Enablement,HOAP,Supplies & Services,Aids & Appliances,AV10 Limited,07/11/2014,366.6
Adult Social Services,Access & Enablement,HOAP,Supplies & Services,Aids & Appliances,Easylink,10/11/2014,124.25
Adult Social Services,Access & Enablement,HOAP,Supplies & Services,Aids & Appliances,Easylink,10/11/2014,205
Adult Social Services,Access & Enablement,HOAP,Supplies & Services,Aids & Appliances,MOUNTWAY LTD,04/11/2014,895.00
Adult Social Services,Access & Enablement,HOAP,Supplies & Services,Aids & Appliances,POWERGUARDS INC RAMPING SYSTEMS,05/11/2014,380
Adult Social Services,Access & Enablement,HOAP,Supplies & Services,Aids & Appliances,POWERGUARDS INC RAMPING SYSTEMS,05/11/2014,592.8
Adult Social Services,Access & Enablement,HOAP,Supplies & Services,Aids & Appliances,RNIB SERVICES LIMITED,05/11/2014,227.7
Adult Social Services,Access & Enablement,HOAP,Supplies & Services,Aids & Appliances,SIMPLYMED LTD,12/11/2014,532.8
Adult Social Services,Access & Enablement,HOAP,Supplies & Services,Aids & Appliances,THE WREKIN HOUSING TRUST (INVOICES ONLY),19/11/2014,125.00
Adult Social Services,Access & Enablement,HOAP,Supplies & Services,Aids & Appliances,THE WREKIN HOUSING TRUST (INVOICES ONLY),19/11/2014,125.00
Adult Social Services,Access & Enablement,HOAP,Supplies & Services,Aids & Appliances,THE WREKIN HOUSING TRUST (INVOICES ONLY),10/11/2014,169
Adult Social Services,Access & Enablement,HOAP,Supplies & Services,Aids & Appliances,THE WREKIN HOUSING TRUST (INVOICES ONLY),10/11/2014,125
Adult Social Services,Access & Enablement,HOAP,Supplies & Services,Aids & Appliances,THE WREKIN HOUSING TRUST (INVOICES ONLY),10/11/2014,169
Adult Social Services,Access & Enablement,HOAP,Supplies & Services,Aids & Appliances,THE WREKIN HOUSING TRUST (INVOICES ONLY),10/11/2014,125
Adult Social Services,Access & Enablement,HOAP,Supplies & Services,Aids & Appliances,THE WREKIN HOUSING TRUST (INVOICES ONLY),11/11/2014,-100.68
Adult Social Services,Access & Enablement,HOAP,Supplies & Services,Equipment - Repair,HANDICARE ACCESSIBILITY LIMITED,25/11/2014,"4,923.61"
Adult Social Services,Access & Enablement,HOAP,Supplies & Services,Equipment - Repair,HANDICARE ACCESSIBILITY LIMITED,25/11/2014,553.36
Adult Social Services,Access & Enablement,HOAP,Supplies & Services,Equipment - Repair,TOTAL HYGIENE LIMITED,14/11/2014,195
Adult Social Services,Access & Enablement,HOAP,Supplies & Services,Equipment - Repair,WESSEX LIFT CO. LTD,03/11/2014,-165.00
Adult Social Services,Access & Enablement,HOAP,Supplies & Services,Equipment - Repair,WESSEX LIFT CO. LTD,03/11/2014,165.00
Adult Social Services,Access & Enablement,HOAP,Supplies & Services,Equipment - Repair,WESSEX LIFT CO. LTD,06/11/2014,129.5
Adult Social Services,Access & Enablement,HOAW,Supplies & Services,Equipment - Purchase,Boots The Chemist,06/11/2014,120
Adult Social Services,Access & Enablement,HOAW,Supplies & Services,Equipment - Purchase,Boots The Chemist,21/11/2014,120
Adult Social Services,Access & Enablement,HOBB,Supplies & Services,Equipment - Purchase,WEST MERCIA SUPPLIES Catalogue Supplies (None Utility),06/11/2014,140
Adult Social Services,Access & Enablement,HOBB,Third Party Payments,Homecare Expenditure,THE WREKIN HOUSING TRUST (INVOICES ONLY),21/11/2014,119.48
Adult Social Services,Access & Enablement,HOBS,Supplies & Services,Aids & Appliances,SHROPSHIRE COMMUNITY HEALTH NHS TRUST,20/11/2014,6301.66
Adult Social Services,Adult Social Care Commissioning,HCAJ,Supplies & Services,Other Grants (Expenses),PARKWOOD HEALTHCARE LTD,05/11/2014,40162.5
Adult Social Services,Adult Social Care Commissioning,HOBR,Third Party Payments,Homecare Expenditure,SUPREME HOME CARE,05/11/2014,7159.04
Adult Social Services,Adult Social Care Commissioning,HOBZ,Third Party Payments,Homecare Expenditure,CREATIVE SUPPORT LTD,05/11/2014,1092
Adult Social Services,Assessment & Case Management,HLAB,Premises-Related Expenditure,General Rents,HOME GROUP LTD (10669598),03/11/2014,1549
Adult Social Services,Assessment & Case Management,HLAB,Premises-Related Expenditure,General Rents,WREKIN HOUSING TRUST (CARE SUPPORT PYMTS ONLY),03/11/2014,13245.66
Adult Social Services,Assessment & Case Management,HLAF,Third Party Payments,Homecare Expenditure,CREATIVE SUPPORT LTD,03/11/2014,742.03
Adult Social Services,Assessment & Case Management,HLCK,Third Party Payments,Residential Expenditure,CHOICES HOUSING ASSOCIATION,05/11/2014,28532.25
Adult Social Services,Assessment & Case Management,HLCL,Third Party Payments,Residential Expenditure,BOURNVILLE VILLAGE TRUST,17/11/2014,68380.23
Adult Social Services,Assessment & Case Management,HOBJ,Supplies & Services,Telephones,SHREWSBURY & TELFORD CASH REGISTER CO,13/11/2014,150.25
Adult Social Services,Assessment & Case Management,HOBN,Third Party Payments,Homecare Expenditure,Direct Health Homecare Limited,13/11/2014,1471.28
Adult Social Services,Assessment & Case Management,HOBN,Third Party Payments,Homecare Expenditure,Direct Health Homecare Limited,13/11/2014,1296.5
Adult Social Services,Assessment & Case Management,HOBN,Third Party Payments,Homecare Expenditure,Direct Health Homecare Limited,13/11/2014,1209.97
Adult Social Services,Assessment & Case Management,HOBN,Third Party Payments,Homecare Expenditure,Direct Health Homecare Limited,13/11/2014,-108.45
Adult Social Services,Assessment & Case Management,HOBN,Third Party Payments,Homecare Expenditure,Direct Health Homecare Limited,13/11/2014,778.14
Adult Social Services,Assessment & Case Management,HOBN,Third Party Payments,Homecare Expenditure,Direct Health Homecare Limited,13/11/2014,"1,474.38"
Adult Social Services,Assessment & Case Management,HOBN,Third Party Payments,Homecare Expenditure,Direct Health Homecare Limited,21/11/2014,"1,298.00"
Adult Social Services,Assessment & Case Management,HOBY,Third Party Payments,Residential Expenditure,ACCORD HOUSING ASSOCIATION LIMITED,26/11/2014,15214.36
Adult Social Services,Assessment & Case Management,HPAB,Supplies & Services,Telecomms,BT GLOBAL SERVICES,05/11/2014,369.82
Adult Social Services,Care & Support,HCTR,Supplies & Services,Advertising,PARTNERSHIP PUBLISHING LTD,17/11/2014,290
Adult Social Services,Care & Support,HHAC,Employees,Training Exp's (Facilitators),NDI CONSULTING LTD,20/11/2014,6000
Adult Social Services,Care & Support,HHAC,Supplies & Services,Consultants Fees,CAPITA BUSINESS SERVICES LTD 60864978,05/11/2014,1150
Adult Social Services,Personalisation Support & Service Provision,HMAC,Premises-Related Expenditure,Hire Of Rooms,MEADCROFT COMFORTS FUND,21/11/2014,130.00
Adult Social Services,Personalisation Support & Service Provision,HMAC,Premises-Related Expenditure,Hire Of Rooms,MEADCROFT COMFORTS FUND,21/11/2014,130.00
Care & Support,Assessment & Case Management,HPAB,Supplies & Services,Computer Software (Maint),CM 2000 CARE MONITORING,19/11/2014, 677.51 
Children's Safeguarding & Specialist Services,Child Protection & Assessment,JCAK,Supplies & Services,Other Services,Beacon C&C,16/11/2014,9137
Children's Safeguarding & Specialist Services,Child Protection & Assessment,JHAB,Employees,Agency Supply Costs,Hamptons Resourcing,28/11/2014,3000
Children's Safeguarding & Specialist Services,Child Protection & Assessment,JHAB,Employees,Agency Supply Costs,Hamptons Resourcing,28/11/2014,3000
Children's Safeguarding & Specialist Services,Child Protection & Assessment,JHAB,Employees,Agency Supply Costs,Hamptons Resourcing,28/11/2014,3000
Children's Safeguarding & Specialist Services,Child Protection & Assessment,JHAB,Employees,Agency Supply Costs,Hamptons Resourcing,11/11/2014,5429.65
Children's Safeguarding & Specialist Services,Child Protection & Assessment,JHAB,Employees,Other Employee Costs,THOMPSONS SOLICITORS,07/11/2014,300
Children's Safeguarding & Specialist Services,Child Protection & Assessment,JHAK,Supplies & Services,Other Services,Adoption Matters Northwest,11/11/2014,1194.42
Children's Safeguarding & Specialist Services,Child Protection & Assessment,JMAB,Supplies & Services,Advertising,THE MIDLAND NEWS ASSOCIATION LTD,05/11/2014,624.37
Children's Safeguarding & Specialist Services,Child Protection & Assessment,JMAB,Supplies & Services,Legal Expenses,CARTER BROWN LIMITED,05/11/2014,303.75
Children's Safeguarding & Specialist Services,Child Protection & Assessment,JMAD,Third Party Payments,Childminders,SMILEY FACES DAY NURSERIES LTD,10/11/2014,660
Children's Safeguarding & Specialist Services,Child Protection & Assessment,JMAE,Supplies & Services,Other Services,INDEPENDENT LIVING PARTNERSHIP LTD,26/11/2014,134.85
Children's Safeguarding & Specialist Services,Child Protection & Assessment,JMAE,Supplies & Services,Other Services,INDEPENDENT LIVING PARTNERSHIP LTD,13/11/2014,164.85
Children's Safeguarding & Specialist Services,Child Protection & Assessment,JMAE,Supplies & Services,Other Services,Integrate Families Ltd,18/11/2014,405
Children's Safeguarding & Specialist Services,Child Protection & Assessment,JMAE,Supplies & Services,Other Services,Integrate Families Ltd,18/11/2014,270
Children's Safeguarding & Specialist Services,Child Protection & Assessment,JMAE,Supplies & Services,Other Services,LUCY FAITHFULL FOUNDATION,26/11/2014,1049.48
Children's Safeguarding & Specialist Services,Child Protection & Assessment,JMAE,Supplies & Services,Other Services,NEWSTART NETWORKS CIC,26/11/2014,1000
Children's Safeguarding & Specialist Services,Child Protection & Assessment,JMAE,Supplies & Services,Other Services,NEWSTART NETWORKS CIC,17/11/2014,999.96
Children's Safeguarding & Specialist Services,Child Protection & Assessment,JMAE,Supplies & Services,Other Services,NEWSTART NETWORKS CIC,17/11/2014,350
Children's Safeguarding & Specialist Services,Child Protection & Assessment,JMAE,Supplies & Services,Other Services,NEWSTART NETWORKS CIC,17/11/2014,600
Children's Safeguarding & Specialist Services,Child Protection & Assessment,JMAE,Supplies & Services,Other Services,Psyben Limited,26/11/2014,2309.2
Children's Safeguarding & Specialist Services,Child Protection & Assessment,JMAE,Supplies & Services,Other Services,Psyben Limited,26/11/2014,2074
Children's Safeguarding & Specialist Services,Child Protection & Assessment,JMAE,Supplies & Services,Other Services,The National Teaching & Advisory Service,13/11/2014,1756
Children's Safeguarding & Specialist Services,Child Protection & Assessment,JMAE,Supplies & Services,Other Services,WILCOX PSYCHOLOGICAL ASSOCIATES LTD,13/11/2014,3970.6
Children's Safeguarding & Specialist Services,Child Protection & Assessment,JMAL,Supplies & Services,CL - External Accommodation,Madeley Lettings,10/11/2014,175
Children's Safeguarding & Specialist Services,Child Protection & Assessment,JMAL,Supplies & Services,CL - External Accommodation,Madeley Lettings,10/11/2014,800
Children's Safeguarding & Specialist Services,Child Protection & Assessment,JMAL,Supplies & Services,Section 17 Childrens Act,NESTOR PRIMECARE SERVICES LTD T/A ALLIED HEALTHCARE,13/11/2014,325.59
Children's Safeguarding & Specialist Services,Child Protection & Assessment,JMAL,Supplies & Services,Section 17 Childrens Act,NESTOR PRIMECARE SERVICES LTD T/A ALLIED HEALTHCARE,26/11/2014,279.1
Children's Safeguarding & Specialist Services,Child Protection & Assessment,JMAL,Supplies & Services,Section 17 Childrens Act,NESTOR PRIMECARE SERVICES LTD T/A ALLIED HEALTHCARE,26/11/2014,466.68
Children's Safeguarding & Specialist Services,Child Protection & Assessment,JMAL,Supplies & Services,Section 17 Childrens Act,NESTOR PRIMECARE SERVICES LTD T/A ALLIED HEALTHCARE,10/11/2014,291.15
Children's Safeguarding & Specialist Services,Child Protection & Assessment,JMAL,Third Party Payments,Childminders,LITTLE DRAGONS PRE-SCHOOL,10/11/2014,295.7
Children's Safeguarding & Specialist Services,Child Protection & Assessment,JSAB,Third Party Payments,Childminders,Busy Bees Shrewsbury,14/11/2014,706.34
Children's Safeguarding & Specialist Services,Child Protection & Assessment,JSAB,Transport-Related Expenditure,Contract Hire,CENTRAL TAXIS LTD SHREWSBURY,05/11/2014,158
Children's Safeguarding & Specialist Services,Children in Care & Fostering,JCAB,Supplies & Services,CL - Basic Allowance,Carefirst Services Limited,10/11/2014,253.89
Children's Safeguarding & Specialist Services,Children in Care & Fostering,JCAB,Supplies & Services,CL - Basic Allowance,Carefirst Services Limited,20/11/2014,229.4
Children's Safeguarding & Specialist Services,Children in Care & Fostering,JCAB,Supplies & Services,CL - Basic Allowance,Carefirst Services Limited,20/11/2014,286.75
Children's Safeguarding & Specialist Services,Children in Care & Fostering,JCAB,Supplies & Services,CL - Basic Allowance,IMPACTING LIVES LIMITED,04/11/2014,229.4
Children's Safeguarding & Specialist Services,Children in Care & Fostering,JCAB,Supplies & Services,CL - Basic Allowance,IMPACTING LIVES LIMITED,20/11/2014,229.4
Children's Safeguarding & Specialist Services,Children in Care & Fostering,JCAB,Supplies & Services,CL - Basic Allowance,LEAVING CARE COMPANY,05/11/2014,245.79
Children's Safeguarding & Specialist Services,Children in Care & Fostering,JCAB,Supplies & Services,CL - Basic Allowance,LEAVING CARE COMPANY,20/11/2014,-122.89
Children's Safeguarding & Specialist Services,Children in Care & Fostering,JCAB,Supplies & Services,CL - Basic Allowance,SAAIL,25/11/2014,573.5
Children's Safeguarding & Specialist Services,Children in Care & Fostering,JCAB,Supplies & Services,Consultants Fees,TELFORD & WREKIN CVS,25/11/2014,1096.58
Children's Safeguarding & Specialist Services,Children in Care & Fostering,JCAB,Supplies & Services,Staying put Payments,SAAIL,27/11/2014,734.08
Children's Safeguarding & Specialist Services,Children in Care & Fostering,JCAB,Supplies & Services,Supportive Lodgings,ABC CARE LTD,05/11/2014,3928.57
Children's Safeguarding & Specialist Services,Children in Care & Fostering,JCAB,Supplies & Services,Supportive Lodgings,ABC CARE LTD,05/11/2014,5428.57
Children's Safeguarding & Specialist Services,Children in Care & Fostering,JCAB,Supplies & Services,Supportive Lodgings,Carefirst Services Limited,10/11/2014,1483.66
Children's Safeguarding & Specialist Services,Children in Care & Fostering,JCAB,Supplies & Services,Supportive Lodgings,Carefirst Services Limited,20/11/2014,574.32
Children's Safeguarding & Specialist Services,Children in Care & Fostering,JCAB,Supplies & Services,Supportive Lodgings,Carefirst Services Limited,20/11/2014,458.6
Children's Safeguarding & Specialist Services,Children in Care & Fostering,JCAB,Supplies & Services,Supportive Lodgings,Carefirst Services Limited,20/11/2014,1435.8
Children's Safeguarding & Specialist Services,Children in Care & Fostering,JCAB,Supplies & Services,Supportive Lodgings,Carefirst Services Limited,20/11/2014,675
Children's Safeguarding & Specialist Services,Children in Care & Fostering,JCAB,Supplies & Services,Supportive Lodgings,Carefirst Services Limited,20/11/2014,697
Children's Safeguarding & Specialist Services,Children in Care & Fostering,JCAB,Supplies & Services,Supportive Lodgings,Carefirst Services Limited,20/11/2014,1435.8
Children's Safeguarding & Specialist Services,Children in Care & Fostering,JCAB,Supplies & Services,Supportive Lodgings,Carefirst Services Limited,20/11/2014,1483.6
Children's Safeguarding & Specialist Services,Children in Care & Fostering,JCAB,Supplies & Services,Supportive Lodgings,Carefirst Services Limited,12/11/2014,1483.66
Children's Safeguarding & Specialist Services,Children in Care & Fostering,JCAB,Supplies & Services,Supportive Lodgings,IMPACTING LIVES LIMITED,17/11/2014,2799.96
Children's Safeguarding & Specialist Services,Children in Care & Fostering,JCAB,Supplies & Services,Supportive Lodgings,JORDAN XAVIER,05/11/2014,10097.14
Children's Safeguarding & Specialist Services,Children in Care & Fostering,JCAB,Supplies & Services,Supportive Lodgings,LEAVING CARE COMPANY,27/11/2014,1328.57
Children's Safeguarding & Specialist Services,Children in Care & Fostering,JCAB,Supplies & Services,Supportive Lodgings,LEAVING CARE COMPANY,05/11/2014,1071.43
Children's Safeguarding & Specialist Services,Children in Care & Fostering,JCAB,Supplies & Services,Supportive Lodgings,LEAVING CARE COMPANY,05/11/2014,1500
Children's Safeguarding & Specialist Services,Children in Care & Fostering,JCAB,Supplies & Services,Supportive Lodgings,LEAVING CARE COMPANY,05/11/2014,928.57
Children's Safeguarding & Specialist Services,Children in Care & Fostering,JCAB,Supplies & Services,Supportive Lodgings,LEAVING CARE COMPANY,05/11/2014,771.43
Children's Safeguarding & Specialist Services,Children in Care & Fostering,JCAB,Supplies & Services,Supportive Lodgings,LEAVING CARE COMPANY,05/11/2014,557.14
Children's Safeguarding & Specialist Services,Children in Care & Fostering,JCAB,Supplies & Services,Supportive Lodgings,LEAVING CARE COMPANY,05/11/2014,1328.57
Children's Safeguarding & Specialist Services,Children in Care & Fostering,JCAB,Supplies & Services,Supportive Lodgings,LEAVING CARE COMPANY,20/11/2014,-750
Children's Safeguarding & Specialist Services,Children in Care & Fostering,JCAB,Supplies & Services,Supportive Lodgings,LEAVING CARE COMPANY,20/11/2014,-664.29
Children's Safeguarding & Specialist Services,Children in Care & Fostering,JCAB,Supplies & Services,Supportive Lodgings,NEXT STEP CARE MANAGEMENT LTD,25/11/2014,1594.39
Children's Safeguarding & Specialist Services,Children in Care & Fostering,JCAB,Supplies & Services,Supportive Lodgings,NEXT STEP CARE MANAGEMENT LTD,18/11/2014,1328.66
Children's Safeguarding & Specialist Services,Children in Care & Fostering,JCAB,Supplies & Services,Supportive Lodgings,Redacted Personal Information,28/11/2014,200
Children's Safeguarding & Specialist Services,Children in Care & Fostering,JCAB,Supplies & Services,Supportive Lodgings,Redacted Personal Information,21/11/2014,1742.77
Children's Safeguarding & Specialist Services,Children in Care & Fostering,JCAB,Supplies & Services,Supportive Lodgings,SAAIL,24/11/2014,214.29
Children's Safeguarding & Specialist Services,Children in Care & Fostering,JCAB,Supplies & Services,Supportive Lodgings,Salop Lets,04/11/2014,1400
Children's Safeguarding & Specialist Services,Children in Care & Fostering,JCAB,Supplies & Services,Supportive Lodgings,STAY TELFORD XC SUPPORTED HOUSE,03/11/2014,731.92
Children's Safeguarding & Specialist Services,Children in Care & Fostering,JCAB,Supplies & Services,Supportive Lodgings,STAY TELFORD XC SUPPORTED HOUSE,05/11/2014,240.8
Children's Safeguarding & Specialist Services,Children in Care & Fostering,JCAB,Supplies & Services,Supportive Lodgings,STAY TELFORD XC SUPPORTED HOUSE,05/11/2014,647.28
Children's Safeguarding & Specialist Services,Children in Care & Fostering,JCAB,Supplies & Services,Supportive Lodgings,STAY TELFORD XC SUPPORTED HOUSE,05/11/2014,301
Children's Safeguarding & Specialist Services,Children in Care & Fostering,JCAB,Supplies & Services,Supportive Lodgings,STAY TELFORD XC SUPPORTED HOUSE,05/11/2014,888.08
Children's Safeguarding & Specialist Services,Children in Care & Fostering,JCAB,Supplies & Services,Supportive Lodgings,STAY TELFORD XC SUPPORTED HOUSE,20/11/2014,406.56
Children's Safeguarding & Specialist Services,Children in Care & Fostering,JCAB,Supplies & Services,Supportive Lodgings,STAY TELFORD XC SUPPORTED HOUSE,20/11/2014,431.84
Children's Safeguarding & Specialist Services,Children in Care & Fostering,JCAB,Supplies & Services,Supportive Lodgings,STAY TELFORD XC SUPPORTED HOUSE,20/11/2014,524.17
Children's Safeguarding & Specialist Services,Children in Care & Fostering,JCAB,Supplies & Services,Supportive Lodgings,STAY TELFORD XC SUPPORTED HOUSE,20/11/2014,1292.28
Children's Safeguarding & Specialist Services,Children in Care & Fostering,JCAB,Supplies & Services,Supportive Lodgings,STAY TELFORD XC SUPPORTED HOUSE,20/11/2014,818.33
Children's Safeguarding & Specialist Services,Children in Care & Fostering,JCAB,Transfer Payments,Leaving Care Grant,Sofa Land,25/11/2014,750
Children's Safeguarding & Specialist Services,Children in Care & Fostering,JMAF,Employees,Childcare Provision,Crackerjacks Day Nursery,06/11/2014,140
Children's Safeguarding & Specialist Services,Children in Care & Fostering,JMAF,Employees,Childcare Provision,Crackerjacks Day Nursery,20/11/2014,140
Children's Safeguarding & Specialist Services,Children in Care & Fostering,JMAF,Employees,Childcare Provision,Crackerjacks Day Nursery,10/11/2014,140
Children's Safeguarding & Specialist Services,Children in Care & Fostering,JMAF,Employees,Childcare Provision,Crackerjacks Day Nursery,10/11/2014,140
Children's Safeguarding & Specialist Services,Children in Care & Fostering,JMAF,Third Party Payments,Childminders,Crackerjacks Day Nursery,25/11/2014,140
Children's Safeguarding & Specialist Services,Children in Care & Fostering,JMAF,Third Party Payments,Childminders,Crackerjacks Day Nursery,25/11/2014,140
Children's Safeguarding & Specialist Services,Children in Care & Fostering,JMAF,Third Party Payments,Childminders,Crackerjacks Day Nursery,25/11/2014,140
Children's Safeguarding & Specialist Services,Children in Care & Fostering,JMAF,Third Party Payments,Childminders,SMILEY FACES DAY NURSERIES LTD,10/11/2014,432
Children's Safeguarding & Specialist Services,Children in Care & Fostering,JMAF,Third Party Payments,Foster Care Fees,Crackerjacks Day Nursery,25/11/2014,140
Children's Safeguarding & Specialist Services,Children in Care & Fostering,JMAF,Transport-Related Expenditure,Transport,EXPOTEL HOTEL RESERVATIONS LIMITED,20/11/2014,129.5
Children's Safeguarding & Specialist Services,Children in Care & Fostering,JPAD,Third Party Payments,External Foster Care Payments,ACTION FOR CHILDREN LIMITED,21/11/2014,3402.9
Children's Safeguarding & Specialist Services,Children in Care & Fostering,JPAD,Third Party Payments,External Foster Care Payments,ACTION FOR CHILDREN LIMITED,21/11/2014,3402.9
Children's Safeguarding & Specialist Services,Children in Care & Fostering,JPAD,Third Party Payments,External Foster Care Payments,By The Bridge,24/11/2014,4585.71
Children's Safeguarding & Specialist Services,Children in Care & Fostering,JPAD,Third Party Payments,External Foster Care Payments,CAMBIAN GROUP T/A THE ADVANCED CHILDCARE GROUP,18/11/2014,3361.64
Children's Safeguarding & Specialist Services,Children in Care & Fostering,JPAD,Third Party Payments,External Foster Care Payments,Childcare Bureau,21/11/2014,3997.5
Children's Safeguarding & Specialist Services,Children in Care & Fostering,JPAD,Third Party Payments,External Foster Care Payments,Childcare Bureau,24/11/2014,4081.5
Children's Safeguarding & Specialist Services,Children in Care & Fostering,JPAD,Third Party Payments,External Foster Care Payments,Childcare Bureau,17/11/2014,4047.98
Children's Safeguarding & Specialist Services,Children in Care & Fostering,JPAD,Third Party Payments,External Foster Care Payments,Childcare Bureau,17/11/2014,4081.5
Children's Safeguarding & Specialist Services,Children in Care & Fostering,JPAD,Third Party Payments,External Foster Care Payments,CLIFFORD HOUSE FOSTERING LTD,13/11/2014,3309.64
Children's Safeguarding & Specialist Services,Children in Care & Fostering,JPAD,Third Party Payments,External Foster Care Payments,CLIFFORD HOUSE FOSTERING LTD,13/11/2014,3412
Children's Safeguarding & Specialist Services,Children in Care & Fostering,JPAD,Third Party Payments,External Foster Care Payments,FAMILIES@FAMILYCARE,24/11/2014,2527.2
Children's Safeguarding & Specialist Services,Children in Care & Fostering,JPAD,Third Party Payments,External Foster Care Payments,FAMILIES@FAMILYCARE,21/11/2014,4435.5
Children's Safeguarding & Specialist Services,Children in Care & Fostering,JPAD,Third Party Payments,External Foster Care Payments,FAMILIES@FAMILYCARE,24/11/2014,3888
Children's Safeguarding & Specialist Services,Children in Care & Fostering,JPAD,Third Party Payments,External Foster Care Payments,FOSTER CARE ASSOCIATES LTD,13/11/2014,-5323.94
Children's Safeguarding & Specialist Services,Children in Care & Fostering,JPAD,Third Party Payments,External Foster Care Payments,FOSTER CARE ASSOCIATES LTD,13/11/2014,-1889.14
Children's Safeguarding & Specialist Services,Children in Care & Fostering,JPAD,Third Party Payments,External Foster Care Payments,FOSTER CARE ASSOCIATES LTD,13/11/2014,-5323.94
Children's Safeguarding & Specialist Services,Children in Care & Fostering,JPAD,Third Party Payments,External Foster Care Payments,FOSTER CARE ASSOCIATES LTD,18/11/2014,5323.94
Children's Safeguarding & Specialist Services,Children in Care & Fostering,JPAD,Third Party Payments,External Foster Care Payments,FOSTER CARE ASSOCIATES LTD,24/11/2014,5247.21
Children's Safeguarding & Specialist Services,Children in Care & Fostering,JPAD,Third Party Payments,External Foster Care Payments,FOSTER CARE ASSOCIATES LTD,13/11/2014,-5152.2
Children's Safeguarding & Specialist Services,Children in Care & Fostering,JPAD,Third Party Payments,External Foster Care Payments,FOSTER CARE ASSOCIATES LTD,24/11/2014,3160.26
Children's Safeguarding & Specialist Services,Children in Care & Fostering,JPAD,Third Party Payments,External Foster Care Payments,FOSTER CARE ASSOCIATES LTD,24/11/2014,5077.95
Children's Safeguarding & Specialist Services,Children in Care & Fostering,JPAD,Third Party Payments,External Foster Care Payments,FOSTER CARE ASSOCIATES LTD,24/11/2014,3320.31
Children's Safeguarding & Specialist Services,Children in Care & Fostering,JPAD,Third Party Payments,External Foster Care Payments,FOSTER CARE ASSOCIATES LTD,24/11/2014,1861.91
Children's Safeguarding & Specialist Services,Children in Care & Fostering,JPAD,Third Party Payments,External Foster Care Payments,FOSTER CARE ASSOCIATES LTD,24/11/2014,5247.21
Children's Safeguarding & Specialist Services,Children in Care & Fostering,JPAD,Third Party Payments,External Foster Care Payments,FOSTER CARE ASSOCIATES LTD,24/11/2014,5247.21
Children's Safeguarding & Specialist Services,Children in Care & Fostering,JPAD,Third Party Payments,External Foster Care Payments,FOSTER CARE ASSOCIATES LTD,24/11/2014,5077.95
Children's Safeguarding & Specialist Services,Children in Care & Fostering,JPAD,Third Party Payments,External Foster Care Payments,FOSTERING PRIORY,24/11/2014,3318.21
Children's Safeguarding & Specialist Services,Children in Care & Fostering,JPAD,Third Party Payments,External Foster Care Payments,FOSTERING SOLUTIONS LTD,24/11/2014,3267.81
Children's Safeguarding & Specialist Services,Children in Care & Fostering,JPAD,Third Party Payments,External Foster Care Payments,Foundation Fostering,21/11/2014,3480
Children's Safeguarding & Specialist Services,Children in Care & Fostering,JPAD,Third Party Payments,External Foster Care Payments,HILLCREST CARE LTD,21/11/2014,3139.8
Children's Safeguarding & Specialist Services,Children in Care & Fostering,JPAD,Third Party Payments,External Foster Care Payments,HILLCREST CARE LTD,24/11/2014,5078.7
Children's Safeguarding & Specialist Services,Children in Care & Fostering,JPAD,Third Party Payments,External Foster Care Payments,HILLCREST CARE LTD,24/11/2014,3139.8
Children's Safeguarding & Specialist Services,Children in Care & Fostering,JPAD,Third Party Payments,External Foster Care Payments,HILLCREST CARE LTD,24/11/2014,3139.8
Children's Safeguarding & Specialist Services,Children in Care & Fostering,JPAD,Third Party Payments,External Foster Care Payments,HILLCREST CARE LTD,24/11/2014,3344.59
Children's Safeguarding & Specialist Services,Children in Care & Fostering,JPAD,Third Party Payments,External Foster Care Payments,HILLCREST CARE LTD,10/11/2014,3050.18
Children's Safeguarding & Specialist Services,Children in Care & Fostering,JPAD,Third Party Payments,External Foster Care Payments,HILLCREST CARE LTD,10/11/2014,3236.79
Children's Safeguarding & Specialist Services,Children in Care & Fostering,JPAD,Third Party Payments,External Foster Care Payments,HILLCREST CARE LTD,24/11/2014,3077.99
Children's Safeguarding & Specialist Services,Children in Care & Fostering,JPAD,Third Party Payments,External Foster Care Payments,HILLCREST CARE LTD,24/11/2014,3244.46
Children's Safeguarding & Specialist Services,Children in Care & Fostering,JPAD,Third Party Payments,External Foster Care Payments,HILLCREST CARE LTD,24/11/2014,3277.94
Children's Safeguarding & Specialist Services,Children in Care & Fostering,JPAD,Third Party Payments,External Foster Care Payments,HILLCREST CARE LTD,24/11/2014,2635
Children's Safeguarding & Specialist Services,Children in Care & Fostering,JPAD,Third Party Payments,External Foster Care Payments,HILLCREST CARE LTD,24/11/2014,3277.63
Children's Safeguarding & Specialist Services,Children in Care & Fostering,JPAD,Third Party Payments,External Foster Care Payments,HILLCREST CARE LTD,24/11/2014,3344.59
Children's Safeguarding & Specialist Services,Children in Care & Fostering,JPAD,Third Party Payments,External Foster Care Payments,HILLCREST CARE LTD,24/11/2014,3050.09
Children's Safeguarding & Specialist Services,Children in Care & Fostering,JPAD,Third Party Payments,External Foster Care Payments,HILLCREST CARE LTD,24/11/2014,3520.67
Children's Safeguarding & Specialist Services,Children in Care & Fostering,JPAD,Third Party Payments,External Foster Care Payments,HILLCREST CARE LTD,24/11/2014,3344.59
Children's Safeguarding & Specialist Services,Children in Care & Fostering,JPAD,Third Party Payments,External Foster Care Payments,HILLCREST CARE LTD,24/11/2014,3050.09
Children's Safeguarding & Specialist Services,Children in Care & Fostering,JPAD,Third Party Payments,External Foster Care Payments,HILLCREST CARE LTD,24/11/2014,3244.46
Children's Safeguarding & Specialist Services,Children in Care & Fostering,JPAD,Third Party Payments,External Foster Care Payments,HILLCREST CARE LTD,24/11/2014,2958.64
Children's Safeguarding & Specialist Services,Children in Care & Fostering,JPAD,Third Party Payments,External Foster Care Payments,HILLCREST CARE LTD,24/11/2014,5247.99
Children's Safeguarding & Specialist Services,Children in Care & Fostering,JPAD,Third Party Payments,External Foster Care Payments,HILLCREST CARE LTD,24/11/2014,2978.7
Children's Safeguarding & Specialist Services,Children in Care & Fostering,JPAD,Third Party Payments,External Foster Care Payments,HILLCREST CARE LTD,24/11/2014,2978.7
Children's Safeguarding & Specialist Services,Children in Care & Fostering,JPAD,Third Party Payments,External Foster Care Payments,HILLCREST CARE LTD,24/11/2014,3407.1
Children's Safeguarding & Specialist Services,Children in Care & Fostering,JPAD,Third Party Payments,External Foster Care Payments,HILLCREST CARE LTD,24/11/2014,2863.2
Children's Safeguarding & Specialist Services,Children in Care & Fostering,JPAD,Third Party Payments,External Foster Care Payments,HILLCREST CARE LTD,24/11/2014,3107.1
Children's Safeguarding & Specialist Services,Children in Care & Fostering,JPAD,Third Party Payments,External Foster Care Payments,HILLCREST CARE LTD,24/11/2014,3236.7
Children's Safeguarding & Specialist Services,Children in Care & Fostering,JPAD,Third Party Payments,External Foster Care Payments,HILLCREST CARE LTD,24/11/2014,3236.7
Children's Safeguarding & Specialist Services,Children in Care & Fostering,JPAD,Third Party Payments,External Foster Care Payments,HILLCREST CARE LTD,24/11/2014,2951.7
Children's Safeguarding & Specialist Services,Children in Care & Fostering,JPAD,Third Party Payments,External Foster Care Payments,HILLCREST CARE LTD,24/11/2014,3139.8
Children's Safeguarding & Specialist Services,Children in Care & Fostering,JPAD,Third Party Payments,External Foster Care Payments,HILLCREST CARE LTD,24/11/2014,3236.7
Children's Safeguarding & Specialist Services,Children in Care & Fostering,JPAD,Third Party Payments,External Foster Care Payments,HILLCREST CARE LTD,24/11/2014,2951.7
Children's Safeguarding & Specialist Services,Children in Care & Fostering,JPAD,Third Party Payments,External Foster Care Payments,HILLCREST CARE LTD,24/11/2014,3236.7
Children's Safeguarding & Specialist Services,Children in Care & Fostering,JPAD,Third Party Payments,External Foster Care Payments,HILLCREST CARE LTD,24/11/2014,5078.7
Children's Safeguarding & Specialist Services,Children in Care & Fostering,JPAD,Third Party Payments,External Foster Care Payments,HILLCREST CARE LTD,24/11/2014,2550
Children's Safeguarding & Specialist Services,Children in Care & Fostering,JPAD,Third Party Payments,External Foster Care Payments,HILLCREST CARE LTD,24/11/2014,3172.2
Children's Safeguarding & Specialist Services,Children in Care & Fostering,JPAD,Third Party Payments,External Foster Care Payments,HILLCREST CARE LTD,24/11/2014,3171.9
Children's Safeguarding & Specialist Services,Children in Care & Fostering,JPAD,Third Party Payments,External Foster Care Payments,HILLCREST CARE LTD,24/11/2014,3236.7
Children's Safeguarding & Specialist Services,Children in Care & Fostering,JPAD,Third Party Payments,External Foster Care Payments,HILLCREST CARE LTD,24/11/2014,3210.67
Children's Safeguarding & Specialist Services,Children in Care & Fostering,JPAD,Third Party Payments,External Foster Care Payments,HILLCREST CARE LTD,24/11/2014,3344.59
Children's Safeguarding & Specialist Services,Children in Care & Fostering,JPAD,Third Party Payments,External Foster Care Payments,HILLCREST CARE LTD,24/11/2014,3244.46
Children's Safeguarding & Specialist Services,Children in Care & Fostering,JPAD,Third Party Payments,External Foster Care Payments,HILLCREST CARE LTD,24/11/2014,5247.99
Children's Safeguarding & Specialist Services,Children in Care & Fostering,JPAD,Third Party Payments,External Foster Care Payments,HILLCREST CARE LTD,24/11/2014,3077.99
Children's Safeguarding & Specialist Services,Children in Care & Fostering,JPAD,Third Party Payments,External Foster Care Payments,HILLCREST CARE LTD,24/11/2014,3344.59
Children's Safeguarding & Specialist Services,Children in Care & Fostering,JPAD,Third Party Payments,External Foster Care Payments,NATIONAL FOSTERING AGENCY,12/11/2014,3311.73
Children's Safeguarding & Specialist Services,Children in Care & Fostering,JPAD,Third Party Payments,External Foster Care Payments,NATIONAL FOSTERING AGENCY,26/11/2014,3299.33
Children's Safeguarding & Specialist Services,Children in Care & Fostering,JPAD,Third Party Payments,External Foster Care Payments,NATIONAL FOSTERING AGENCY,12/11/2014,3380.86
Children's Safeguarding & Specialist Services,Children in Care & Fostering,JPAD,Third Party Payments,External Foster Care Payments,NATIONAL FOSTERING AGENCY,12/11/2014,3449.99
Children's Safeguarding & Specialist Services,Children in Care & Fostering,JPAD,Third Party Payments,External Foster Care Payments,NATIONAL FOSTERING AGENCY,12/11/2014,3077.99
Children's Safeguarding & Specialist Services,Children in Care & Fostering,JPAD,Third Party Payments,External Foster Care Payments,NATIONAL FOSTERING AGENCY,12/11/2014,3233.3
Children's Safeguarding & Specialist Services,Children in Care & Fostering,JPAD,Third Party Payments,External Foster Care Payments,NATIONAL FOSTERING AGENCY,12/11/2014,3233.3
Children's Safeguarding & Specialist Services,Children in Care & Fostering,JPAD,Third Party Payments,External Foster Care Payments,NATIONAL FOSTERING AGENCY,12/11/2014,3233.3
Children's Safeguarding & Specialist Services,Children in Care & Fostering,JPAD,Third Party Payments,External Foster Care Payments,NATIONAL FOSTERING AGENCY,24/11/2014,2980.04
Children's Safeguarding & Specialist Services,Children in Care & Fostering,JPAD,Third Party Payments,External Foster Care Payments,NATIONAL FOSTERING AGENCY,12/11/2014,3167.27
Children's Safeguarding & Specialist Services,Children in Care & Fostering,JPAD,Third Party Payments,External Foster Care Payments,PARK FOSTER CARE,27/11/2014,3720
Children's Safeguarding & Specialist Services,Children in Care & Fostering,JPAD,Third Party Payments,External Foster Care Payments,PARK FOSTER CARE,27/11/2014,3720
Children's Safeguarding & Specialist Services,Children in Care & Fostering,JPAD,Third Party Payments,External Foster Care Payments,PARK FOSTER CARE,27/11/2014,3348
Children's Safeguarding & Specialist Services,Children in Care & Fostering,JPAD,Third Party Payments,External Foster Care Payments,PARK FOSTER CARE,27/11/2014,6200
Children's Safeguarding & Specialist Services,Children in Care & Fostering,JPAD,Third Party Payments,External Foster Care Payments,PARK FOSTER CARE,28/11/2014,3419.92
Children's Safeguarding & Specialist Services,Children in Care & Fostering,JPAD,Third Party Payments,External Foster Care Payments,PARK FOSTER CARE,28/11/2014,3720
Children's Safeguarding & Specialist Services,Children in Care & Fostering,JPAD,Third Party Payments,External Foster Care Payments,PARK FOSTER CARE,28/11/2014,240
Children's Safeguarding & Specialist Services,Children in Care & Fostering,JPAD,Third Party Payments,External Foster Care Payments,PHOENIX FOSTERING,21/11/2014,6321.3
Children's Safeguarding & Specialist Services,Children in Care & Fostering,JPAD,Third Party Payments,External Foster Care Payments,PHOENIX FOSTERING,21/11/2014,5689.2
Children's Safeguarding & Specialist Services,Children in Care & Fostering,JPAD,Third Party Payments,External Foster Care Payments,PHOENIX FOSTERING,21/11/2014,5689.2
Children's Safeguarding & Specialist Services,Children in Care & Fostering,JPAD,Third Party Payments,External Foster Care Payments,PHOENIX FOSTERING,24/11/2014,6321.3
Children's Safeguarding & Specialist Services,Children in Care & Fostering,JPAD,Third Party Payments,External Foster Care Payments,PROGRESS CHILDREN'S SERVICES LTD,11/11/2014,3797.4
Children's Safeguarding & Specialist Services,Children in Care & Fostering,JPAD,Third Party Payments,External Foster Care Payments,Prospects for Young People Ltd,03/11/2014,3366.6
Children's Safeguarding & Specialist Services,Children in Care & Fostering,JPAD,Third Party Payments,External Foster Care Payments,Prospects for Young People Ltd,03/11/2014,3604.99
Children's Safeguarding & Specialist Services,Children in Care & Fostering,JPAD,Third Party Payments,External Foster Care Payments,Prospects for Young People Ltd,18/11/2014,435
Children's Safeguarding & Specialist Services,Children in Care & Fostering,JPAD,Third Party Payments,External Foster Care Payments,THE ADOLESCENT & CHILDRENS TRUST,17/11/2014,3003.9
Children's Safeguarding & Specialist Services,Children in Care & Fostering,JPAM,Premises-Related Expenditure,Hire Of Rooms,AFC TELFORD UNITED,05/11/2014,311.67
Children's Safeguarding & Specialist Services,Children in Care & Fostering,JPAM,Supplies & Services,Form F Assessments,CORE ASSETS CHILDREN'S SERVICES LIMITED,21/11/2014,2350
Children's Safeguarding & Specialist Services,Children in Care & Fostering,JPAM,Supplies & Services,Legal Expenses,CORE ASSETS CHILDREN'S SERVICES LIMITED,21/11/2014,2450
Children's Safeguarding & Specialist Services,Children in Care & Fostering,JPAM,Supplies & Services,Legal Expenses,CORE ASSETS CHILDREN'S SERVICES LIMITED,21/11/2014,2450
Children's Safeguarding & Specialist Services,Children in Care & Fostering,JPAM,Supplies & Services,Legal Expenses,Wright McMillian Bennett Law,05/11/2014,450.52
Children's Safeguarding & Specialist Services,Children in Care & Fostering,JPAM,Supplies & Services,Marketing & Publicity,THE MIDLAND NEWS ASSOCIATION LTD,05/11/2014,327.89
Children's Safeguarding & Specialist Services,Children in Care & Fostering,JPAM,Supplies & Services,Marketing & Publicity,THE MIDLAND NEWS ASSOCIATION LTD,05/11/2014,125.14
Children's Safeguarding & Specialist Services,Children in Care & Fostering,JPAM,Supplies & Services,Marketing & Publicity,THE MIDLAND NEWS ASSOCIATION LTD,21/11/2014,327.89
Children's Safeguarding & Specialist Services,Children in Care & Fostering,JPAM,Supplies & Services,Marketing & Publicity,THE MIDLAND NEWS ASSOCIATION LTD,21/11/2014,181.98
Children's Safeguarding & Specialist Services,Children in Care & Fostering,JPAM,Supplies & Services,Marketing & Publicity,THE MIDLAND NEWS ASSOCIATION LTD,21/11/2014,648
Children's Safeguarding & Specialist Services,Children in Care & Fostering,JPAM,Supplies & Services,Marketing & Publicity,THE MIDLAND NEWS ASSOCIATION LTD,05/11/2014,181.98
Children's Safeguarding & Specialist Services,Children in Care & Fostering,JPAM,Supplies & Services,Printing - Other,ALLWAG PROMOTIONS LTD,05/11/2014,215
Children's Safeguarding & Specialist Services,Children in Care & Fostering,JPAM,Supplies & Services,Subscriptions,FOSTERING NETWORK,05/11/2014,2702
Children's Safeguarding & Specialist Services,Children in Care & Fostering,JPAN,Supplies & Services,Supportive Lodgings,BETTERCARE KEYS LTD,18/11/2014,430
Children's Safeguarding & Specialist Services,Children in Care & Fostering,JPAN,Supplies & Services,Supportive Lodgings,BETTERCARE KEYS LTD,18/11/2014,160
Children's Safeguarding & Specialist Services,Children in Care & Fostering,JPAN,Third Party Payments,External Foster Care Payments,ABC FOSTERING SERVICES LTD,18/11/2014,1000
Children's Safeguarding & Specialist Services,Children in Care & Fostering,JPAN,Third Party Payments,Private Contractors,Youth Justice Board,25/11/2014,10660
Children's Safeguarding & Specialist Services,Children in Care & Fostering,JPAN,Third Party Payments,Residential Expenditure,ABC CARE LTD,17/11/2014,11071.34
Children's Safeguarding & Specialist Services,Children in Care & Fostering,JPAN,Third Party Payments,Residential Expenditure,BETTERCARE KEYS LTD,11/11/2014,4885.74
Children's Safeguarding & Specialist Services,Children in Care & Fostering,JPAN,Third Party Payments,Residential Expenditure,BETTERCARE KEYS LTD,03/11/2014,17030
Children's Safeguarding & Specialist Services,Children in Care & Fostering,JPAN,Third Party Payments,Residential Expenditure,BETTERCARE KEYS LTD,11/11/2014,8414.33
Children's Safeguarding & Specialist Services,Children in Care & Fostering,JPAN,Third Party Payments,Residential Expenditure,BETTERCARE KEYS LTD,11/11/2014,8414.33
Children's Safeguarding & Specialist Services,Children in Care & Fostering,JPAN,Third Party Payments,Residential Expenditure,BETTERCARE KEYS LTD,11/11/2014,8414.33
Children's Safeguarding & Specialist Services,Children in Care & Fostering,JPAN,Third Party Payments,Residential Expenditure,BETTERCARE KEYS LTD,18/11/2014,8414.33
Children's Safeguarding & Specialist Services,Children in Care & Fostering,JPAN,Third Party Payments,Residential Expenditure,BETTERCARE KEYS LTD,11/11/2014,8414.33
Children's Safeguarding & Specialist Services,Children in Care & Fostering,JPAN,Third Party Payments,Residential Expenditure,CARE TODAY CHILDRENS SERVICES,11/11/2014,3489.67
Children's Safeguarding & Specialist Services,Children in Care & Fostering,JPAN,Third Party Payments,Residential Expenditure,Coram Voice,25/11/2014,370.24
Children's Safeguarding & Specialist Services,Children in Care & Fostering,JPAN,Third Party Payments,Residential Expenditure,CRUCKTON HALL SCHOOL,26/11/2014,3250
Children's Safeguarding & Specialist Services,Children in Care & Fostering,JPAN,Third Party Payments,Residential Expenditure,CRUCKTON HALL SCHOOL,28/11/2014,32710
Children's Safeguarding & Specialist Services,Children in Care & Fostering,JPAN,Third Party Payments,Residential Expenditure,DURHAM COUNTY COUNCIL,21/11/2014,23932
Children's Safeguarding & Specialist Services,Children in Care & Fostering,JPAN,Third Party Payments,Residential Expenditure,HORIZON CARE & EDUCATION GROUP LTD,21/11/2014,12642.9
Children's Safeguarding & Specialist Services,Children in Care & Fostering,JPAN,Third Party Payments,Residential Expenditure,Keys 16 Plus ILS Ltd,07/11/2014,1771.34
Children's Safeguarding & Specialist Services,Children in Care & Fostering,JPAN,Third Party Payments,Residential Expenditure,KEYS CHILDCARE LTD,21/11/2014,750
Children's Safeguarding & Specialist Services,Children in Care & Fostering,JPAN,Third Party Payments,Residential Expenditure,KEYS CHILDCARE LTD,21/11/2014,11071.34
Children's Safeguarding & Specialist Services,Children in Care & Fostering,JPAN,Third Party Payments,Residential Expenditure,KEYS CHILDCARE LTD,21/11/2014,11691.34
Children's Safeguarding & Specialist Services,Children in Care & Fostering,JPAN,Third Party Payments,Residential Expenditure,MGM CARE SERVICES LTD,10/11/2014,11924.15
Children's Safeguarding & Specialist Services,Children in Care & Fostering,JPAN,Third Party Payments,Residential Expenditure,MGM CARE SERVICES LTD,10/11/2014,11539.5
Children's Safeguarding & Specialist Services,Children in Care & Fostering,JPAN,Third Party Payments,Residential Expenditure,NEW HORIZONS CHILD CARE LTD,25/11/2014,11514.33
Children's Safeguarding & Specialist Services,Children in Care & Fostering,JPAN,Third Party Payments,Residential Expenditure,NEW HORIZONS CHILD CARE LTD,25/11/2014,11514.33
Children's Safeguarding & Specialist Services,Children in Care & Fostering,JPAN,Third Party Payments,Residential Expenditure,NEW HORIZONS CHILD CARE LTD,21/11/2014,10714.2
Children's Safeguarding & Specialist Services,Children in Care & Fostering,JPAN,Third Party Payments,Residential Expenditure,PRESTIGE ADOLESCENT CARE & EDUCATION,17/11/2014,-2057.14
Children's Safeguarding & Specialist Services,Children in Care & Fostering,JPAN,Third Party Payments,Residential Expenditure,SUNFIELD CHILDRENS HOMES LTD,20/11/2014,15691.17
Children's Safeguarding & Specialist Services,Children in Care & Fostering,JPAN,Third Party Payments,Residential Expenditure,Unity Residential Care Services Ltd,24/11/2014,10520
Children's Safeguarding & Specialist Services,Children in Care & Fostering,JPAN,Third Party Payments,Residential Expenditure,Unity Residential Care Services Ltd,24/11/2014,10520
Children's Safeguarding & Specialist Services,Children in Care & Fostering,JPAN,Third Party Payments,Residential Expenditure,Unity Residential Care Services Ltd,24/11/2014,10520
Children's Safeguarding & Specialist Services,Children in Care & Fostering,JPAN,Third Party Payments,Residential Expenditure,Young Options Pathways Stoke,24/11/2014,16534.29
Children's Safeguarding & Specialist Services,Children Specialist Services,GPAA,Supplies & Services,Other Services,AT COMPUTERS LTD,20/11/2014,740
Children's Safeguarding & Specialist Services,Children Specialist Services,GPAA,Supplies & Services,Other Services,PEARSON EDUCATIONAL (71060627),25/11/2014,996.5
Children's Safeguarding & Specialist Services,Children Specialist Services,GY03,Supplies & Services,Confectionery & Snacks,BIKOLD,18/11/2014,170.47
Children's Safeguarding & Specialist Services,Children Specialist Services,HDAF,Third Party Payments,Private Contractors,ACTION FOR CHILDREN LIMITED,18/11/2014,131638.5
Children's Safeguarding & Specialist Services,Children Specialist Services,HDAG,Supplies & Services,Aids & Appliances,JCM SEATING SOLUTIONS,21/11/2014,597.19
Children's Safeguarding & Specialist Services,Children Specialist Services,HDAG,Supplies & Services,Aids & Appliances,OSPREY HEALTHCARE LTD,17/11/2014,125
Children's Safeguarding & Specialist Services,Children Specialist Services,HDAG,Supplies & Services,Aids & Appliances,PATTERSON MEDICAL LTD,27/11/2014,345
Children's Safeguarding & Specialist Services,Children Specialist Services,HDAJ,Supplies & Services,Other Services,Direct Health Homecare Limited,14/11/2014,118.24
Children's Safeguarding & Specialist Services,Children Specialist Services,HDAJ,Supplies & Services,Other Services,Direct Health Homecare Limited,14/11/2014,118.24
Children's Safeguarding & Specialist Services,Children Specialist Services,HDAJ,Supplies & Services,Other Services,Direct Health Homecare Limited,14/11/2014,255.52
Children's Safeguarding & Specialist Services,Children Specialist Services,HDAJ,Supplies & Services,Other Services,Direct Health Homecare Limited,17/11/2014,255.52
Children's Safeguarding & Specialist Services,Children Specialist Services,HDAJ,Supplies & Services,Other Services,NESTOR PRIMECARE SERVICES LTD T/A ALLIED HEALTHCARE,20/11/2014,124.03
Children's Safeguarding & Specialist Services,Children Specialist Services,HDAJ,Supplies & Services,Other Services,NESTOR PRIMECARE SERVICES LTD T/A ALLIED HEALTHCARE,20/11/2014,213.02
Children's Safeguarding & Specialist Services,Children Specialist Services,HDAJ,Supplies & Services,Other Services,NESTOR PRIMECARE SERVICES LTD T/A ALLIED HEALTHCARE,20/11/2014,178.39
Children's Safeguarding & Specialist Services,Children Specialist Services,HDAJ,Supplies & Services,Other Services,NESTOR PRIMECARE SERVICES LTD T/A ALLIED HEALTHCARE,20/11/2014,122.62
Children's Safeguarding & Specialist Services,Children Specialist Services,HDAJ,Supplies & Services,Other Services,WE ARE THE CARE COMPANY LTD,24/11/2014,156
Children's Safeguarding & Specialist Services,Children Specialist Services,HDAJ,Supplies & Services,Other Services,WE ARE THE CARE COMPANY LTD,24/11/2014,146.65
Children's Safeguarding & Specialist Services,Children Specialist Services,HDAJ,Third Party Payments,Agency Services,Direct Health Homecare Limited,14/11/2014,118.24
Children's Safeguarding & Specialist Services,Children Specialist Services,HDAJ,Third Party Payments,Agency Services,Direct Health Homecare Limited,14/11/2014,127.76
Children's Safeguarding & Specialist Services,Children Specialist Services,HDAJ,Third Party Payments,Agency Services,Direct Health Homecare Limited,14/11/2014,177.36
Children's Safeguarding & Specialist Services,Children Specialist Services,HDAJ,Third Party Payments,Agency Services,Direct Health Homecare Limited,14/11/2014,118.24
Children's Safeguarding & Specialist Services,Children Specialist Services,HDAJ,Third Party Payments,Agency Services,Direct Health Homecare Limited,17/11/2014,236.48
Children's Safeguarding & Specialist Services,Children Specialist Services,HDAJ,Third Party Payments,Agency Services,Direct Health Homecare Limited,14/11/2014,230.4
Children's Safeguarding & Specialist Services,Children Specialist Services,HDAJ,Third Party Payments,Agency Services,Direct Health Homecare Limited,18/11/2014,177.36
Children's Safeguarding & Specialist Services,Children Specialist Services,HDAJ,Third Party Payments,Agency Services,Direct Health Homecare Limited,18/11/2014,246
Children's Safeguarding & Specialist Services,Children Specialist Services,HDAJ,Third Party Payments,Agency Services,Direct Health Homecare Limited,18/11/2014,246
Children's Safeguarding & Specialist Services,Children Specialist Services,HDAJ,Third Party Payments,Agency Services,Direct Health Homecare Limited,11/11/2014,177.36
Children's Safeguarding & Specialist Services,Children Specialist Services,HDAJ,Third Party Payments,Agency Services,Direct Health Homecare Limited,17/11/2014,177.36
Children's Safeguarding & Specialist Services,Children Specialist Services,HDAJ,Third Party Payments,Agency Services,Direct Health Homecare Limited,24/11/2014,288
Children's Safeguarding & Specialist Services,Children Specialist Services,HDAJ,Third Party Payments,Agency Services,Direct Health Homecare Limited,24/11/2014,230.4
Children's Safeguarding & Specialist Services,Children Specialist Services,HDAJ,Third Party Payments,Agency Services,NESTOR PRIMECARE SERVICES LTD T/A ALLIED HEALTHCARE,25/11/2014,574.67
Children's Safeguarding & Specialist Services,Children Specialist Services,HDAJ,Third Party Payments,Agency Services,NESTOR PRIMECARE SERVICES LTD T/A ALLIED HEALTHCARE,25/11/2014,196.25
Children's Safeguarding & Specialist Services,Children Specialist Services,HDAJ,Third Party Payments,Agency Services,NESTOR PRIMECARE SERVICES LTD T/A ALLIED HEALTHCARE,24/11/2014,106.69
Children's Safeguarding & Specialist Services,Children Specialist Services,HDAJ,Third Party Payments,Agency Services,NESTOR PRIMECARE SERVICES LTD T/A ALLIED HEALTHCARE,24/11/2014,109.32
Children's Safeguarding & Specialist Services,Children Specialist Services,HDAJ,Third Party Payments,Agency Services,NESTOR PRIMECARE SERVICES LTD T/A ALLIED HEALTHCARE,20/11/2014,136.78
Children's Safeguarding & Specialist Services,Children Specialist Services,HDAJ,Third Party Payments,Agency Services,NESTOR PRIMECARE SERVICES LTD T/A ALLIED HEALTHCARE,20/11/2014,114.65
Children's Safeguarding & Specialist Services,Children Specialist Services,HDAJ,Third Party Payments,Agency Services,NESTOR PRIMECARE SERVICES LTD T/A ALLIED HEALTHCARE,20/11/2014,540.36
Children's Safeguarding & Specialist Services,Children Specialist Services,HDAJ,Third Party Payments,Agency Services,NESTOR PRIMECARE SERVICES LTD T/A ALLIED HEALTHCARE,20/11/2014,716.17
Children's Safeguarding & Specialist Services,Children Specialist Services,HDAJ,Third Party Payments,Agency Services,NESTOR PRIMECARE SERVICES LTD T/A ALLIED HEALTHCARE,20/11/2014,173.23
Children's Safeguarding & Specialist Services,Children Specialist Services,HDAJ,Third Party Payments,Agency Services,NESTOR PRIMECARE SERVICES LTD T/A ALLIED HEALTHCARE,20/11/2014,161.69
Children's Safeguarding & Specialist Services,Children Specialist Services,HDAJ,Third Party Payments,Agency Services,NESTOR PRIMECARE SERVICES LTD T/A ALLIED HEALTHCARE,20/11/2014,290.01
Children's Safeguarding & Specialist Services,Children Specialist Services,HDAJ,Third Party Payments,Agency Services,NESTOR PRIMECARE SERVICES LTD T/A ALLIED HEALTHCARE,20/11/2014,200.23
Children's Safeguarding & Specialist Services,Children Specialist Services,HDAJ,Third Party Payments,Agency Services,NESTOR PRIMECARE SERVICES LTD T/A ALLIED HEALTHCARE,20/11/2014,500.24
Children's Safeguarding & Specialist Services,Children Specialist Services,HDAJ,Third Party Payments,Agency Services,NESTOR PRIMECARE SERVICES LTD T/A ALLIED HEALTHCARE,20/11/2014,154
Children's Safeguarding & Specialist Services,Children Specialist Services,HDAJ,Third Party Payments,Agency Services,NESTOR PRIMECARE SERVICES LTD T/A ALLIED HEALTHCARE,20/11/2014,521.44
Children's Safeguarding & Specialist Services,Children Specialist Services,HDAJ,Third Party Payments,Agency Services,NESTOR PRIMECARE SERVICES LTD T/A ALLIED HEALTHCARE,20/11/2014,164.18
Children's Safeguarding & Specialist Services,Children Specialist Services,HDAJ,Third Party Payments,Agency Services,NESTOR PRIMECARE SERVICES LTD T/A ALLIED HEALTHCARE,20/11/2014,235.04
Children's Safeguarding & Specialist Services,Children Specialist Services,HDAJ,Third Party Payments,Agency Services,NESTOR PRIMECARE SERVICES LTD T/A ALLIED HEALTHCARE,20/11/2014,466.99
Children's Safeguarding & Specialist Services,Children Specialist Services,HDAJ,Third Party Payments,Agency Services,NESTOR PRIMECARE SERVICES LTD T/A ALLIED HEALTHCARE,20/11/2014,"1,092.97"
Children's Safeguarding & Specialist Services,Children Specialist Services,HDAJ,Third Party Payments,Agency Services,NESTOR PRIMECARE SERVICES LTD T/A ALLIED HEALTHCARE,24/11/2014,112.16
Children's Safeguarding & Specialist Services,Children Specialist Services,HDAJ,Third Party Payments,Agency Services,NESTOR PRIMECARE SERVICES LTD T/A ALLIED HEALTHCARE,20/11/2014,413.17
Children's Safeguarding & Specialist Services,Children Specialist Services,HDAJ,Third Party Payments,Agency Services,NESTOR PRIMECARE SERVICES LTD T/A ALLIED HEALTHCARE,24/11/2014,854.93
Children's Safeguarding & Specialist Services,Children Specialist Services,HDAJ,Third Party Payments,Agency Services,NESTOR PRIMECARE SERVICES LTD T/A ALLIED HEALTHCARE,24/11/2014,117.05
Children's Safeguarding & Specialist Services,Children Specialist Services,HDAJ,Third Party Payments,Agency Services,NESTOR PRIMECARE SERVICES LTD T/A ALLIED HEALTHCARE,24/11/2014,108.43
Children's Safeguarding & Specialist Services,Children Specialist Services,HDAJ,Third Party Payments,Agency Services,NESTOR PRIMECARE SERVICES LTD T/A ALLIED HEALTHCARE,24/11/2014,104.48
Children's Safeguarding & Specialist Services,Children Specialist Services,HDAJ,Third Party Payments,Agency Services,NESTOR PRIMECARE SERVICES LTD T/A ALLIED HEALTHCARE,24/11/2014,109.65
Children's Safeguarding & Specialist Services,Children Specialist Services,HDAJ,Third Party Payments,Agency Services,NEW OPTIONS (3) LTD,21/11/2014,5040
Children's Safeguarding & Specialist Services,Children Specialist Services,HDAJ,Third Party Payments,Agency Services,NEW OPTIONS (3) LTD,24/11/2014,5712
Children's Safeguarding & Specialist Services,Children Specialist Services,HDAJ,Third Party Payments,Agency Services,NEW OPTIONS (3) LTD,24/11/2014,"5,796.00"
Children's Safeguarding & Specialist Services,Children Specialist Services,HDAJ,Third Party Payments,Agency Services,WE ARE THE CARE COMPANY LTD,10/11/2014,184
Children's Safeguarding & Specialist Services,Children Specialist Services,HDAJ,Third Party Payments,Agency Services,WE ARE THE CARE COMPANY LTD,10/11/2014,172.5
Children's Safeguarding & Specialist Services,Children Specialist Services,HDAJ,Third Party Payments,Agency Services,WE ARE THE CARE COMPANY LTD,20/11/2014,184
Children's Safeguarding & Specialist Services,Children Specialist Services,HDAJ,Third Party Payments,Agency Services,WE ARE THE CARE COMPANY LTD,20/11/2014,162
Children's Safeguarding & Specialist Services,Children Specialist Services,HDAJ,Third Party Payments,Agency Services,WE ARE THE CARE COMPANY LTD,20/11/2014,216
Children's Safeguarding & Specialist Services,Children Specialist Services,HDAJ,Third Party Payments,Agency Services,WE ARE THE CARE COMPANY LTD,20/11/2014,196.5
Children's Safeguarding & Specialist Services,Children Specialist Services,HDAJ,Third Party Payments,Agency Services,WE ARE THE CARE COMPANY LTD,20/11/2014,616.08
Children's Safeguarding & Specialist Services,Children Specialist Services,HDAJ,Third Party Payments,Agency Services,WE ARE THE CARE COMPANY LTD,21/11/2014,204.13
Children's Safeguarding & Specialist Services,Children Specialist Services,HDAJ,Third Party Payments,Agency Services,WE ARE THE CARE COMPANY LTD,24/11/2014,230
Children's Safeguarding & Specialist Services,Children Specialist Services,HDAJ,Third Party Payments,Agency Services,WE ARE THE CARE COMPANY LTD,24/11/2014,216
Children's Safeguarding & Specialist Services,Children Specialist Services,HDAJ,Third Party Payments,Agency Services,WE ARE THE CARE COMPANY LTD,24/11/2014,216
Children's Safeguarding & Specialist Services,Children Specialist Services,HDAJ,Third Party Payments,Agency Services,WE ARE THE CARE COMPANY LTD,24/11/2014,243.75
Children's Safeguarding & Specialist Services,Children Specialist Services,HDAK,Third Party Payments,Agency Services,Direct Health Homecare Limited,18/11/2014,191.64
Children's Safeguarding & Specialist Services,Children Specialist Services,HDAK,Third Party Payments,Agency Services,Direct Health Homecare Limited,18/11/2014,255.52
Children's Safeguarding & Specialist Services,Children Specialist Services,HDAK,Third Party Payments,Agency Services,Direct Health Homecare Limited,18/11/2014,177.36
Children's Safeguarding & Specialist Services,Children Specialist Services,HDAK,Third Party Payments,Agency Services,Direct Health Homecare Limited,18/11/2014,191.64
Children's Safeguarding & Specialist Services,Children Specialist Services,HDAK,Third Party Payments,Agency Services,Direct Health Homecare Limited,18/11/2014,133.02
Children's Safeguarding & Specialist Services,Children Specialist Services,HDAK,Third Party Payments,Agency Services,Direct Health Homecare Limited,18/11/2014,133.02
Children's Safeguarding & Specialist Services,Children Specialist Services,HDAK,Third Party Payments,Agency Services,Direct Health Homecare Limited,18/11/2014,118.24
Children's Safeguarding & Specialist Services,Children Specialist Services,HDAK,Third Party Payments,Agency Services,Direct Health Homecare Limited,18/11/2014,255.52
Children's Safeguarding & Specialist Services,Children Specialist Services,HDAK,Third Party Payments,Agency Services,Direct Health Homecare Limited,18/11/2014,191.64
Children's Safeguarding & Specialist Services,Children Specialist Services,HDAK,Third Party Payments,Agency Services,Direct Health Homecare Limited,18/11/2014,191.64
Children's Safeguarding & Specialist Services,Children Specialist Services,HDAK,Third Party Payments,Agency Services,Direct Health Homecare Limited,18/11/2014,118.24
Children's Safeguarding & Specialist Services,Children Specialist Services,HDAK,Third Party Payments,Agency Services,Direct Health Homecare Limited,18/11/2014,118.24
Children's Safeguarding & Specialist Services,Children Specialist Services,HDAK,Third Party Payments,Agency Services,NESTOR PRIMECARE SERVICES LTD T/A ALLIED HEALTHCARE,20/11/2014,109.72
Children's Safeguarding & Specialist Services,Children Specialist Services,HDAK,Third Party Payments,Agency Services,NESTOR PRIMECARE SERVICES LTD T/A ALLIED HEALTHCARE,20/11/2014,158.77
Children's Safeguarding & Specialist Services,Children Specialist Services,HDAK,Third Party Payments,Agency Services,NESTOR PRIMECARE SERVICES LTD T/A ALLIED HEALTHCARE,20/11/2014,167.73
Children's Safeguarding & Specialist Services,Children Specialist Services,HDAK,Third Party Payments,Agency Services,NESTOR PRIMECARE SERVICES LTD T/A ALLIED HEALTHCARE,20/11/2014,261.63
Children's Safeguarding & Specialist Services,Children Specialist Services,HDAK,Third Party Payments,Agency Services,NESTOR PRIMECARE SERVICES LTD T/A ALLIED HEALTHCARE,20/11/2014,214.88
Children's Safeguarding & Specialist Services,Children Specialist Services,HDAK,Third Party Payments,Agency Services,NESTOR PRIMECARE SERVICES LTD T/A ALLIED HEALTHCARE,20/11/2014,212.39
Children's Safeguarding & Specialist Services,Children Specialist Services,HDAK,Transport-Related Expenditure,Travelling Expenses General,CENTRAL TAXIS LTD SHREWSBURY,18/11/2014,139.5
Children's Safeguarding & Specialist Services,Children Specialist Services,KNAA,Supplies & Services,Other Tuition Fees,The National Teaching & Advisory Service,24/11/2014,826
Children's Safeguarding & Specialist Services,Children Specialist Services,KNAA,Supplies & Services,Other Tuition Fees,The National Teaching & Advisory Service,24/11/2014,1056
Children's Safeguarding & Specialist Services,Children Specialist Services,KNAA,Third Party Payments,Residential Expenditure,CRUCKTON HALL SCHOOL,25/11/2014,25333.33
Children's Safeguarding & Specialist Services,Children Specialist Services,KNAA,Third Party Payments,Residential Expenditure,CRUCKTON HALL SCHOOL,21/11/2014,29439
Children's Safeguarding & Specialist Services,Children Specialist Services,KNAA,Third Party Payments,Residential Expenditure,CRUCKTON HALL SCHOOL,24/11/2014,29166.67
Children's Safeguarding & Specialist Services,Children Specialist Services,KNAA,Third Party Payments,Residential Expenditure,The National Teaching & Advisory Service,24/11/2014,1056
Children's Safeguarding & Specialist Services,Children Specialist Services,KNAJ,Employees,Course Fees,TELFORD COLLEGE OF ARTS & TECHNOLOGY,07/11/2014,270
Children's Safeguarding & Specialist Services,Children Specialist Services,KNAJ,Employees,Course Fees,TELFORD COLLEGE OF ARTS & TECHNOLOGY,07/11/2014,270
Children's Safeguarding & Specialist Services,Children Specialist Services,KNAJ,Employees,Course Fees,THE UNIVERSITY OF BIRMINGHAM,07/11/2014,3005
Children's Safeguarding & Specialist Services,Children Specialist Services,KNAJ,Premises-Related Expenditure,Hire Of Rooms,MEETING POINT TRUST LTD,28/11/2014,105.2
Children's Safeguarding & Specialist Services,Children Specialist Services,KNAJ,Supplies & Services,Aids & Appliances,Optelec Limited,07/11/2014,258
Children's Safeguarding & Specialist Services,Children Specialist Services,KNAJ,Supplies & Services,Equipment - Purchase,PHONAK UK LTD,13/11/2014,360
Children's Safeguarding & Specialist Services,Children Specialist Services,KNAM,Supplies & Services,Computer Software (Maint),BRIGHT SYSTEMS LIMITED,20/11/2014,12177.5
Co-Operative Council,Community Engagement & Voluntary Sector,LEAC,Supplies & Services,Performing Rights Fees,PRS FOR MUSIC,25/11/2014,259.44
Co-Operative Council,Community Engagement & Voluntary Sector,LEAC,Supplies & Services,Performing Rights Fees,PRS FOR MUSIC,25/11/2014,438.44
Co-Operative Council,Community Engagement & Voluntary Sector,MCAE,Supplies & Services,Grants To Voluntary Organis,MADELEY PARISH COUNCIL (61481451),10/11/2014,940
Co-Operative Council,Community Engagement & Voluntary Sector,MCAE,Supplies & Services,Grants To Voluntary Organis,MADELEY PARISH COUNCIL (61481451),12/11/2014,250
Co-Operative Council,Corporate Communications,MMAD,Supplies & Services,Advertising,THE MIDLAND NEWS ASSOCIATION LTD,17/11/2014,1261.8
Co-Operative Council,Corporate Communications,MMAD,Supplies & Services,Advertising,THE MIDLAND NEWS ASSOCIATION LTD,28/11/2014,631.08
Co-Operative Council,Corporate Core,MHAB,Supplies & Services,Conference Expenses,ADASS,27/11/2014,250
Co-Operative Council,Policy & Strategy,MPAA,Supplies & Services,Other Expenses,Browne Jacobson LLP,13/11/2014,2500
Co-Operative Council,Policy & Strategy,MPAA,Supplies & Services,Other Expenses,IZEN Energy Systems,18/11/2014,422424
Co-Operative Council,Policy & Strategy,MPAA,Supplies & Services,Other Expenses,IZEN Energy Systems,18/11/2014,140808
Co-Operative Council,Policy & Strategy,MPAA,Supplies & Services,Other Expenses,JACOBS UK LIMITED,10/11/2014,950
Co-Operative Council,Policy & Strategy,MPAA,Supplies & Services,Other Expenses,WESTERN POWER DISBRIBUTIONS,07/11/2014,-4706.9
Co-Operative Council,Policy & Strategy,MPAA,Transport-Related Expenditure,Travelling Expenses General,EXPOTEL HOTEL RESERVATIONS LIMITED,20/11/2014,173
Co-Operative Council,Policy & Strategy,MPAC,Supplies & Services,Consultants Fees,ARUP,03/11/2014,12300
Customer Services,ALD Services,HLBB,Supplies & Services,Chemicals/Cleaning Products,CARESHOP,03/11/2014,138.00
Customer Services,ALD Services,HLBB,Supplies & Services,Chemicals/Cleaning Products,CARESHOP,03/11/2014,221.82
Customer Services,ALD Services,HLBB,Supplies & Services,Laundry & Towel Hire,PHS ALL CLEAR,19/11/2014,377.60
Customer Services,ALD Services,HLBB,Supplies & Services,Laundry & Towel Hire,PHS ALL CLEAR,03/11/2014,305.60
Customer Services,ALD Services,HLBC,Premises-Related Expenditure,Clean Mats & Toilet Requisites,ARCO LIMITED,12/11/2014,219.74
Customer Services,ALD Services,HLBC,Supplies & Services,Provisions,BIKOLD,14/11/2014,728.05
Customer Services,ALD Services,HLBC,Supplies & Services,Provisions,BIKOLD,12/11/2014,200.11
Customer Services,ALD Services,HLBC,Supplies & Services,Provisions,BIKOLD,12/11/2014,213.97
Customer Services,ALD Services,HLCE,Premises-Related Expenditure,General Rents,THE WREKIN HOUSING TRUST (INVOICES ONLY),14/11/2014,2018.58
Customer Services,ALD Services,HLCE,Supplies & Services,Furniture - Repair,R M F LANDSCAPING LTD,06/11/2014,936
Customer Services,ALD Services,HLDB,Supplies & Services,Equipment - Purchase,JACKDAW DINSTOCK,21/11/2014,115
Customer Services,ALD Services,HLDC,Supplies & Services,Photocopying,WEST MERCIA SUPPLIES Catalogue Supplies (None Utility),28/11/2014,405.28
Customer Services,ALD Services,HLEB,Supplies & Services,Equipment - Purchase,THE CONSORTIUM FOR PURCHASING & DISTRIBUTION LTD T/A WEST MERCIA SUPPLIES,14/11/2014,476.64
Customer Services,ALD Services,HLEC,Capital Financing Costs,Leased Equipment,LEX AUTOLEASE LTD,26/11/2014,500.14
Customer Services,ALD Services,HLEC,Capital Financing Costs,Leased Equipment,LEX AUTOLEASE LTD,06/11/2014,524.29
Customer Services,ALD Services,HLED,Supplies & Services,Telephones,BRITISH TELECOMMUNICATIONS PLC,14/11/2014,104.21
Customer Services,ALD Services,HLEG,Supplies & Services,Respite Care,Redacted Personal Information,11/11/2014,345.61
Customer Services,ALD Services,HLEG,Supplies & Services,Respite Care,Redacted Personal Information,11/11/2014,197.49
Customer Services,Benefits,LRSF,Transfer Payments,Crisis Assistance Awards,A W HOLDINGS,07/11/2014,189
Customer Services,Benefits,LRSF,Transfer Payments,Crisis Assistance Awards,DAWLEY BARGAIN CENTRE,19/11/2014,545
Customer Services,Benefits,LRSF,Transfer Payments,Crisis Assistance Awards,DAWLEY BARGAIN CENTRE,19/11/2014,135
Customer Services,Benefits,LRSF,Transfer Payments,Crisis Assistance Awards,DAWLEY BARGAIN CENTRE,19/11/2014,165
Customer Services,Benefits,LRSF,Transfer Payments,Crisis Assistance Awards,DAWLEY BARGAIN CENTRE,07/11/2014,170
Customer Services,Benefits,LRSF,Transfer Payments,Crisis Assistance Awards,DAWLEY BARGAIN CENTRE,20/11/2014,385
Customer Services,Benefits,LRSF,Transfer Payments,Crisis Assistance Awards,PayPoint Network Limited,05/11/2014,192
Customer Services,Benefits,LRSF,Transfer Payments,Crisis Assistance Awards,PayPoint Network Limited,20/11/2014,230
Customer Services,Benefits,LRSF,Transfer Payments,Crisis Assistance Awards,PayPoint Network Limited,12/11/2014,245
Customer Services,Benefits,LRSF,Transfer Payments,Crisis Assistance Awards,Shropshire Community Project,03/11/2014,109
Customer Services,Benefits,LRTC,Supplies & Services,Blue Badge Supplies,NORTHGATE INFORMATION SOLUTIONS UK LTD,17/11/2014,1706.35
Customer Services,Catering,CAFT,Supplies & Services,Provisions,BIKOLD,21/11/2014,3970.44
Customer Services,Catering,CAFT,Supplies & Services,Provisions,BIKOLD,17/11/2014,3363.51
Customer Services,Catering,CAFT,Supplies & Services,Provisions,Brambles Foods Ltd,17/11/2014,146.8
Customer Services,Catering,CAHH,Supplies & Services,Holidays & Outings,Vegware,21/11/2014,116.12
Customer Services,Catering,CAHH,Supplies & Services,Provisions,Bikold,10/11/2014,232.23
Customer Services,Catering,CAHH,Supplies & Services,Provisions,Bikold,10/11/2014,292.79
Customer Services,Catering,CAHH,Supplies & Services,Provisions,Bikold,10/11/2014,117.58
Customer Services,Catering,CAMA,Employees,Training Expenses,CIEH,03/11/2014,103.95
Customer Services,Catering,CAMA,Employees,Training Expenses,CIEH,03/11/2014,718.45
Customer Services,Catering,CAMA,Supplies & Services,Holidays & Outings,IMAGE@WORK LTD,20/11/2014,100.5
Customer Services,Catering,CAMA,Supplies & Services,Protective Clothing,SIMON JERSEY LIMITED,28/11/2014,116.38
Customer Services,Catering,CAOC,Supplies & Services,Provisions,Bikold,14/11/2014,108.6
Customer Services,Catering,CAOC,Supplies & Services,Provisions,Bikold,28/11/2014,100.24
Customer Services,Catering,CASM,Supplies & Services,EEC Whole Milk,JOHAL DAIRIES,28/11/2014,736.54
Customer Services,Catering,CASM,Supplies & Services,EEC Whole Milk,JOHAL DAIRIES,28/11/2014,1800.95
Customer Services,Catering,CASM,Supplies & Services,EEC Whole Milk,JOHAL DAIRIES,28/11/2014,1793.17
Customer Services,Catering,CASM,Supplies & Services,EEC Whole Milk,JOHAL DAIRIES,04/11/2014,725.71
Customer Services,Catering,CASM,Supplies & Services,EEC Whole Milk,JOHAL DAIRIES,04/11/2014,1795.39
Customer Services,Catering,CASM,Supplies & Services,EEC Whole Milk,JOHAL DAIRIES,20/11/2014,1756.62
Customer Services,Catering,CASM,Supplies & Services,EEC Whole Milk,JOHAL DAIRIES,20/11/2014,730.58
Customer Services,Catering,CASN,Supplies & Services,Provisions,Bikold,14/11/2014,145.23
Customer Services,Catering,CASN,Supplies & Services,Provisions,Bikold,14/11/2014,198.01
Customer Services,Catering,CASN,Supplies & Services,Provisions,Bikold,14/11/2014,236.47
Customer Services,Catering,CASN,Supplies & Services,Provisions,Bikold,14/11/2014,137.6
Customer Services,Catering,CASN,Supplies & Services,Provisions,Bikold,28/11/2014,214.18
Customer Services,Catering,CASN,Supplies & Services,Provisions,Bikold,28/11/2014,154.64
Customer Services,Catering,CASN,Supplies & Services,Provisions,Bikold,21/11/2014,172.38
Customer Services,Catering,CASN,Supplies & Services,Provisions,Bikold,21/11/2014,120.57
Customer Services,Catering,CASN,Supplies & Services,Provisions,Bikold,21/11/2014,189.03
Customer Services,Catering,CASN,Supplies & Services,Provisions,Bikold,10/11/2014,127.51
Customer Services,Catering,CASN,Supplies & Services,Provisions,Bikold,10/11/2014,213.7
Customer Services,Catering,CASN,Supplies & Services,Provisions,John Sheppard Catering Butchers,19/11/2014,169
Customer Services,Catering,CASN,Supplies & Services,Provisions,John Sheppard Catering Butchers,26/11/2014,110.39
Customer Services,Catering,CASN,Supplies & Services,Provisions,John Sheppard Catering Butchers,04/11/2014,109.09
Customer Services,Catering,CASN,Supplies & Services,Provisions,John Sheppard Catering Butchers,04/11/2014,216
Customer Services,Catering,CASN,Supplies & Services,Provisions,John Sheppard Catering Butchers,04/11/2014,230.79
Customer Services,Catering,CASN,Supplies & Services,Provisions,John Sheppard Catering Butchers,07/11/2014,-216
Customer Services,Catering,CASN,Supplies & Services,Provisions,John Sheppard Catering Butchers,07/11/2014,-230.79
Customer Services,Catering,CASP,Premises-Related Expenditure,Trade Refuse,FCC Recycling (UK) Ltd (39521486),11/11/2014,378.3
Customer Services,Catering,CASP,Premises-Related Expenditure,Trade Refuse,FCC Recycling (UK) Ltd (39521486),11/11/2014,378.3
Customer Services,Catering,CASP,Supplies & Services,Comp Software (Purch / Hire),NATIONWIDE RETAIL SYSTEMS LTD,17/11/2014,107.00
Customer Services,Catering,CASP,Supplies & Services,Crockery/Hardware/Light Equip,Harfield Components Ltd,28/11/2014,1070.5
Customer Services,Catering,CASP,Supplies & Services,Crockery/Hardware/Light Equip,Harfield Components Ltd,28/11/2014,123
Customer Services,Catering,CASP,Supplies & Services,Equipment - Repair,NATIONWIDE RETAIL SYSTEMS LTD,17/11/2014,129
Customer Services,Catering,CASP,Supplies & Services,Equipment - Repair,NATIONWIDE RETAIL SYSTEMS LTD,17/11/2014,107
Customer Services,Catering,CASP,Supplies & Services,Provisions,Bikold,14/11/2014,238.87
Customer Services,Catering,CASP,Supplies & Services,Provisions,Bikold,14/11/2014,138.15
Customer Services,Catering,CASP,Supplies & Services,Provisions,Bikold,14/11/2014,116.05
Customer Services,Catering,CASP,Supplies & Services,Provisions,Bikold,14/11/2014,186.64
Customer Services,Catering,CASP,Supplies & Services,Provisions,Bikold,14/11/2014,114.02
Customer Services,Catering,CASP,Supplies & Services,Provisions,Bikold,14/11/2014,150.46
Customer Services,Catering,CASP,Supplies & Services,Provisions,Bikold,14/11/2014,166.52
Customer Services,Catering,CASP,Supplies & Services,Provisions,Bikold,14/11/2014,315.55
Customer Services,Catering,CASP,Supplies & Services,Provisions,Bikold,14/11/2014,169.59
Customer Services,Catering,CASP,Supplies & Services,Provisions,Bikold,21/11/2014,102.55
Customer Services,Catering,CASP,Supplies & Services,Provisions,Bikold,21/11/2014,314.25
Customer Services,Catering,CASP,Supplies & Services,Provisions,Bikold,21/11/2014,164.02
Customer Services,Catering,CASP,Supplies & Services,Provisions,Bikold,21/11/2014,119.84
Customer Services,Catering,CASP,Supplies & Services,Provisions,Bikold,21/11/2014,357.72
Customer Services,Catering,CASP,Supplies & Services,Provisions,Bikold,21/11/2014,161.66
Customer Services,Catering,CASP,Supplies & Services,Provisions,Bikold,21/11/2014,179.11
Customer Services,Catering,CASP,Supplies & Services,Provisions,Bikold,21/11/2014,358.29
Customer Services,Catering,CASP,Supplies & Services,Provisions,Bikold,21/11/2014,112.26
Customer Services,Catering,CASP,Supplies & Services,Provisions,Bikold,21/11/2014,111
Customer Services,Catering,CASP,Supplies & Services,Provisions,Bikold,21/11/2014,201.33
Customer Services,Catering,CASP,Supplies & Services,Provisions,Bikold,21/11/2014,116.76
Customer Services,Catering,CASP,Supplies & Services,Provisions,Bikold,21/11/2014,185.29
Customer Services,Catering,CASP,Supplies & Services,Provisions,Bikold,21/11/2014,194.98
Customer Services,Catering,CASP,Supplies & Services,Provisions,Bikold,21/11/2014,127.84
Customer Services,Catering,CASP,Supplies & Services,Provisions,Bikold,21/11/2014,121.48
Customer Services,Catering,CASP,Supplies & Services,Provisions,Bikold,21/11/2014,152.56
Customer Services,Catering,CASP,Supplies & Services,Provisions,Bikold,21/11/2014,160.49
Customer Services,Catering,CASP,Supplies & Services,Provisions,Bikold,21/11/2014,214.87
Customer Services,Catering,CASP,Supplies & Services,Provisions,Bikold,21/11/2014,390.31
Customer Services,Catering,CASP,Supplies & Services,Provisions,Bikold,21/11/2014,114.14
Customer Services,Catering,CASP,Supplies & Services,Provisions,Bikold,21/11/2014,140.87
Customer Services,Catering,CASP,Supplies & Services,Provisions,Bikold,21/11/2014,192.22
Customer Services,Catering,CASP,Supplies & Services,Provisions,Bikold,21/11/2014,194.89
Customer Services,Catering,CASP,Supplies & Services,Provisions,Bikold,21/11/2014,155.48
Customer Services,Catering,CASP,Supplies & Services,Provisions,Bikold,10/11/2014,122.82
Customer Services,Catering,CASP,Supplies & Services,Provisions,Bikold,10/11/2014,269.76
Customer Services,Catering,CASP,Supplies & Services,Provisions,Bikold,10/11/2014,355.44
Customer Services,Catering,CASP,Supplies & Services,Provisions,Bikold,14/11/2014,293.80
Customer Services,Catering,CASP,Supplies & Services,Provisions,Bikold,14/11/2014,152.92
Customer Services,Catering,CASP,Supplies & Services,Provisions,Bikold,14/11/2014,108.97
Customer Services,Catering,CASP,Supplies & Services,Provisions,Bikold,14/11/2014,161.51
Customer Services,Catering,CASP,Supplies & Services,Provisions,Bikold,14/11/2014,116.48
Customer Services,Catering,CASP,Supplies & Services,Provisions,Bikold,14/11/2014,270.79
Customer Services,Catering,CASP,Supplies & Services,Provisions,Bikold,14/11/2014,347.43
Customer Services,Catering,CASP,Supplies & Services,Provisions,Bikold,14/11/2014,126.87
Customer Services,Catering,CASP,Supplies & Services,Provisions,Bikold,14/11/2014,141.33
Customer Services,Catering,CASP,Supplies & Services,Provisions,Bikold,14/11/2014,104.9
Customer Services,Catering,CASP,Supplies & Services,Provisions,Bikold,14/11/2014,103.84
Customer Services,Catering,CASP,Supplies & Services,Provisions,Bikold,14/11/2014,274.21
Customer Services,Catering,CASP,Supplies & Services,Provisions,Bikold,14/11/2014,225.54
Customer Services,Catering,CASP,Supplies & Services,Provisions,Bikold,14/11/2014,105.3
Customer Services,Catering,CASP,Supplies & Services,Provisions,Bikold,14/11/2014,131.31
Customer Services,Catering,CASP,Supplies & Services,Provisions,Bikold,14/11/2014,267.33
Customer Services,Catering,CASP,Supplies & Services,Provisions,Bikold,14/11/2014,260.9
Customer Services,Catering,CASP,Supplies & Services,Provisions,Bikold,14/11/2014,160.58
Customer Services,Catering,CASP,Supplies & Services,Provisions,Bikold,14/11/2014,105.64
Customer Services,Catering,CASP,Supplies & Services,Provisions,Bikold,14/11/2014,105.2
Customer Services,Catering,CASP,Supplies & Services,Provisions,Bikold,14/11/2014,342.01
Customer Services,Catering,CASP,Supplies & Services,Provisions,Bikold,14/11/2014,114.11
Customer Services,Catering,CASP,Supplies & Services,Provisions,Bikold,14/11/2014,101.88
Customer Services,Catering,CASP,Supplies & Services,Provisions,Bikold,14/11/2014,171.06
Customer Services,Catering,CASP,Supplies & Services,Provisions,Bikold,14/11/2014,198.42
Customer Services,Catering,CASP,Supplies & Services,Provisions,Bikold,14/11/2014,225.58
Customer Services,Catering,CASP,Supplies & Services,Provisions,Bikold,14/11/2014,106.46
Customer Services,Catering,CASP,Supplies & Services,Provisions,Bikold,14/11/2014,145.28
Customer Services,Catering,CASP,Supplies & Services,Provisions,Bikold,14/11/2014,129.64
Customer Services,Catering,CASP,Supplies & Services,Provisions,Bikold,14/11/2014,122.26
Customer Services,Catering,CASP,Supplies & Services,Provisions,Bikold,14/11/2014,106.42
Customer Services,Catering,CASP,Supplies & Services,Provisions,Bikold,14/11/2014,298.04
Customer Services,Catering,CASP,Supplies & Services,Provisions,Bikold,14/11/2014,239.19
Customer Services,Catering,CASP,Supplies & Services,Provisions,Bikold,14/11/2014,118.35
Customer Services,Catering,CASP,Supplies & Services,Provisions,Bikold,14/11/2014,243.11
Customer Services,Catering,CASP,Supplies & Services,Provisions,Bikold,14/11/2014,128.62
Customer Services,Catering,CASP,Supplies & Services,Provisions,Bikold,14/11/2014,158.96
Customer Services,Catering,CASP,Supplies & Services,Provisions,Bikold,14/11/2014,201.22
Customer Services,Catering,CASP,Supplies & Services,Provisions,Bikold,14/11/2014,157.27
Customer Services,Catering,CASP,Supplies & Services,Provisions,Bikold,14/11/2014,123.9
Customer Services,Catering,CASP,Supplies & Services,Provisions,Bikold,14/11/2014,436.67
Customer Services,Catering,CASP,Supplies & Services,Provisions,Bikold,14/11/2014,386.02
Customer Services,Catering,CASP,Supplies & Services,Provisions,Bikold,14/11/2014,127.74
Customer Services,Catering,CASP,Supplies & Services,Provisions,Bikold,14/11/2014,124.93
Customer Services,Catering,CASP,Supplies & Services,Provisions,Bikold,14/11/2014,223.47
Customer Services,Catering,CASP,Supplies & Services,Provisions,Bikold,14/11/2014,156.12
Customer Services,Catering,CASP,Supplies & Services,Provisions,Bikold,14/11/2014,106.21
Customer Services,Catering,CASP,Supplies & Services,Provisions,Bikold,14/11/2014,188.41
Customer Services,Catering,CASP,Supplies & Services,Provisions,Bikold,14/11/2014,107.14
Customer Services,Catering,CASP,Supplies & Services,Provisions,Bikold,14/11/2014,121.58
Customer Services,Catering,CASP,Supplies & Services,Provisions,Bikold,14/11/2014,263.27
Customer Services,Catering,CASP,Supplies & Services,Provisions,Bikold,14/11/2014,275.05
Customer Services,Catering,CASP,Supplies & Services,Provisions,Bikold,14/11/2014,261.5
Customer Services,Catering,CASP,Supplies & Services,Provisions,Bikold,14/11/2014,119.09
Customer Services,Catering,CASP,Supplies & Services,Provisions,Bikold,14/11/2014,129.75
Customer Services,Catering,CASP,Supplies & Services,Provisions,Bikold,14/11/2014,113.75
Customer Services,Catering,CASP,Supplies & Services,Provisions,Bikold,14/11/2014,192.72
Customer Services,Catering,CASP,Supplies & Services,Provisions,Bikold,14/11/2014,159.14
Customer Services,Catering,CASP,Supplies & Services,Provisions,Bikold,14/11/2014,154.81
Customer Services,Catering,CASP,Supplies & Services,Provisions,Bikold,14/11/2014,246.14
Customer Services,Catering,CASP,Supplies & Services,Provisions,Bikold,14/11/2014,135.28
Customer Services,Catering,CASP,Supplies & Services,Provisions,Bikold,14/11/2014,145.28
Customer Services,Catering,CASP,Supplies & Services,Provisions,Bikold,14/11/2014,253.07
Customer Services,Catering,CASP,Supplies & Services,Provisions,Bikold,14/11/2014,227.21
Customer Services,Catering,CASP,Supplies & Services,Provisions,Bikold,14/11/2014,215.03
Customer Services,Catering,CASP,Supplies & Services,Provisions,Bikold,14/11/2014,103.73
Customer Services,Catering,CASP,Supplies & Services,Provisions,Bikold,14/11/2014,306.71
Customer Services,Catering,CASP,Supplies & Services,Provisions,Bikold,14/11/2014,434.84
Customer Services,Catering,CASP,Supplies & Services,Provisions,Bikold,14/11/2014,106.44
Customer Services,Catering,CASP,Supplies & Services,Provisions,Bikold,14/11/2014,167.25
Customer Services,Catering,CASP,Supplies & Services,Provisions,Bikold,14/11/2014,165.03
Customer Services,Catering,CASP,Supplies & Services,Provisions,Bikold,14/11/2014,173.49
Customer Services,Catering,CASP,Supplies & Services,Provisions,Bikold,14/11/2014,209.16
Customer Services,Catering,CASP,Supplies & Services,Provisions,Bikold,14/11/2014,130.74
Customer Services,Catering,CASP,Supplies & Services,Provisions,Bikold,14/11/2014,178.35
Customer Services,Catering,CASP,Supplies & Services,Provisions,Bikold,14/11/2014,158.55
Customer Services,Catering,CASP,Supplies & Services,Provisions,Bikold,14/11/2014,109.6
Customer Services,Catering,CASP,Supplies & Services,Provisions,Bikold,14/11/2014,134.82
Customer Services,Catering,CASP,Supplies & Services,Provisions,Bikold,14/11/2014,301.33
Customer Services,Catering,CASP,Supplies & Services,Provisions,Bikold,14/11/2014,243.03
Customer Services,Catering,CASP,Supplies & Services,Provisions,Bikold,14/11/2014,111.92
Customer Services,Catering,CASP,Supplies & Services,Provisions,Bikold,28/11/2014,105.63
Customer Services,Catering,CASP,Supplies & Services,Provisions,Bikold,28/11/2014,187.55
Customer Services,Catering,CASP,Supplies & Services,Provisions,Bikold,28/11/2014,273.15
Customer Services,Catering,CASP,Supplies & Services,Provisions,Bikold,28/11/2014,163.93
Customer Services,Catering,CASP,Supplies & Services,Provisions,Bikold,28/11/2014,128.69
Customer Services,Catering,CASP,Supplies & Services,Provisions,Bikold,28/11/2014,280.06
Customer Services,Catering,CASP,Supplies & Services,Provisions,Bikold,28/11/2014,147.83
Customer Services,Catering,CASP,Supplies & Services,Provisions,Bikold,28/11/2014,330.72
Customer Services,Catering,CASP,Supplies & Services,Provisions,Bikold,28/11/2014,210.4
Customer Services,Catering,CASP,Supplies & Services,Provisions,Bikold,28/11/2014,235.45
Customer Services,Catering,CASP,Supplies & Services,Provisions,Bikold,28/11/2014,141.78
Customer Services,Catering,CASP,Supplies & Services,Provisions,Bikold,28/11/2014,127.13
Customer Services,Catering,CASP,Supplies & Services,Provisions,Bikold,28/11/2014,288.02
Customer Services,Catering,CASP,Supplies & Services,Provisions,Bikold,28/11/2014,157.59
Customer Services,Catering,CASP,Supplies & Services,Provisions,Bikold,28/11/2014,165.65
Customer Services,Catering,CASP,Supplies & Services,Provisions,Bikold,28/11/2014,157.98
Customer Services,Catering,CASP,Supplies & Services,Provisions,Bikold,28/11/2014,169.7
Customer Services,Catering,CASP,Supplies & Services,Provisions,Bikold,28/11/2014,116.24
Customer Services,Catering,CASP,Supplies & Services,Provisions,Bikold,28/11/2014,132.53
Customer Services,Catering,CASP,Supplies & Services,Provisions,Bikold,28/11/2014,170.4
Customer Services,Catering,CASP,Supplies & Services,Provisions,Bikold,28/11/2014,304.47
Customer Services,Catering,CASP,Supplies & Services,Provisions,Bikold,28/11/2014,138.86
Customer Services,Catering,CASP,Supplies & Services,Provisions,Bikold,28/11/2014,274.15
Customer Services,Catering,CASP,Supplies & Services,Provisions,Bikold,28/11/2014,114.24
Customer Services,Catering,CASP,Supplies & Services,Provisions,Bikold,28/11/2014,131.97
Customer Services,Catering,CASP,Supplies & Services,Provisions,Bikold,28/11/2014,275.41
Customer Services,Catering,CASP,Supplies & Services,Provisions,Bikold,28/11/2014,296.78
Customer Services,Catering,CASP,Supplies & Services,Provisions,Bikold,28/11/2014,192.54
Customer Services,Catering,CASP,Supplies & Services,Provisions,Bikold,28/11/2014,135.21
Customer Services,Catering,CASP,Supplies & Services,Provisions,Bikold,28/11/2014,233.54
Customer Services,Catering,CASP,Supplies & Services,Provisions,Bikold,28/11/2014,210.49
Customer Services,Catering,CASP,Supplies & Services,Provisions,Bikold,28/11/2014,276.98
Customer Services,Catering,CASP,Supplies & Services,Provisions,Bikold,28/11/2014,129.78
Customer Services,Catering,CASP,Supplies & Services,Provisions,Bikold,28/11/2014,162.92
Customer Services,Catering,CASP,Supplies & Services,Provisions,Bikold,28/11/2014,163.45
Customer Services,Catering,CASP,Supplies & Services,Provisions,Bikold,28/11/2014,194.65
Customer Services,Catering,CASP,Supplies & Services,Provisions,Bikold,28/11/2014,151.51
Customer Services,Catering,CASP,Supplies & Services,Provisions,Bikold,28/11/2014,110.52
Customer Services,Catering,CASP,Supplies & Services,Provisions,Bikold,28/11/2014,142.35
Customer Services,Catering,CASP,Supplies & Services,Provisions,Bikold,28/11/2014,224.06
Customer Services,Catering,CASP,Supplies & Services,Provisions,Bikold,28/11/2014,506.44
Customer Services,Catering,CASP,Supplies & Services,Provisions,Bikold,28/11/2014,393.82
Customer Services,Catering,CASP,Supplies & Services,Provisions,Bikold,28/11/2014,163.6
Customer Services,Catering,CASP,Supplies & Services,Provisions,Bikold,28/11/2014,216.54
Customer Services,Catering,CASP,Supplies & Services,Provisions,Bikold,28/11/2014,108.32
Customer Services,Catering,CASP,Supplies & Services,Provisions,Bikold,28/11/2014,160.82
Customer Services,Catering,CASP,Supplies & Services,Provisions,Bikold,28/11/2014,104.91
Customer Services,Catering,CASP,Supplies & Services,Provisions,Bikold,28/11/2014,179.68
Customer Services,Catering,CASP,Supplies & Services,Provisions,Bikold,28/11/2014,106.43
Customer Services,Catering,CASP,Supplies & Services,Provisions,Bikold,28/11/2014,251.87
Customer Services,Catering,CASP,Supplies & Services,Provisions,Bikold,28/11/2014,128.15
Customer Services,Catering,CASP,Supplies & Services,Provisions,Bikold,28/11/2014,194.47
Customer Services,Catering,CASP,Supplies & Services,Provisions,Bikold,28/11/2014,182.31
Customer Services,Catering,CASP,Supplies & Services,Provisions,Bikold,28/11/2014,227.69
Customer Services,Catering,CASP,Supplies & Services,Provisions,Bikold,28/11/2014,102.49
Customer Services,Catering,CASP,Supplies & Services,Provisions,Bikold,28/11/2014,202.66
Customer Services,Catering,CASP,Supplies & Services,Provisions,Bikold,28/11/2014,117.7
Customer Services,Catering,CASP,Supplies & Services,Provisions,Bikold,28/11/2014,136.46
Customer Services,Catering,CASP,Supplies & Services,Provisions,Bikold,28/11/2014,118.39
Customer Services,Catering,CASP,Supplies & Services,Provisions,Bikold,28/11/2014,140
Customer Services,Catering,CASP,Supplies & Services,Provisions,Bikold,28/11/2014,132.3
Customer Services,Catering,CASP,Supplies & Services,Provisions,Bikold,28/11/2014,126.57
Customer Services,Catering,CASP,Supplies & Services,Provisions,Bikold,28/11/2014,149.89
Customer Services,Catering,CASP,Supplies & Services,Provisions,Bikold,28/11/2014,313.63
Customer Services,Catering,CASP,Supplies & Services,Provisions,Bikold,28/11/2014,104.4
Customer Services,Catering,CASP,Supplies & Services,Provisions,Bikold,28/11/2014,120.35
Customer Services,Catering,CASP,Supplies & Services,Provisions,Bikold,28/11/2014,383.75
Customer Services,Catering,CASP,Supplies & Services,Provisions,Bikold,28/11/2014,327.33
Customer Services,Catering,CASP,Supplies & Services,Provisions,Bikold,28/11/2014,313.85
Customer Services,Catering,CASP,Supplies & Services,Provisions,Bikold,28/11/2014,107.05
Customer Services,Catering,CASP,Supplies & Services,Provisions,Bikold,28/11/2014,186.01
Customer Services,Catering,CASP,Supplies & Services,Provisions,Bikold,28/11/2014,207.89
Customer Services,Catering,CASP,Supplies & Services,Provisions,Bikold,28/11/2014,110.44
Customer Services,Catering,CASP,Supplies & Services,Provisions,Bikold,28/11/2014,108.27
Customer Services,Catering,CASP,Supplies & Services,Provisions,Bikold,28/11/2014,122.47
Customer Services,Catering,CASP,Supplies & Services,Provisions,Bikold,28/11/2014,294.03
Customer Services,Catering,CASP,Supplies & Services,Provisions,Bikold,28/11/2014,102.75
Customer Services,Catering,CASP,Supplies & Services,Provisions,Bikold,28/11/2014,341.35
Customer Services,Catering,CASP,Supplies & Services,Provisions,Bikold,28/11/2014,316.64
Customer Services,Catering,CASP,Supplies & Services,Provisions,Bikold,28/11/2014,219.29
Customer Services,Catering,CASP,Supplies & Services,Provisions,Bikold,28/11/2014,172.33
Customer Services,Catering,CASP,Supplies & Services,Provisions,Bikold,28/11/2014,139.34
Customer Services,Catering,CASP,Supplies & Services,Provisions,Bikold,28/11/2014,102.06
Customer Services,Catering,CASP,Supplies & Services,Provisions,Bikold,28/11/2014,193.21
Customer Services,Catering,CASP,Supplies & Services,Provisions,Bikold,28/11/2014,134.25
Customer Services,Catering,CASP,Supplies & Services,Provisions,Bikold,10/11/2014,188.46
Customer Services,Catering,CASP,Supplies & Services,Provisions,Bikold,21/11/2014,233.7
Customer Services,Catering,CASP,Supplies & Services,Provisions,Bikold,21/11/2014,195.96
Customer Services,Catering,CASP,Supplies & Services,Provisions,Bikold,21/11/2014,209.37
Customer Services,Catering,CASP,Supplies & Services,Provisions,Bikold,21/11/2014,-144.92
Customer Services,Catering,CASP,Supplies & Services,Provisions,Bikold,21/11/2014,123.32
Customer Services,Catering,CASP,Supplies & Services,Provisions,Bikold,21/11/2014,238.22
Customer Services,Catering,CASP,Supplies & Services,Provisions,Bikold,21/11/2014,180.62
Customer Services,Catering,CASP,Supplies & Services,Provisions,Bikold,21/11/2014,168.66
Customer Services,Catering,CASP,Supplies & Services,Provisions,Bikold,21/11/2014,101.27
Customer Services,Catering,CASP,Supplies & Services,Provisions,Bikold,21/11/2014,229.85
Customer Services,Catering,CASP,Supplies & Services,Provisions,Bikold,21/11/2014,113.35
Customer Services,Catering,CASP,Supplies & Services,Provisions,Bikold,21/11/2014,120.48
Customer Services,Catering,CASP,Supplies & Services,Provisions,Bikold,21/11/2014,236.17
Customer Services,Catering,CASP,Supplies & Services,Provisions,Bikold,21/11/2014,164.49
Customer Services,Catering,CASP,Supplies & Services,Provisions,Bikold,21/11/2014,127.37
Customer Services,Catering,CASP,Supplies & Services,Provisions,Bikold,21/11/2014,115.47
Customer Services,Catering,CASP,Supplies & Services,Provisions,Bikold,21/11/2014,130.84
Customer Services,Catering,CASP,Supplies & Services,Provisions,Bikold,21/11/2014,166.81
Customer Services,Catering,CASP,Supplies & Services,Provisions,Bikold,21/11/2014,162.96
Customer Services,Catering,CASP,Supplies & Services,Provisions,Bikold,21/11/2014,195.2
Customer Services,Catering,CASP,Supplies & Services,Provisions,Bikold,21/11/2014,212.15
Customer Services,Catering,CASP,Supplies & Services,Provisions,Bikold,21/11/2014,126.29
Customer Services,Catering,CASP,Supplies & Services,Provisions,Bikold,21/11/2014,109.64
Customer Services,Catering,CASP,Supplies & Services,Provisions,Bikold,21/11/2014,248.89
Customer Services,Catering,CASP,Supplies & Services,Provisions,Bikold,21/11/2014,147.68
Customer Services,Catering,CASP,Supplies & Services,Provisions,Bikold,21/11/2014,103.3
Customer Services,Catering,CASP,Supplies & Services,Provisions,Bikold,21/11/2014,130.28
Customer Services,Catering,CASP,Supplies & Services,Provisions,Bikold,21/11/2014,576.51
Customer Services,Catering,CASP,Supplies & Services,Provisions,Bikold,21/11/2014,136.47
Customer Services,Catering,CASP,Supplies & Services,Provisions,Bikold,21/11/2014,512.47
Customer Services,Catering,CASP,Supplies & Services,Provisions,Bikold,21/11/2014,197.94
Customer Services,Catering,CASP,Supplies & Services,Provisions,Bikold,21/11/2014,169.49
Customer Services,Catering,CASP,Supplies & Services,Provisions,Bikold,21/11/2014,252.58
Customer Services,Catering,CASP,Supplies & Services,Provisions,Bikold,21/11/2014,302.02
Customer Services,Catering,CASP,Supplies & Services,Provisions,Bikold,21/11/2014,223.89
Customer Services,Catering,CASP,Supplies & Services,Provisions,Bikold,21/11/2014,162.70
Customer Services,Catering,CASP,Supplies & Services,Provisions,Bikold,21/11/2014,100.93
Customer Services,Catering,CASP,Supplies & Services,Provisions,Bikold,21/11/2014,197.56
Customer Services,Catering,CASP,Supplies & Services,Provisions,Bikold,21/11/2014,179.64
Customer Services,Catering,CASP,Supplies & Services,Provisions,Bikold,21/11/2014,187.08
Customer Services,Catering,CASP,Supplies & Services,Provisions,Bikold,21/11/2014,225.52
Customer Services,Catering,CASP,Supplies & Services,Provisions,Bikold,21/11/2014,400.30
Customer Services,Catering,CASP,Supplies & Services,Provisions,Bikold,21/11/2014,143.30
Customer Services,Catering,CASP,Supplies & Services,Provisions,Bikold,21/11/2014,131.03
Customer Services,Catering,CASP,Supplies & Services,Provisions,Bikold,21/11/2014,104.60
Customer Services,Catering,CASP,Supplies & Services,Provisions,Bikold,21/11/2014,103.04
Customer Services,Catering,CASP,Supplies & Services,Provisions,Bikold,21/11/2014,254.07
Customer Services,Catering,CASP,Supplies & Services,Provisions,Bikold,21/11/2014,164.52
Customer Services,Catering,CASP,Supplies & Services,Provisions,Bikold,21/11/2014,101.97
Customer Services,Catering,CASP,Supplies & Services,Provisions,Bikold,21/11/2014,166.87
Customer Services,Catering,CASP,Supplies & Services,Provisions,Bikold,21/11/2014,161.81
Customer Services,Catering,CASP,Supplies & Services,Provisions,Bikold,21/11/2014,109.32
Customer Services,Catering,CASP,Supplies & Services,Provisions,Bikold,21/11/2014,121.62
Customer Services,Catering,CASP,Supplies & Services,Provisions,Bikold,21/11/2014,322.59
Customer Services,Catering,CASP,Supplies & Services,Provisions,Bikold,21/11/2014,143.22
Customer Services,Catering,CASP,Supplies & Services,Provisions,Bikold,21/11/2014,102.40
Customer Services,Catering,CASP,Supplies & Services,Provisions,Bikold,21/11/2014,351.03
Customer Services,Catering,CASP,Supplies & Services,Provisions,Bikold,21/11/2014,216.06
Customer Services,Catering,CASP,Supplies & Services,Provisions,Bikold,21/11/2014,205.91
Customer Services,Catering,CASP,Supplies & Services,Provisions,Bikold,21/11/2014,210.07
Customer Services,Catering,CASP,Supplies & Services,Provisions,Bikold,21/11/2014,238.17
Customer Services,Catering,CASP,Supplies & Services,Provisions,Bikold,10/11/2014,265.23
Customer Services,Catering,CASP,Supplies & Services,Provisions,Bikold,10/11/2014,337.96
Customer Services,Catering,CASP,Supplies & Services,Provisions,Bikold,10/11/2014,289.74
Customer Services,Catering,CASP,Supplies & Services,Provisions,Bikold,10/11/2014,365.37
Customer Services,Catering,CASP,Supplies & Services,Provisions,Bikold,10/11/2014,190.33
Customer Services,Catering,CASP,Supplies & Services,Provisions,Bikold,10/11/2014,277.12
Customer Services,Catering,CASP,Supplies & Services,Provisions,Bikold,10/11/2014,212.49
Customer Services,Catering,CASP,Supplies & Services,Provisions,Bikold,10/11/2014,356.84
Customer Services,Catering,CASP,Supplies & Services,Provisions,Bikold,10/11/2014,101.35
Customer Services,Catering,CASP,Supplies & Services,Provisions,Bikold,10/11/2014,281.76
Customer Services,Catering,CASP,Supplies & Services,Provisions,Bikold,10/11/2014,379.36
Customer Services,Catering,CASP,Supplies & Services,Provisions,Bikold,10/11/2014,121.83
Customer Services,Catering,CASP,Supplies & Services,Provisions,Bikold,10/11/2014,196.32
Customer Services,Catering,CASP,Supplies & Services,Provisions,Bikold,10/11/2014,144.91
Customer Services,Catering,CASP,Supplies & Services,Provisions,Bikold,10/11/2014,110.25
Customer Services,Catering,CASP,Supplies & Services,Provisions,Bikold,10/11/2014,143.04
Customer Services,Catering,CASP,Supplies & Services,Provisions,Bikold,10/11/2014,225.29
Customer Services,Catering,CASP,Supplies & Services,Provisions,Bikold,10/11/2014,170.87
Customer Services,Catering,CASP,Supplies & Services,Provisions,Bikold,10/11/2014,106.27
Customer Services,Catering,CASP,Supplies & Services,Provisions,Bikold,10/11/2014,302.85
Customer Services,Catering,CASP,Supplies & Services,Provisions,Bikold,10/11/2014,273.27
Customer Services,Catering,CASP,Supplies & Services,Provisions,Bikold,10/11/2014,202.17
Customer Services,Catering,CASP,Supplies & Services,Provisions,Bikold,10/11/2014,-119.37
Customer Services,Catering,CASP,Supplies & Services,Provisions,Bikold,10/11/2014,170.86
Customer Services,Catering,CASP,Supplies & Services,Provisions,Bikold,10/11/2014,128.55
Customer Services,Catering,CASP,Supplies & Services,Provisions,Bikold,10/11/2014,149.27
Customer Services,Catering,CASP,Supplies & Services,Provisions,Bikold,10/11/2014,134.84
Customer Services,Catering,CASP,Supplies & Services,Provisions,Bikold,10/11/2014,149.26
Customer Services,Catering,CASP,Supplies & Services,Provisions,Bikold,10/11/2014,211.11
Customer Services,Catering,CASP,Supplies & Services,Provisions,Bikold,10/11/2014,263.97
Customer Services,Catering,CASP,Supplies & Services,Provisions,Bikold,10/11/2014,105.64
Customer Services,Catering,CASP,Supplies & Services,Provisions,Bikold,10/11/2014,156.54
Customer Services,Catering,CASP,Supplies & Services,Provisions,Bikold,10/11/2014,167.88
Customer Services,Catering,CASP,Supplies & Services,Provisions,Bikold,10/11/2014,102.32
Customer Services,Catering,CASP,Supplies & Services,Provisions,Bikold,10/11/2014,213.82
Customer Services,Catering,CASP,Supplies & Services,Provisions,Bikold,10/11/2014,137.2
Customer Services,Catering,CASP,Supplies & Services,Provisions,Bikold,10/11/2014,287.57
Customer Services,Catering,CASP,Supplies & Services,Provisions,Bikold,10/11/2014,265.92
Customer Services,Catering,CASP,Supplies & Services,Provisions,Bikold,10/11/2014,127.44
Customer Services,Catering,CASP,Supplies & Services,Provisions,Bikold,10/11/2014,281.42
Customer Services,Catering,CASP,Supplies & Services,Provisions,Bikold,10/11/2014,174.01
Customer Services,Catering,CASP,Supplies & Services,Provisions,Bikold,10/11/2014,192.17
Customer Services,Catering,CASP,Supplies & Services,Provisions,Bikold,10/11/2014,103.8
Customer Services,Catering,CASP,Supplies & Services,Provisions,Bikold,10/11/2014,166.07
Customer Services,Catering,CASP,Supplies & Services,Provisions,Bikold,10/11/2014,102.51
Customer Services,Catering,CASP,Supplies & Services,Provisions,Bikold,10/11/2014,108.96
Customer Services,Catering,CASP,Supplies & Services,Provisions,Bikold,10/11/2014,144.05
Customer Services,Catering,CASP,Supplies & Services,Provisions,Bikold,10/11/2014,141.55
Customer Services,Catering,CASP,Supplies & Services,Provisions,Bikold,10/11/2014,108.14
Customer Services,Catering,CASP,Supplies & Services,Provisions,Bikold,10/11/2014,155.69
Customer Services,Catering,CASP,Supplies & Services,Provisions,Bikold,10/11/2014,107.7
Customer Services,Catering,CASP,Supplies & Services,Provisions,Bikold,10/11/2014,129.12
Customer Services,Catering,CASP,Supplies & Services,Provisions,Bikold,10/11/2014,104.08
Customer Services,Catering,CASP,Supplies & Services,Provisions,Bikold,10/11/2014,332.76
Customer Services,Catering,CASP,Supplies & Services,Provisions,Bikold,10/11/2014,103.21
Customer Services,Catering,CASP,Supplies & Services,Provisions,Bikold,10/11/2014,118.8
Customer Services,Catering,CASP,Supplies & Services,Provisions,Bikold,10/11/2014,104.42
Customer Services,Catering,CASP,Supplies & Services,Provisions,Bikold,10/11/2014,185.89
Customer Services,Catering,CASP,Supplies & Services,Provisions,Bikold,10/11/2014,301.45
Customer Services,Catering,CASP,Supplies & Services,Provisions,Bikold,10/11/2014,135.1
Customer Services,Catering,CASP,Supplies & Services,Provisions,Bikold,10/11/2014,151.86
Customer Services,Catering,CASP,Supplies & Services,Provisions,Bikold,10/11/2014,125.54
Customer Services,Catering,CASP,Supplies & Services,Provisions,Bikold,10/11/2014,189.01
Customer Services,Catering,CASP,Supplies & Services,Provisions,Bikold,10/11/2014,180.92
Customer Services,Catering,CASP,Supplies & Services,Provisions,Bikold,10/11/2014,146.35
Customer Services,Catering,CASP,Supplies & Services,Provisions,Bikold,10/11/2014,297.34
Customer Services,Catering,CASP,Supplies & Services,Provisions,Bikold,10/11/2014,119.27
Customer Services,Catering,CASP,Supplies & Services,Provisions,Bikold,10/11/2014,171.35
Customer Services,Catering,CASP,Supplies & Services,Provisions,Bikold,10/11/2014,228.60
Customer Services,Catering,CASP,Supplies & Services,Provisions,Bikold,10/11/2014,169.28
Customer Services,Catering,CASP,Supplies & Services,Provisions,Bikold,10/11/2014,115.93
Customer Services,Catering,CASP,Supplies & Services,Provisions,Bikold,10/11/2014,103.98
Customer Services,Catering,CASP,Supplies & Services,Provisions,Bikold,10/11/2014,259.82
Customer Services,Catering,CASP,Supplies & Services,Provisions,Bikold,10/11/2014,180.21
Customer Services,Catering,CASP,Supplies & Services,Provisions,Bikold,10/11/2014,129.98
Customer Services,Catering,CASP,Supplies & Services,Provisions,Bikold,10/11/2014,184.17
Customer Services,Catering,CASP,Supplies & Services,Provisions,Bikold,10/11/2014,107.1
Customer Services,Catering,CASP,Supplies & Services,Provisions,Bikold,10/11/2014,157.18
Customer Services,Catering,CASP,Supplies & Services,Provisions,Bikold,10/11/2014,126.83
Customer Services,Catering,CASP,Supplies & Services,Provisions,Bikold,10/11/2014,415.81
Customer Services,Catering,CASP,Supplies & Services,Provisions,Bikold,10/11/2014,149.72
Customer Services,Catering,CASP,Supplies & Services,Provisions,Bikold,10/11/2014,106.12
Customer Services,Catering,CASP,Supplies & Services,Provisions,Bikold,10/11/2014,363.43
Customer Services,Catering,CASP,Supplies & Services,Provisions,Bikold,10/11/2014,207.42
Customer Services,Catering,CASP,Supplies & Services,Provisions,Bikold,10/11/2014,100.11
Customer Services,Catering,CASP,Supplies & Services,Provisions,Bikold,10/11/2014,230.51
Customer Services,Catering,CASP,Supplies & Services,Provisions,Bikold,10/11/2014,365.49
Customer Services,Catering,CASP,Supplies & Services,Provisions,Bikold,10/11/2014,158.64
Customer Services,Catering,CASP,Supplies & Services,Provisions,Bikold,10/11/2014,265.76
Customer Services,Catering,CASP,Supplies & Services,Provisions,Bikold,10/11/2014,141.89
Customer Services,Catering,CASP,Supplies & Services,Provisions,Bikold,10/11/2014,281.84
Customer Services,Catering,CASP,Supplies & Services,Provisions,John Sheppard Catering Butchers,19/11/2014,183.39
Customer Services,Catering,CASP,Supplies & Services,Provisions,John Sheppard Catering Butchers,19/11/2014,151.66
Customer Services,Catering,CASP,Supplies & Services,Provisions,John Sheppard Catering Butchers,19/11/2014,157.53
Customer Services,Catering,CASP,Supplies & Services,Provisions,John Sheppard Catering Butchers,19/11/2014,244.19
Customer Services,Catering,CASP,Supplies & Services,Provisions,John Sheppard Catering Butchers,19/11/2014,187.88
Customer Services,Catering,CASP,Supplies & Services,Provisions,John Sheppard Catering Butchers,19/11/2014,202.46
Customer Services,Catering,CASP,Supplies & Services,Provisions,John Sheppard Catering Butchers,19/11/2014,128.04
Customer Services,Catering,CASP,Supplies & Services,Provisions,John Sheppard Catering Butchers,19/11/2014,219.19
Customer Services,Catering,CASP,Supplies & Services,Provisions,John Sheppard Catering Butchers,19/11/2014,264.12
Customer Services,Catering,CASP,Supplies & Services,Provisions,John Sheppard Catering Butchers,19/11/2014,361.6
Customer Services,Catering,CASP,Supplies & Services,Provisions,John Sheppard Catering Butchers,19/11/2014,148.79
Customer Services,Catering,CASP,Supplies & Services,Provisions,John Sheppard Catering Butchers,19/11/2014,133.17
Customer Services,Catering,CASP,Supplies & Services,Provisions,John Sheppard Catering Butchers,19/11/2014,176.9
Customer Services,Catering,CASP,Supplies & Services,Provisions,John Sheppard Catering Butchers,19/11/2014,104.7
Customer Services,Catering,CASP,Supplies & Services,Provisions,John Sheppard Catering Butchers,19/11/2014,191.1
Customer Services,Catering,CASP,Supplies & Services,Provisions,John Sheppard Catering Butchers,19/11/2014,205.81
Customer Services,Catering,CASP,Supplies & Services,Provisions,John Sheppard Catering Butchers,19/11/2014,108.35
Customer Services,Catering,CASP,Supplies & Services,Provisions,John Sheppard Catering Butchers,19/11/2014,127.5
Customer Services,Catering,CASP,Supplies & Services,Provisions,John Sheppard Catering Butchers,19/11/2014,136.37
Customer Services,Catering,CASP,Supplies & Services,Provisions,John Sheppard Catering Butchers,19/11/2014,131.25
Customer Services,Catering,CASP,Supplies & Services,Provisions,John Sheppard Catering Butchers,19/11/2014,130.94
Customer Services,Catering,CASP,Supplies & Services,Provisions,John Sheppard Catering Butchers,19/11/2014,134.94
Customer Services,Catering,CASP,Supplies & Services,Provisions,John Sheppard Catering Butchers,19/11/2014,147.6
Customer Services,Catering,CASP,Supplies & Services,Provisions,John Sheppard Catering Butchers,26/11/2014,235.29
Customer Services,Catering,CASP,Supplies & Services,Provisions,John Sheppard Catering Butchers,26/11/2014,116.46
Customer Services,Catering,CASP,Supplies & Services,Provisions,John Sheppard Catering Butchers,26/11/2014,162.95
Customer Services,Catering,CASP,Supplies & Services,Provisions,John Sheppard Catering Butchers,26/11/2014,169.51
Customer Services,Catering,CASP,Supplies & Services,Provisions,John Sheppard Catering Butchers,26/11/2014,115.72
Customer Services,Catering,CASP,Supplies & Services,Provisions,John Sheppard Catering Butchers,26/11/2014,135.37
Customer Services,Catering,CASP,Supplies & Services,Provisions,John Sheppard Catering Butchers,26/11/2014,181.73
Customer Services,Catering,CASP,Supplies & Services,Provisions,John Sheppard Catering Butchers,26/11/2014,154.75
Customer Services,Catering,CASP,Supplies & Services,Provisions,John Sheppard Catering Butchers,26/11/2014,128.15
Customer Services,Catering,CASP,Supplies & Services,Provisions,John Sheppard Catering Butchers,26/11/2014,147.97
Customer Services,Catering,CASP,Supplies & Services,Provisions,John Sheppard Catering Butchers,26/11/2014,136.68
Customer Services,Catering,CASP,Supplies & Services,Provisions,John Sheppard Catering Butchers,26/11/2014,281.54
Customer Services,Catering,CASP,Supplies & Services,Provisions,John Sheppard Catering Butchers,26/11/2014,111.33
Customer Services,Catering,CASP,Supplies & Services,Provisions,John Sheppard Catering Butchers,26/11/2014,-259.65
Customer Services,Catering,CASP,Supplies & Services,Provisions,John Sheppard Catering Butchers,26/11/2014,224.72
Customer Services,Catering,CASP,Supplies & Services,Provisions,John Sheppard Catering Butchers,26/11/2014,169.82
Customer Services,Catering,CASP,Supplies & Services,Provisions,John Sheppard Catering Butchers,26/11/2014,147.97
Customer Services,Catering,CASP,Supplies & Services,Provisions,John Sheppard Catering Butchers,26/11/2014,126.5
Customer Services,Catering,CASP,Supplies & Services,Provisions,John Sheppard Catering Butchers,26/11/2014,139.01
Customer Services,Catering,CASP,Supplies & Services,Provisions,John Sheppard Catering Butchers,26/11/2014,179.31
Customer Services,Catering,CASP,Supplies & Services,Provisions,John Sheppard Catering Butchers,26/11/2014,263.35
Customer Services,Catering,CASP,Supplies & Services,Provisions,John Sheppard Catering Butchers,26/11/2014,132.52
Customer Services,Catering,CASP,Supplies & Services,Provisions,John Sheppard Catering Butchers,26/11/2014,153.28
Customer Services,Catering,CASP,Supplies & Services,Provisions,John Sheppard Catering Butchers,04/11/2014,137.09
Customer Services,Catering,CASP,Supplies & Services,Provisions,John Sheppard Catering Butchers,04/11/2014,229.69
Customer Services,Catering,CASP,Supplies & Services,Provisions,John Sheppard Catering Butchers,04/11/2014,181.76
Customer Services,Catering,CASP,Supplies & Services,Provisions,John Sheppard Catering Butchers,04/11/2014,119.18
Customer Services,Catering,CASP,Supplies & Services,Provisions,John Sheppard Catering Butchers,04/11/2014,169.05
Customer Services,Catering,CASP,Supplies & Services,Provisions,John Sheppard Catering Butchers,04/11/2014,-114
Customer Services,Catering,CASP,Supplies & Services,Provisions,John Sheppard Catering Butchers,04/11/2014,190.4
Customer Services,Catering,CASP,Supplies & Services,Provisions,John Sheppard Catering Butchers,04/11/2014,136
Customer Services,Catering,CASP,Supplies & Services,Provisions,John Sheppard Catering Butchers,04/11/2014,105.65
Customer Services,Catering,CASP,Supplies & Services,Provisions,John Sheppard Catering Butchers,04/11/2014,130.2
Customer Services,Catering,CASP,Supplies & Services,Provisions,John Sheppard Catering Butchers,04/11/2014,103.9
Customer Services,Catering,CASP,Supplies & Services,Provisions,John Sheppard Catering Butchers,04/11/2014,219.28
Customer Services,Catering,CASP,Supplies & Services,Provisions,John Sheppard Catering Butchers,04/11/2014,138.38
Customer Services,Catering,CASP,Supplies & Services,Provisions,John Sheppard Catering Butchers,04/11/2014,147.6
Customer Services,Catering,CASP,Supplies & Services,Provisions,John Sheppard Catering Butchers,04/11/2014,109.73
Customer Services,Catering,CASP,Supplies & Services,Provisions,John Sheppard Catering Butchers,04/11/2014,303.47
Customer Services,Catering,CASP,Supplies & Services,Provisions,John Sheppard Catering Butchers,04/11/2014,223.84
Customer Services,Catering,CASP,Supplies & Services,Provisions,John Sheppard Catering Butchers,04/11/2014,148.82
Customer Services,Catering,CASP,Supplies & Services,Provisions,John Sheppard Catering Butchers,04/11/2014,156.12
Customer Services,Catering,CASP,Supplies & Services,Provisions,John Sheppard Catering Butchers,04/11/2014,266.17
Customer Services,Catering,CASP,Supplies & Services,Provisions,John Sheppard Catering Butchers,04/11/2014,247.37
Customer Services,Catering,CASP,Supplies & Services,Provisions,John Sheppard Catering Butchers,04/11/2014,396.14
Customer Services,Catering,CASP,Supplies & Services,Provisions,John Sheppard Catering Butchers,04/11/2014,114.82
Customer Services,Catering,CASP,Supplies & Services,Provisions,John Sheppard Catering Butchers,04/11/2014,152.88
Customer Services,Catering,CASP,Supplies & Services,Provisions,John Sheppard Catering Butchers,04/11/2014,113.41
Customer Services,Catering,CASP,Supplies & Services,Provisions,John Sheppard Catering Butchers,04/11/2014,110.94
Customer Services,Catering,CASP,Supplies & Services,Provisions,John Sheppard Catering Butchers,07/11/2014,-147.6
Customer Services,Catering,CASP,Supplies & Services,Provisions,John Sheppard Catering Butchers,07/11/2014,-109.73
Customer Services,Catering,CASP,Supplies & Services,Provisions,John Sheppard Catering Butchers,07/11/2014,-303.47
Customer Services,Catering,CASP,Supplies & Services,Provisions,John Sheppard Catering Butchers,07/11/2014,-223.84
Customer Services,Catering,CASP,Supplies & Services,Provisions,John Sheppard Catering Butchers,07/11/2014,-148.82
Customer Services,Catering,CASP,Supplies & Services,Provisions,John Sheppard Catering Butchers,07/11/2014,-152.88
Customer Services,Catering,CASP,Supplies & Services,Provisions,John Sheppard Catering Butchers,07/11/2014,-103.9
Customer Services,Catering,CASP,Supplies & Services,Provisions,John Sheppard Catering Butchers,07/11/2014,-113.41
Customer Services,Catering,CASP,Supplies & Services,Provisions,John Sheppard Catering Butchers,07/11/2014,-110.94
Customer Services,Catering,CASP,Supplies & Services,Provisions,John Sheppard Catering Butchers,07/11/2014,-219.28
Customer Services,Catering,CASP,Supplies & Services,Provisions,John Sheppard Catering Butchers,07/11/2014,114
Customer Services,Catering,CASP,Supplies & Services,Provisions,John Sheppard Catering Butchers,07/11/2014,-138.38
Customer Services,Catering,CASP,Supplies & Services,Provisions,John Sheppard Catering Butchers,07/11/2014,-156.12
Customer Services,Catering,CASP,Supplies & Services,Provisions,John Sheppard Catering Butchers,07/11/2014,-266.17
Customer Services,Catering,CASP,Supplies & Services,Provisions,John Sheppard Catering Butchers,07/11/2014,-247.37
Customer Services,Catering,CASP,Supplies & Services,Provisions,John Sheppard Catering Butchers,07/11/2014,-396.14
Customer Services,Catering,CASP,Supplies & Services,Provisions,John Sheppard Catering Butchers,07/11/2014,-114.82
Customer Services,Catering,CASP,Supplies & Services,Provisions,John Sheppard Catering Butchers,07/11/2014,-190.4
Customer Services,Catering,CASP,Supplies & Services,Provisions,John Sheppard Catering Butchers,07/11/2014,-136
Customer Services,Catering,CASP,Supplies & Services,Provisions,John Sheppard Catering Butchers,07/11/2014,-105.65
Customer Services,Catering,CASP,Supplies & Services,Provisions,John Sheppard Catering Butchers,07/11/2014,-130.2
Customer Services,Catering,CASP,Supplies & Services,Provisions,ROWLANDS & COMPANY,26/11/2014,163.39
Customer Services,Catering,CASP,Supplies & Services,Provisions,ROWLANDS & COMPANY,26/11/2014,104.45
Customer Services,Catering,CASP,Supplies & Services,Provisions,ROWLANDS & COMPANY,19/11/2014,163.43
Customer Services,Catering,CASP,Supplies & Services,Provisions,ROWLANDS & COMPANY,19/11/2014,108.49
Customer Services,Catering,CASP,Supplies & Services,Provisions,ROWLANDS & COMPANY,19/11/2014,149.57
Customer Services,Catering,CASP,Supplies & Services,Provisions,ROWLANDS & COMPANY,19/11/2014,129.27
Customer Services,Catering,CASP,Supplies & Services,Provisions,ROWLANDS & COMPANY,19/11/2014,132.83
Customer Services,Catering,CASP,Supplies & Services,Provisions,ROWLANDS & COMPANY,19/11/2014,102.55
Customer Services,Catering,CASP,Supplies & Services,Provisions,ROWLANDS & COMPANY,19/11/2014,163.9
Customer Services,Catering,CASP,Supplies & Services,Provisions,ROWLANDS & COMPANY,19/11/2014,120.46
Customer Services,Catering,CASP,Supplies & Services,Provisions,ROWLANDS & COMPANY,19/11/2014,131.73
Customer Services,Catering,CASP,Supplies & Services,Provisions,ROWLANDS & COMPANY,19/11/2014,127.91
Customer Services,Catering,CASP,Supplies & Services,Provisions,ROWLANDS & COMPANY,19/11/2014,102.56
Customer Services,Catering,CASP,Supplies & Services,Provisions,ROWLANDS & COMPANY,19/11/2014,102.39
Customer Services,Catering,CASP,Supplies & Services,Provisions,ROWLANDS & COMPANY,19/11/2014,109.4
Customer Services,Catering,CASP,Supplies & Services,Provisions,ROWLANDS & COMPANY,19/11/2014,113.81
Customer Services,Catering,CASP,Supplies & Services,Provisions,ROWLANDS & COMPANY,19/11/2014,158.72
Customer Services,Catering,CASP,Supplies & Services,Provisions,ROWLANDS & COMPANY,26/11/2014,104.9
Customer Services,Catering,CASP,Supplies & Services,Provisions,ROWLANDS & COMPANY,26/11/2014,187.8
Customer Services,Catering,CASP,Supplies & Services,Provisions,ROWLANDS & COMPANY,26/11/2014,112.84
Customer Services,Catering,CASP,Supplies & Services,Provisions,ROWLANDS & COMPANY,26/11/2014,115.31
Customer Services,Catering,CASP,Supplies & Services,Provisions,ROWLANDS & COMPANY,26/11/2014,161.78
Customer Services,Catering,CASP,Supplies & Services,Provisions,ROWLANDS & COMPANY,26/11/2014,141.75
Customer Services,Catering,CASP,Supplies & Services,Provisions,ROWLANDS & COMPANY,10/11/2014,116.04
Customer Services,Catering,CASP,Supplies & Services,Provisions,ROWLANDS & COMPANY,10/11/2014,144.62
Customer Services,Catering,CASP,Supplies & Services,Provisions,ROWLANDS & COMPANY,10/11/2014,109.12
Customer Services,Catering,CASP,Supplies & Services,Provisions,ROWLANDS & COMPANY,10/11/2014,134.91
Customer Services,Catering,CASP,Supplies & Services,Provisions,ROWLANDS & COMPANY,10/11/2014,145.26
Customer Services,Catering,CASP,Supplies & Services,Provisions,ROWLANDS & COMPANY,10/11/2014,101.94
Customer Services,Catering,CASP,Supplies & Services,Provisions,ROWLANDS & COMPANY,10/11/2014,127.51
Customer Services,Catering,CASP,Supplies & Services,Provisions,ROWLANDS & COMPANY,10/11/2014,122.07
Customer Services,Catering,CASP,Supplies & Services,Provisions,ROWLANDS & COMPANY,10/11/2014,117.62
Customer Services,Catering,CASP,Supplies & Services,Provisions,ROWLANDS & COMPANY,10/11/2014,123.05
Customer Services,Catering,CASP,Supplies & Services,Provisions,ROWLANDS & COMPANY,26/11/2014,136.79
Customer Services,Catering,CASP,Supplies & Services,Provisions,ROWLANDS & COMPANY,26/11/2014,104.81
Customer Services,Catering,CASP,Supplies & Services,Provisions,SMART FOOD,28/11/2014,152.8
Customer Services,Catering,CASP,Supplies & Services,Provisions,SMART FOOD,28/11/2014,183.8
Customer Services,Catering,CASP,Supplies & Services,Provisions,SMART FOOD,17/11/2014,152.80
Customer Services,Catering,CASP,Supplies & Services,Provisions,SMART FOOD,17/11/2014,413.00
Customer Services,Catering,CASS,Supplies & Services,Equipment - Repair,NATIONWIDE RETAIL SYSTEMS LTD,28/11/2014,299
Customer Services,Catering,CASS,Supplies & Services,Equipment - Repair,NATIONWIDE RETAIL SYSTEMS LTD,28/11/2014,1625.8
Customer Services,Catering,CASS,Supplies & Services,Provisions,BDO LLP Administrators for The Fabulous Bakin' Boys Ltd,05/11/2014,-216.2
Customer Services,Catering,CASS,Supplies & Services,Provisions,Bikold,14/11/2014,148.41
Customer Services,Catering,CASS,Supplies & Services,Provisions,Bikold,14/11/2014,109.65
Customer Services,Catering,CASS,Supplies & Services,Provisions,Bikold,14/11/2014,415.07
Customer Services,Catering,CASS,Supplies & Services,Provisions,Bikold,14/11/2014,197.21
Customer Services,Catering,CASS,Supplies & Services,Provisions,Bikold,14/11/2014,465.34
Customer Services,Catering,CASS,Supplies & Services,Provisions,Bikold,14/11/2014,134.95
Customer Services,Catering,CASS,Supplies & Services,Provisions,Bikold,14/11/2014,267.10
Customer Services,Catering,CASS,Supplies & Services,Provisions,Bikold,14/11/2014,189.35
Customer Services,Catering,CASS,Supplies & Services,Provisions,Bikold,14/11/2014,163.89
Customer Services,Catering,CASS,Supplies & Services,Provisions,Bikold,14/11/2014,145.04
Customer Services,Catering,CASS,Supplies & Services,Provisions,Bikold,14/11/2014,115.97
Customer Services,Catering,CASS,Supplies & Services,Provisions,Bikold,14/11/2014,542.33
Customer Services,Catering,CASS,Supplies & Services,Provisions,Bikold,14/11/2014,212.77
Customer Services,Catering,CASS,Supplies & Services,Provisions,Bikold,28/11/2014,176.46
Customer Services,Catering,CASS,Supplies & Services,Provisions,Bikold,28/11/2014,115.82
Customer Services,Catering,CASS,Supplies & Services,Provisions,Bikold,28/11/2014,272.71
Customer Services,Catering,CASS,Supplies & Services,Provisions,Bikold,28/11/2014,123.47
Customer Services,Catering,CASS,Supplies & Services,Provisions,Bikold,28/11/2014,159.81
Customer Services,Catering,CASS,Supplies & Services,Provisions,Bikold,28/11/2014,221.7
Customer Services,Catering,CASS,Supplies & Services,Provisions,Bikold,28/11/2014,133.76
Customer Services,Catering,CASS,Supplies & Services,Provisions,Bikold,28/11/2014,138.71
Customer Services,Catering,CASS,Supplies & Services,Provisions,Bikold,28/11/2014,346.92
Customer Services,Catering,CASS,Supplies & Services,Provisions,Bikold,28/11/2014,142.19
Customer Services,Catering,CASS,Supplies & Services,Provisions,Bikold,28/11/2014,561.61
Customer Services,Catering,CASS,Supplies & Services,Provisions,Bikold,28/11/2014,106.29
Customer Services,Catering,CASS,Supplies & Services,Provisions,Bikold,28/11/2014,184.45
Customer Services,Catering,CASS,Supplies & Services,Provisions,Bikold,28/11/2014,128.35
Customer Services,Catering,CASS,Supplies & Services,Provisions,Bikold,28/11/2014,183.19
Customer Services,Catering,CASS,Supplies & Services,Provisions,Bikold,28/11/2014,229.44
Customer Services,Catering,CASS,Supplies & Services,Provisions,Bikold,28/11/2014,197.09
Customer Services,Catering,CASS,Supplies & Services,Provisions,Bikold,28/11/2014,109.68
Customer Services,Catering,CASS,Supplies & Services,Provisions,Bikold,28/11/2014,173.9
Customer Services,Catering,CASS,Supplies & Services,Provisions,Bikold,10/11/2014,146.09
Customer Services,Catering,CASS,Supplies & Services,Provisions,Bikold,21/11/2014,139.76
Customer Services,Catering,CASS,Supplies & Services,Provisions,Bikold,21/11/2014,129.31
Customer Services,Catering,CASS,Supplies & Services,Provisions,Bikold,21/11/2014,108.11
Customer Services,Catering,CASS,Supplies & Services,Provisions,Bikold,21/11/2014,163.78
Customer Services,Catering,CASS,Supplies & Services,Provisions,Bikold,21/11/2014,205.04
Customer Services,Catering,CASS,Supplies & Services,Provisions,Bikold,21/11/2014,549.17
Customer Services,Catering,CASS,Supplies & Services,Provisions,Bikold,21/11/2014,126.26
Customer Services,Catering,CASS,Supplies & Services,Provisions,Bikold,21/11/2014,139.03
Customer Services,Catering,CASS,Supplies & Services,Provisions,Bikold,21/11/2014,496.95
Customer Services,Catering,CASS,Supplies & Services,Provisions,Bikold,21/11/2014,323.44
Customer Services,Catering,CASS,Supplies & Services,Provisions,Bikold,21/11/2014,300.43
Customer Services,Catering,CASS,Supplies & Services,Provisions,Bikold,21/11/2014,201.84
Customer Services,Catering,CASS,Supplies & Services,Provisions,Bikold,21/11/2014,111.81
Customer Services,Catering,CASS,Supplies & Services,Provisions,Bikold,21/11/2014,106.32
Customer Services,Catering,CASS,Supplies & Services,Provisions,Bikold,21/11/2014,145.51
Customer Services,Catering,CASS,Supplies & Services,Provisions,Bikold,21/11/2014,411.1
Customer Services,Catering,CASS,Supplies & Services,Provisions,Bikold,21/11/2014,119.17
Customer Services,Catering,CASS,Supplies & Services,Provisions,Bikold,10/11/2014,192.89
Customer Services,Catering,CASS,Supplies & Services,Provisions,Bikold,10/11/2014,750.28
Customer Services,Catering,CASS,Supplies & Services,Provisions,Bikold,10/11/2014,148.57
Customer Services,Catering,CASS,Supplies & Services,Provisions,Bikold,10/11/2014,242.84
Customer Services,Catering,CASS,Supplies & Services,Provisions,Bikold,10/11/2014,368.13
Customer Services,Catering,CASS,Supplies & Services,Provisions,Bikold,10/11/2014,207.69
Customer Services,Catering,CASS,Supplies & Services,Provisions,Bikold,10/11/2014,109.19
Customer Services,Catering,CASS,Supplies & Services,Provisions,Bikold,10/11/2014,107.86
Customer Services,Catering,CASS,Supplies & Services,Provisions,Bikold,10/11/2014,120.38
Customer Services,Catering,CASS,Supplies & Services,Provisions,Bikold,10/11/2014,203.72
Customer Services,Catering,CASS,Supplies & Services,Provisions,Bikold,10/11/2014,241.04
Customer Services,Catering,CASS,Supplies & Services,Provisions,Bikold,10/11/2014,170.69
Customer Services,Catering,CASS,Supplies & Services,Provisions,Bikold,10/11/2014,480.63
Customer Services,Catering,CASS,Supplies & Services,Provisions,Brambles Foods Ltd,10/11/2014,448.6
Customer Services,Catering,CASS,Supplies & Services,Provisions,Brambles Foods Ltd,17/11/2014,143.71
Customer Services,Catering,CASS,Supplies & Services,Provisions,Brambles Foods Ltd,17/11/2014,369.35
Customer Services,Catering,CASS,Supplies & Services,Provisions,John Sheppard Catering Butchers,26/11/2014,152.37
Customer Services,Catering,CASS,Supplies & Services,Provisions,John Sheppard Catering Butchers,04/11/2014,125.09
Customer Services,Catering,CASS,Supplies & Services,Provisions,On A Roll,28/11/2014,330.90
Customer Services,Catering,CASS,Supplies & Services,Provisions,On A Roll,28/11/2014,350.93
Customer Services,Catering,CASS,Supplies & Services,Provisions,On A Roll,28/11/2014,353.75
Customer Services,Catering,CASS,Supplies & Services,Provisions,On A Roll,28/11/2014,192.92
Customer Services,Catering,CASS,Supplies & Services,Provisions,On A Roll,28/11/2014,380.66
Customer Services,Catering,CASS,Supplies & Services,Provisions,On A Roll,28/11/2014,353.75
Customer Services,Catering,CASS,Supplies & Services,Provisions,On A Roll,17/11/2014,203.48
Customer Services,Catering,CASS,Supplies & Services,Provisions,On A Roll,17/11/2014,353.75
Customer Services,Catering,CASS,Supplies & Services,Provisions,On A Roll,17/11/2014,216.88
Customer Services,Catering,CASS,Supplies & Services,Provisions,On A Roll,17/11/2014,101.34
Customer Services,Catering,CASS,Supplies & Services,Provisions,On A Roll,17/11/2014,343.85
Customer Services,Catering,CASS,Supplies & Services,Provisions,On A Roll,17/11/2014,399.93
Customer Services,Catering,CASS,Supplies & Services,Provisions,On A Roll,17/11/2014,352.5
Customer Services,Catering,CASS,Supplies & Services,Provisions,RADNOR HILLS MINERAL WATER COMPANY LTD,28/11/2014,134.73
Customer Services,Catering,CASS,Supplies & Services,Provisions,RADNOR HILLS MINERAL WATER COMPANY LTD,28/11/2014,195.03
Customer Services,Catering,CASS,Supplies & Services,Provisions,RADNOR HILLS MINERAL WATER COMPANY LTD,28/11/2014,153.53
Customer Services,Catering,CASS,Supplies & Services,Provisions,RADNOR HILLS MINERAL WATER COMPANY LTD,28/11/2014,119.76
Customer Services,Catering,CASS,Supplies & Services,Provisions,RADNOR HILLS MINERAL WATER COMPANY LTD,28/11/2014,149.70
Customer Services,Catering,CASS,Supplies & Services,Provisions,RADNOR HILLS MINERAL WATER COMPANY LTD,28/11/2014,328.24
Customer Services,Catering,CASS,Supplies & Services,Provisions,RADNOR HILLS MINERAL WATER COMPANY LTD,28/11/2014,239.52
Customer Services,Catering,CASS,Supplies & Services,Provisions,RADNOR HILLS MINERAL WATER COMPANY LTD,17/11/2014,186.63
Customer Services,Catering,CASS,Supplies & Services,Provisions,RADNOR HILLS MINERAL WATER COMPANY LTD,17/11/2014,124.75
Customer Services,Catering,CASS,Supplies & Services,Provisions,RADNOR HILLS MINERAL WATER COMPANY LTD,17/11/2014,269
Customer Services,Catering,CASS,Supplies & Services,Provisions,RADNOR HILLS MINERAL WATER COMPANY LTD,17/11/2014,159.68
Customer Services,Catering,CASS,Supplies & Services,Provisions,SMART FOOD,28/11/2014,495.8
Customer Services,Catering,CASS,Supplies & Services,Provisions,SMART FOOD,28/11/2014,343.2
Customer Services,Catering,CASS,Supplies & Services,Provisions,SMART FOOD,28/11/2014,327
Customer Services,Catering,CASS,Supplies & Services,Provisions,Tasties of Chester Ltd,28/11/2014,372.88
Customer Services,Catering,CASS,Supplies & Services,Provisions,Tasties of Chester Ltd,10/11/2014,409.9
Customer Services,Catering,CASS,Supplies & Services,Provisions,Tasties of Chester Ltd,10/11/2014,101.7
Customer Services,Catering,CASS,Supplies & Services,Provisions,Tasties of Chester Ltd,17/11/2014,101.7
Customer Services,Catering,CASS,Supplies & Services,Provisions,Tasties of Chester Ltd,17/11/2014,409.9
Customer Services,Catering,CASS,Supplies & Services,Provisions,Tasties of Chester Ltd,17/11/2014,101.7
Customer Services,Catering,CASS,Supplies & Services,Provisions,Tasties of Chester Ltd,17/11/2014,506.98
Customer Services,Catering,CASS,Supplies & Services,Provisions,Tasties of Chester Ltd,24/11/2014,-405.28
Customer Services,Catering,CASS,Supplies & Services,Provisions,TROPICAL ICE,28/11/2014,185.00
Customer Services,Catering,CASS,Supplies & Services,Provisions,TROPICAL ICE,28/11/2014,360
Customer Services,Catering,CASS,Supplies & Services,Provisions,TROPICAL ICE,28/11/2014,150
Customer Services,Catering,CASS,Supplies & Services,Provisions,Willoughby (731) Ltd T/A The Fabulous Bakin' Boys,28/11/2014,166.88
Customer Services,Catering,CASS,Supplies & Services,Provisions,Willoughby (731) Ltd T/A The Fabulous Bakin' Boys,28/11/2014,125.1
Customer Services,Catering,CASS,Supplies & Services,Provisions,Willoughby (731) Ltd T/A The Fabulous Bakin' Boys,28/11/2014,156.45
Customer Services,Catering,CASS,Supplies & Services,Provisions,Willoughby (731) Ltd T/A The Fabulous Bakin' Boys,28/11/2014,110.22
Customer Services,Catering,CASS,Supplies & Services,Provisions,Willoughby (731) Ltd T/A The Fabulous Bakin' Boys,05/11/2014,216.2
Customer Services,Catering,CASX,Supplies & Services,Equipment - Repair,NATIONWIDE RETAIL SYSTEMS LTD,28/11/2014,2075
Customer Services,Catering,CASX,Supplies & Services,Provisions,Bikold,14/11/2014,189.81
Customer Services,Catering,CASX,Supplies & Services,Provisions,Bikold,14/11/2014,131.98
Customer Services,Catering,CASX,Supplies & Services,Provisions,Bikold,28/11/2014,114.87
Customer Services,Catering,CASX,Supplies & Services,Provisions,Bikold,28/11/2014,206
Customer Services,Catering,CASX,Supplies & Services,Provisions,Bikold,28/11/2014,181.29
Customer Services,Catering,CASX,Supplies & Services,Provisions,Bikold,21/11/2014,118.91
Customer Services,Catering,CASX,Supplies & Services,Provisions,Bikold,21/11/2014,208.52
Customer Services,Catering,CASX,Supplies & Services,Provisions,Bikold,21/11/2014,172.74
Customer Services,Catering,CASX,Supplies & Services,Provisions,Bikold,10/11/2014,116.21
Customer Services,Catering,CASX,Supplies & Services,Provisions,Bikold,10/11/2014,340.3
Customer Services,Catering,CASX,Supplies & Services,Provisions,Bikold,10/11/2014,160.48
Customer Services,Catering,CFAN,Capital Financing Costs,Operating Notice of Change � Lifecycle Charge,PYRAMID SCHOOLS (HADLEY) LTD,06/11/2014,7757.12
Customer Services,Catering,COMM,Supplies & Services,Provisions,Bikold,14/11/2014,129.73
Customer Services,Catering,COMM,Supplies & Services,Provisions,Bikold,14/11/2014,142.14
Customer Services,Catering,COMM,Supplies & Services,Provisions,Bikold,14/11/2014,146.17
Customer Services,Catering,COMM,Supplies & Services,Provisions,Bikold,28/11/2014,194.87
Customer Services,Catering,COMM,Supplies & Services,Provisions,Bikold,28/11/2014,274.47
Customer Services,Catering,COMM,Supplies & Services,Provisions,Bikold,28/11/2014,112.77
Customer Services,Catering,COMM,Supplies & Services,Provisions,Bikold,21/11/2014,105.93
Customer Services,Catering,COMM,Supplies & Services,Provisions,Bikold,21/11/2014,191.27
Customer Services,Catering,COMM,Supplies & Services,Provisions,Bikold,21/11/2014,165.52
Customer Services,Catering,COMM,Supplies & Services,Provisions,Bikold,21/11/2014,101.4
Customer Services,Catering,COMM,Supplies & Services,Provisions,Bikold,10/11/2014,233.94
Customer Services,Catering,COMM,Supplies & Services,Provisions,Bikold,10/11/2014,113.32
Customer Services,Catering,COMM,Supplies & Services,Provisions,Brambles Foods Ltd,21/11/2014,278.92
Customer Services,Catering,COMM,Supplies & Services,Provisions,Brambles Foods Ltd,21/11/2014,515.16
Customer Services,Catering,COMM,Supplies & Services,Provisions,Brambles Foods Ltd,17/11/2014,393.04
Customer Services,Catering,COMM,Supplies & Services,Provisions,Brambles Foods Ltd,17/11/2014,178.48
Customer Services,Catering,COMM,Supplies & Services,Provisions,Brambles Foods Ltd,17/11/2014,163.45
Customer Services,Catering,COMM,Supplies & Services,Provisions,Brambles Foods Ltd,17/11/2014,330.95
Customer Services,Catering,COMM,Supplies & Services,Provisions,On A Roll,04/11/2014,234.14
Customer Services,Catering,COMM,Supplies & Services,Provisions,On A Roll,04/11/2014,375.46
Customer Services,Catering,COMM,Supplies & Services,Provisions,On A Roll,04/11/2014,546.43
Customer Services,Catering,COMM,Supplies & Services,Provisions,On A Roll,21/11/2014,421.32
Customer Services,Catering,COMM,Supplies & Services,Provisions,On A Roll,21/11/2014,231.38
Customer Services,Catering,LCAP,Supplies & Services,Provisions,Bikold,28/11/2014,148.67
Customer Services,Catering,LCAP,Supplies & Services,Provisions,Bikold,10/11/2014,166.01
Customer Services,Catering,LCAP,Supplies & Services,Provisions,Brambles Foods Ltd,21/11/2014,109.3
Customer Services,Catering,LEIC,Supplies & Services,Provisions,Bikold,14/11/2014,200.56
Customer Services,Catering,LEIC,Supplies & Services,Provisions,Bikold,14/11/2014,139.73
Customer Services,Catering,LEIC,Supplies & Services,Provisions,Bikold,28/11/2014,629.28
Customer Services,Catering,LEIC,Supplies & Services,Provisions,Bikold,28/11/2014,121.13
Customer Services,Catering,LEIC,Supplies & Services,Provisions,Bikold,28/11/2014,211.39
Customer Services,Catering,LEIC,Supplies & Services,Provisions,Bikold,28/11/2014,115.44
Customer Services,Catering,LEIC,Supplies & Services,Provisions,Bikold,21/11/2014,173.65
Customer Services,Catering,LEIC,Supplies & Services,Provisions,Bikold,21/11/2014,159.98
Customer Services,Catering,LEIC,Supplies & Services,Provisions,Bikold,10/11/2014,283.81
Customer Services,Catering,LEIC,Supplies & Services,Provisions,Bikold,10/11/2014,183.83
Customer Services,Catering,LEIC,Supplies & Services,Provisions,Delice de France,20/11/2014,308.6
Customer Services,Catering,LEIC,Supplies & Services,Provisions,P & H SNACKS DIRECT LTD,24/11/2014,169.96
Customer Services,Catering,LEIC,Supplies & Services,Provisions,SLUSH PUPPIE LTD,28/11/2014,257.76
Customer Services,Catering,LEIC,Supplies & Services,Provisions,SLUSH PUPPIE LTD,28/11/2014,424.68
Customer Services,Catering,LEIC,Supplies & Services,Provisions,TROPICAL ICE,28/11/2014,1446.74
Customer Services,Catering,LEIC,Supplies & Services,Provisions,Willoughby (731) Ltd T/A The Fabulous Bakin' Boys,20/11/2014,217.71
Customer Services,Customer & Registrars Services,LMAA,Supplies & Services,Protective Clothing,IMAGE@WORK LTD,25/11/2014,3840.06
Customer Services,Customer & Registrars Services,LMAG,Premises-Related Expenditure,Hire Of Rooms,DAWLEY CHRISTIAN CENTRE,27/11/2014,225
Customer Services,Customer & Registrars Services,LSAA,Supplies & Services,Equipment - Purchase,WENLOCK SPRING WATER LTD,14/11/2014,109.6
Customer Services,Customer & Registrars Services,LSAB,Premises-Related Expenditure,Grounds Maintenance - Cemeteries,P & W MAINTENANCE CONTRACTING LTD,14/11/2014,2652.85
Customer Services,Customer & Registrars Services,LSAB,Premises-Related Expenditure,Grounds Maintenance - Cemeteries,P & W MAINTENANCE CONTRACTING LTD,14/11/2014,3731.37
Customer Services,Customer & Registrars Services,LSAB,Supplies & Services,Grants To Voluntary Organis,COALBROOKDALE PAROCHIAL CHURCH COUNCIL,04/11/2014,222.66
Customer Services,Customer & Registrars Services,LSAB,Supplies & Services,Grants To Voluntary Organis,DAWLEY BAPTIST CHURCH,04/11/2014,222.66
Customer Services,Customer & Registrars Services,LSAB,Supplies & Services,Grants To Voluntary Organis,HOLY TRINITY CHURCH DAWLEY DCC,04/11/2014,445.32
Customer Services,Customer & Registrars Services,LSAB,Supplies & Services,Grants To Voluntary Organis,LITTLE WENLOCK PAROCHIAL CHURCH COUNCIL,04/11/2014,222.66
Customer Services,Customer & Registrars Services,LSAB,Supplies & Services,Grants To Voluntary Organis,PCC WROCKWARDINE WOOD RESTORATION,04/11/2014,222.66
Customer Services,Customer & Registrars Services,LSAB,Supplies & Services,Grants To Voluntary Organis,ST GEORGES PAROCHIAL CHURCH COUNCIL,04/11/2014,222.66
Customer Services,Customer & Registrars Services,LSAB,Supplies & Services,Grants To Voluntary Organis,ST LEONARDS DCC,04/11/2014,667.98
Customer Services,Customer & Registrars Services,LSAB,Supplies & Services,Grants To Voluntary Organis,ST MATTHEWS PAROCHIAL CHURCH COUNCIL,04/11/2014,222.66
Customer Services,Customer & Registrars Services,LSAB,Supplies & Services,Grants To Voluntary Organis,ST PETERS CHURCH,04/11/2014,222.66
Customer Services,Customer & Registrars Services,LSAB,Supplies & Services,Grants To Voluntary Organis,ST PETERS PARISH CHURCH,04/11/2014,222.66
Customer Services,Customer & Registrars Services,LSAB,Supplies & Services,Grants To Voluntary Organis,WATERS UPTON PARISH COUNCIL 33690568,04/11/2014,222.66
Customer Services,Customer & Registrars Services,LSAB,Supplies & Services,Grants To Voluntary Organis,WROCKWARDINE WOOD METHODIST CHURCH,05/11/2014,222.66
Customer Services,Facilities Management and Cleaning Services,ASAB,Supplies & Services,Advertising,THE MIDLAND NEWS ASSOCIATION LTD,14/11/2014,189.18
Customer Services,Facilities Management and Cleaning Services,ASAB,Supplies & Services,Security Services,BUSINESS WATCH GUARDING LIMITED,12/11/2014,694.72
Customer Services,Facilities Management and Cleaning Services,ASAB,Supplies & Services,Subscriptions,NAT ASSOC OF BRITISH MARKET AUTHORITIES,12/11/2014,397.5
Customer Services,Facilities Management and Cleaning Services,ASAB,Supplies & Services,Subscriptions,NAT ASSOC OF BRITISH MARKET AUTHORITIES,24/11/2014,150
Customer Services,Facilities Management and Cleaning Services,CFAA,Premises-Related Expenditure,Grounds Maintenance,NOBRIDGE LTD,11/11/2014,3351.81
Customer Services,Facilities Management and Cleaning Services,CFAA,Premises-Related Expenditure,Grounds Maintenance,TELFORD & WREKIN SERVICES LTD,21/11/2014,6069.16
Customer Services,Facilities Management and Cleaning Services,CFAD,Supplies & Services,Security Services,BUSINESS WATCH GUARDING LIMITED,12/11/2014,18478.81
Customer Services,Facilities Management and Cleaning Services,CFAY,Employees,Course Fees,TELFORD COLLEGE OF ARTS & TECHNOLOGY,14/11/2014,660
Customer Services,Facilities Management and Cleaning Services,CFAY,Premises-Related Expenditure,Preventative Maintenance,ACUTE SALES LIMITED,17/11/2014,550
Customer Services,Facilities Management and Cleaning Services,CFAY,Premises-Related Expenditure,R&M -Buildings DLO Charge,AY FABRICATIONS LTD,17/11/2014,126
Customer Services,Facilities Management and Cleaning Services,CFAY,Premises-Related Expenditure,R&M -Buildings DLO Charge,AY FABRICATIONS LTD,17/11/2014,126
Customer Services,Facilities Management and Cleaning Services,CFAY,Premises-Related Expenditure,R&M -Buildings DLO Charge,LOCSAFE SECURITY SYSTEMS,03/11/2014,109.95
Customer Services,Facilities Management and Cleaning Services,CFAY,Premises-Related Expenditure,R&M -Buildings DLO Charge,NOVASCOPE IT LTD,20/11/2014,164
Customer Services,Facilities Management and Cleaning Services,CFAY,Premises-Related Expenditure,R&M -Buildings DLO Charge,SCREWFIX DIRECT,19/11/2014,173.88
Customer Services,Facilities Management and Cleaning Services,CFAY,Premises-Related Expenditure,R&M -Buildings DLO Charge,SCREWFIX DIRECT,19/11/2014,105.65
Customer Services,Facilities Management and Cleaning Services,CFAY,Premises-Related Expenditure,R&M -Buildings DLO Charge,SCREWFIX DIRECT,20/11/2014,219.54
Customer Services,Facilities Management and Cleaning Services,CFAY,Premises-Related Expenditure,R&M -Buildings DLO Charge,SCREWFIX DIRECT,19/11/2014,108.33
Customer Services,Facilities Management and Cleaning Services,CFAY,Premises-Related Expenditure,R&M -Buildings DLO Charge,TELFORD & WREKIN SERVICES LTD,20/11/2014,2742.11
Customer Services,Facilities Management and Cleaning Services,CFAY,Premises-Related Expenditure,R&M -Buildings DLO Charge,WREKIN DRAIN SERVICES LTD,11/11/2014,170
Customer Services,Facilities Management and Cleaning Services,CFAY,Supplies & Services,Equipment - Hire,DCI RECYCLING,20/11/2014,200
Customer Services,Facilities Management and Cleaning Services,CLCM,Premises-Related Expenditure,Clean Mats & Toilet Requisites,Border Janitorial Supplies Limited,19/11/2014,101.56
Customer Services,Facilities Management and Cleaning Services,CLCM,Premises-Related Expenditure,Clean Mats & Toilet Requisites,Border Janitorial Supplies Limited,19/11/2014,115.59
Customer Services,Facilities Management and Cleaning Services,CLCM,Premises-Related Expenditure,Clean Mats & Toilet Requisites,Border Janitorial Supplies Limited,25/11/2014,214.99
Customer Services,Facilities Management and Cleaning Services,CLCM,Premises-Related Expenditure,Clean Mats & Toilet Requisites,Border Janitorial Supplies Limited,10/11/2014,137.78
Customer Services,Facilities Management and Cleaning Services,CLCM,Premises-Related Expenditure,Clean Mats & Toilet Requisites,Border Janitorial Supplies Limited,10/11/2014,120.1
Customer Services,Facilities Management and Cleaning Services,CLCM,Premises-Related Expenditure,Clean Mats & Toilet Requisites,Border Janitorial Supplies Limited,10/11/2014,128.32
Customer Services,Facilities Management and Cleaning Services,CLCM,Premises-Related Expenditure,Clean Mats & Toilet Requisites,Border Janitorial Supplies Limited,24/11/2014,159.11
Customer Services,Facilities Management and Cleaning Services,CLSP,Premises-Related Expenditure,Clean Mats & Toilet Requisites,Border Janitorial Supplies Limited,25/11/2014,110.66
Customer Services,Facilities Management and Cleaning Services,CLSP,Premises-Related Expenditure,Clean Mats & Toilet Requisites,Border Janitorial Supplies Limited,25/11/2014,229.47
Customer Services,Facilities Management and Cleaning Services,CLSP,Premises-Related Expenditure,Clean Mats & Toilet Requisites,Border Janitorial Supplies Limited,18/11/2014,131.29
Customer Services,Facilities Management and Cleaning Services,CLSP,Premises-Related Expenditure,Clean Mats & Toilet Requisites,Border Janitorial Supplies Limited,18/11/2014,103.74
Customer Services,Facilities Management and Cleaning Services,CLSP,Premises-Related Expenditure,Clean Mats & Toilet Requisites,Border Janitorial Supplies Limited,18/11/2014,139.85
Customer Services,Facilities Management and Cleaning Services,CLSP,Supplies & Services,Equipment - Repair,THE CLEAN MACHINE DIRECT LTD,19/11/2014,157.55
Customer Services,ICT,CBAF,Supplies & Services,Telecomms,Airband Community Internet,11/11/2014,295
Customer Services,ICT,CBAF,Supplies & Services,Telecomms,Airband Community Internet,11/11/2014,295
Customer Services,ICT,CBAG,Supplies & Services,Comp Software (Purch / Hire),NORTHGATE INFORMATION SOLUTIONS UK LTD,07/11/2014,4333.14
Customer Services,ICT,CBAG,Supplies & Services,Equipment - Purchase,EUROPEAN ELECTRONIQUE LTD,18/11/2014,3655
Customer Services,ICT,CBAG,Supplies & Services,Equipment - Purchase,EUROPEAN ELECTRONIQUE LTD,11/11/2014,1244
Customer Services,ICT,CBAG,Supplies & Services,Mobile Phones,EE LTD,11/11/2014,5887.18
Customer Services,ICT,CBAG,Supplies & Services,Mobile Phones,EE LTD,11/11/2014,1747.18
Customer Services,ICT,CBAG,Supplies & Services,Mobile Phones,EE LTD,11/11/2014,914.5
Customer Services,ICT,CBAG,Supplies & Services,Mobile Phones,EE LTD,11/11/2014,157.08
Customer Services,ICT,CBAG,Supplies & Services,Mobile Phones,EE LTD,11/11/2014,2257.51
Customer Services,ICT,CBAG,Supplies & Services,Mobile Phones,EE LTD,11/11/2014,887.41
Customer Services,ICT,CBAG,Supplies & Services,Mobile Phones,EE LTD,11/11/2014,16279.29
Customer Services,ICT,CBAG,Supplies & Services,Mobile Phones,EE LTD,11/11/2014,"1,279.83"
Customer Services,ICT,CBAG,Supplies & Services,Other Expenses,PROCESS FLOWS UK LTD,11/11/2014,607.83
Customer Services,ICT,CBAG,Supplies & Services,Telephones,VIRGIN MEDIA BUSINESS,11/11/2014,10210.81
Customer Services,ICT,CBAH,Premises-Related Expenditure,R&M -Building Other,Protec Fire Detection PLC,11/11/2014,2390.61
Customer Services,ICT,CBAH,Premises-Related Expenditure,R&M -Building Other,UPS DIRECT LTD,10/11/2014,675
Customer Services,ICT,CBAH,Supplies & Services,Computer Hardware (Maint),DELL CORPORATION,25/11/2014,1996.38
Customer Services,ICT,CBAH,Supplies & Services,Computer Hardware (Maint),DELL CORPORATION,12/11/2014,748.37
Customer Services,ICT,CBAH,Supplies & Services,Computer Hardware (Maint),DELL CORPORATION,11/11/2014,1420.74
Customer Services,ICT,CBAH,Supplies & Services,Telecomms,Airband Community Internet,11/11/2014,650
Customer Services,ICT,CBAJ,Employees,Recruitment Advertising,TOTALJOBS GROUP,06/11/2014,-400
Customer Services,ICT,CBAJ,Employees,Recruitment Advertising,USE 508347 - Total Jobs Group,05/11/2014,400
Customer Services,ICT,CBAJ,Supplies & Services,Comp Software (Purch / Hire),CIVICA SERVICES LTD 23120510),04/11/2014,36628
Customer Services,ICT,CBAJ,Supplies & Services,Comp Software (Purch / Hire),DATA INTERCHANGE PLC,11/11/2014,223
Customer Services,ICT,CBAJ,Supplies & Services,Comp Software (Purch / Hire),NORTHGATE INFORMATION SOLUTIONS UK LTD,14/11/2014,"4,333.14"
Customer Services,ICT,CBAJ,Supplies & Services,Comp Software (Purch / Hire),NORTHGATE INFORMATION SOLUTIONS UK LTD,14/11/2014,"4,333.14"
Customer Services,ICT,CBAJ,Supplies & Services,Comp Software (Purch / Hire),NORTHGATE INFORMATION SOLUTIONS UK LTD,14/11/2014,"4,333.14"
Customer Services,ICT,CBAJ,Supplies & Services,Comp Software (Purch / Hire),PHOENIX SOFTWARE LTD,14/11/2014,"1,745.92"
Customer Services,ICT,CBAJ,Supplies & Services,Comp Software (Purch / Hire),PHOENIX SOFTWARE LTD,20/11/2014,"1,097.00"
Customer Services,ICT,CBAJ,Supplies & Services,Comp Software (Purch / Hire),PHOENIX SOFTWARE LTD,20/11/2014,"1,735.52"
Customer Services,ICT,CBAJ,Supplies & Services,Comp Software (Purch / Hire),PHOENIX SOFTWARE LTD,20/11/2014,879.60
Customer Services,ICT,CBAJ,Supplies & Services,Comp Software (Purch / Hire),PHOENIX SOFTWARE LTD,20/11/2014,1442.32
Customer Services,ICT,CBAJ,Supplies & Services,Comp Software (Purch / Hire),PHOENIX SOFTWARE LTD,20/11/2014,609.6
Customer Services,ICT,CBAJ,Supplies & Services,Comp Software (Purch / Hire),RNM SYSTEMS LIMITED,26/11/2014,"4,432.05"
Customer Services,ICT,CBAJ,Supplies & Services,External Computer Use,WELLDATA LTD,04/11/2014,5576.04
Customer Services,ICT,CBAJ,Supplies & Services,Mobile Phones,EE LTD,11/11/2014,-4320
Customer Services,ICT,CBAJ,Supplies & Services,Mobile Phones,ORANGE PCS LTD,11/11/2014,8046
Customer Services,ICT,CBAJ,Supplies & Services,Mobile Phones,ORANGE PCS LTD,11/11/2014,-4080
Customer Services,ICT,CBAJ,Supplies & Services,Telecomms,Airband Community Internet,11/11/2014,295
Customer Services,ICT,CBAJ,Supplies & Services,Telecomms,Airband Community Internet,11/11/2014,500
Customer Services,ICT,CBAJ,Supplies & Services,Telecomms,Airband Community Internet,11/11/2014,250
Customer Services,ICT,CBAJ,Supplies & Services,Telecomms,Airband Community Internet,11/11/2014,250
Customer Services,ICT,CBAJ,Supplies & Services,Telecomms,VODAFONE LTD (70649252),11/11/2014,5035.52
Customer Services,ICT,CBAJ,Supplies & Services,Telephones,BRITISH TELECOMMUNICATIONS PLC,14/11/2014,"3,740.60"
Customer Services,ICT,CBAL,Supplies & Services,Photocopying,SPECIALIST COMPUTERS CENTRES PLC,24/11/2014,16787.97
Customer Services,ICT,CBAL,Supplies & Services,Stationery,PREMIER PAPER GROUP LTD,21/11/2014,248.75
Customer Services,ICT,CBAL,Supplies & Services,Stationery,PREMIER PAPER GROUP LTD,21/11/2014,497.5
Customer Services,ICT,WCAG,Capital Expenditure,Computer Software,CIVICA UK LIMITED,26/11/2014,171.2
Customer Services,ICT,WCAG,Capital Expenditure,Computer Software,CLARITY RETAIL SYSTEMS LTD,20/11/2014,4598.75
Customer Services,ICT,WCAG,Capital Expenditure,Payments to Contractor,CAPITA IT SERVICES LIMITED,20/11/2014,123465
Customer Services,ICT,WCAG,Capital Expenditure,Payments to Contractor,Oaresome LTD,24/11/2014,2875
Customer Services,ICT,WCAG,Capital Expenditure,Payments to Contractor,Oaresome LTD,24/11/2014,2875
Customer Services,ICT,WCAG,Capital Expenditure,Payments to Contractor,OPTEVIA,24/11/2014,1240
Customer Services,ICT,WCAG,Capital Expenditure,Payments to Contractor,SPECIALIST COMPUTERS CENTRES PLC,18/11/2014,3507
Customer Services,ICT,WCAG,Capital Expenditure,Payments to Contractor,SPECIALIST COMPUTERS CENTRES PLC,18/11/2014,13650
Customer Services,Library Services,LLAA,Supplies & Services,Libraries Book Fund,Askews,20/11/2014,7000
Customer Services,Library Services,LLAA,Supplies & Services,Libraries Book Fund,BERTRAMS LIBRARY SERVICES,13/11/2014,246.15
Customer Services,Library Services,LLAA,Supplies & Services,Libraries Book Fund,BERTRAMS LIBRARY SERVICES,13/11/2014,567.89
Customer Services,Library Services,LLAA,Supplies & Services,Libraries Book Fund,BERTRAMS LIBRARY SERVICES,13/11/2014,440.07
Customer Services,Library Services,LLAA,Supplies & Services,Libraries Book Fund,BERTRAMS LIBRARY SERVICES,05/11/2014,730.62
Customer Services,Library Services,LLAA,Supplies & Services,Libraries Book Fund,BERTRAMS LIBRARY SERVICES,05/11/2014,431.76
Customer Services,Library Services,LLAA,Supplies & Services,Libraries Book Fund,BERTRAMS LIBRARY SERVICES,05/11/2014,129.3
Customer Services,Library Services,LLAA,Supplies & Services,Libraries Book Fund,BERTRAMS LIBRARY SERVICES,20/11/2014,667.09
Customer Services,Library Services,LLAA,Supplies & Services,Libraries Book Fund,BERTRAMS LIBRARY SERVICES,20/11/2014,118.59
Customer Services,Library Services,LLAA,Supplies & Services,Libraries Book Fund,BERTRAMS LIBRARY SERVICES,20/11/2014,141.3
Customer Services,Library Services,LLAA,Supplies & Services,Libraries Book Fund,BERTRAMS LIBRARY SERVICES,12/11/2014,399.33
Customer Services,Library Services,LLAA,Supplies & Services,Libraries Book Fund,BERTRAMS LIBRARY SERVICES,12/11/2014,197.37
Customer Services,Library Services,LLAA,Supplies & Services,Libraries Book Fund,BERTRAMS LIBRARY SERVICES,27/11/2014,141.64
Customer Services,Library Services,LLAA,Supplies & Services,Libraries Book Fund,BERTRAMS LIBRARY SERVICES,12/11/2014,550.82
Customer Services,Library Services,LLAA,Supplies & Services,Libraries Book Fund,BERTRAMS LIBRARY SERVICES,27/11/2014,469.12
Customer Services,Library Services,LLAA,Supplies & Services,Libraries Book Fund,BERTRAMS LIBRARY SERVICES,27/11/2014,449.54
Customer Services,Library Services,LLAA,Supplies & Services,Libraries Book Fund,BERTRAMS LIBRARY SERVICES,27/11/2014,112.9
Customer Services,Library Services,LLAA,Supplies & Services,Libraries Book Fund,BERTRAMS LIBRARY SERVICES,27/11/2014,931.16
Customer Services,Library Services,LLAA,Supplies & Services,Libraries Book Fund,JCS ONLINE RESOURCES LTD,20/11/2014,250
Customer Services,Library Services,LLAA,Supplies & Services,Libraries Book Fund,LIBRARY MAGNA BOOKS LIMITED,03/11/2014,249.76
Customer Services,Library Services,LLAA,Supplies & Services,Libraries Book Fund,LIBRARY MAGNA BOOKS LIMITED,03/11/2014,279.28
Customer Services,Library Services,LLAA,Supplies & Services,Libraries Book Fund,LIBRARY MAGNA BOOKS LIMITED,27/11/2014,171.72
Customer Services,Library Services,LLAA,Supplies & Services,Libraries Book Fund,OAKHILL PUBLISHING LTD,05/11/2014,365.6
Customer Services,Library Services,LLAA,Supplies & Services,Libraries Book Fund,ULVERSCROFT LARGE PRINT BOOKS LIMITED,03/11/2014,111.68
Customer Services,Library Services,LLAA,Supplies & Services,Libraries Book Fund,ULVERSCROFT LARGE PRINT BOOKS LIMITED,12/11/2014,232
Customer Services,Library Services,LLAA,Supplies & Services,Libraries Book Fund,ULVERSCROFT LARGE PRINT BOOKS LIMITED,12/11/2014,192.4
Customer Services,Library Services,LLAA,Supplies & Services,Libraries Book Fund,W F HOWES LTD,13/11/2014,378.4
Customer Services,Library Services,LLAA,Supplies & Services,Libraries Book Fund,W F HOWES LTD,13/11/2014,187.2
Customer Services,Revenues,CBAK,Supplies & Services,Printing - Other,LEXON,14/11/2014,436.50
Customer Services,Revenues,CBAK,Supplies & Services,Printing - Other,LEXON,12/11/2014,259.54
Customer Services,Revenues,CBAK,Supplies & Services,Printing - Other,LION FPG LIMITED,25/11/2014,472.00
Customer Services,Revenues,CBAK,Supplies & Services,Printing - Other,LION FPG LIMITED,26/11/2014,455.00
Customer Services,Revenues,CBAK,Supplies & Services,Printing - Other,MARKETING AT THE MILL,03/11/2014,171.00
Customer Services,Revenues,CBAK,Supplies & Services,Printing - Other,MARKETING AT THE MILL,04/11/2014,605.00
Customer Services,Revenues,CBAK,Supplies & Services,Printing - Other,MARKETING AT THE MILL,20/11/2014,470
Customer Services,Revenues,CBAK,Supplies & Services,Printing - Other,MARKETING AT THE MILL,20/11/2014,205
Customer Services,Revenues,CBAK,Supplies & Services,Printing - Other,MARKETING AT THE MILL,20/11/2014,205
Customer Services,Revenues,CBAK,Supplies & Services,Printing - Other,TELFORD REPROGRAPHICS LTD,06/11/2014,202.00
Customer Services,Revenues,CBAK,Supplies & Services,Printing - Other,TELFORD REPROGRAPHICS LTD,06/11/2014,103.75
Customer Services,Revenues,CBAK,Supplies & Services,Printing - Other,TUDOR PRINT & SIGNS,04/11/2014,308.00
Customer Services,Revenues,CBAK,Supplies & Services,Stationery,PREMIER PAPER GROUP LTD,27/11/2014,171.62
Customer Services,Revenues,COAC,Supplies & Services,Postages,FRANCOTYP-POSTALIA LTD (POSTAGE),17/11/2014,3012
Customer Services,Revenues,COAC,Supplies & Services,Postages,FRANCOTYP-POSTALIA LTD (POSTAGE),11/11/2014,2012
Customer Services,Revenues,COAC,Supplies & Services,Postages,FRANCOTYP-POSTALIA LTD (POSTAGE),21/11/2014,3012
Customer Services,Revenues,LRTA,Supplies & Services,Postages,ROYAL MAIL GROUP LTD,28/11/2014,2159.11
Customer Services,Revenues,LRTA,Supplies & Services,Postages,ROYAL MAIL GROUP LTD,20/11/2014,345.87
Customer Services,Revenues,LRTA,Supplies & Services,Postages,ROYAL MAIL GROUP LTD,05/11/2014,2548.23
Customer Services,Revenues,LRTA,Supplies & Services,Postages,ROYAL MAIL GROUP LTD,20/11/2014,2291.58
Customer Services,Revenues,LRTA,Supplies & Services,Postages,ROYAL MAIL GROUP LTD,17/11/2014,3834.67
Customer Services,Revenues,LRTA,Third Party Payments,Other Government - Services,NORTHGATE INFORMATION SOLUTIONS UK LTD,17/11/2014,408.85
"Development, Business & Employment","AD - Development, Business & Housing",WCAN,Capital Expenditure,Payments to Contractor,PAVE AWAYS LTD,24/11/2014,101984.14
"Development, Business & Employment",Business & Development Planning,AEAB,Supplies & Services,Marketing & Publicity,Exterion Media (UK) Limited,07/11/2014,300
"Development, Business & Employment",Business & Development Planning,AEAB,Supplies & Services,Marketing & Publicity,QDOS Exhibitions,14/11/2014,"1,625.50"
"Development, Business & Employment",Business & Development Planning,AEAB,Supplies & Services,Marketing & Publicity,QDOS Exhibitions,12/11/2014,7356.2
"Development, Business & Employment",Business & Development Planning,AEAB,Supplies & Services,Marketing & Publicity,ROB FINNEY PHOTOGRAPHY,07/11/2014,250
"Development, Business & Employment",Business & Development Planning,AEAB,Supplies & Services,Marketing & Publicity,West Midland Economic Forum Limited,26/11/2014,3500
"Development, Business & Employment",Business & Development Planning,AEAB,Supplies & Services,Marketing & Publicity,West Midland Economic Forum Limited,26/11/2014,4500
"Development, Business & Employment",Business & Development Planning,AEAB,Supplies & Services,Promotion Expenses,Ace P.A. Hire,13/11/2014,"1,000.00"
"Development, Business & Employment",Business & Development Planning,AEAB,Supplies & Services,Promotion Expenses,BUSINESS WATCH GUARDING LIMITED,13/11/2014,243.54
"Development, Business & Employment",Business & Development Planning,AEAB,Supplies & Services,Promotion Expenses,Flying Hire,04/11/2014,150
"Development, Business & Employment",Business & Development Planning,AEAB,Supplies & Services,Promotion Expenses,Flying Hire,04/11/2014,150
"Development, Business & Employment",Business & Development Planning,AEAB,Supplies & Services,Promotion Expenses,Flying Hire,04/11/2014,238
"Development, Business & Employment",Business & Development Planning,AEAB,Supplies & Services,Promotion Expenses,Flying Hire,04/11/2014,238
"Development, Business & Employment",Business & Development Planning,AEAB,Supplies & Services,Promotion Expenses,Level 1 Group Lincoln Limited,04/11/2014,4617
"Development, Business & Employment",Business & Development Planning,AEAB,Supplies & Services,Promotion Expenses,Level 1 Group Lincoln Limited,04/11/2014,413.25
"Development, Business & Employment",Business & Development Planning,AEAB,Supplies & Services,Promotion Expenses,Level 1 Group Lincoln Limited,04/11/2014,147.25
"Development, Business & Employment",Business & Development Planning,AEAB,Supplies & Services,Promotion Expenses,Level 1 Group Lincoln Limited,04/11/2014,156.75
"Development, Business & Employment",Business & Development Planning,AEAB,Supplies & Services,Promotion Expenses,Level 1 Group Lincoln Limited,04/11/2014,1396.5
"Development, Business & Employment",Business & Development Planning,AEAB,Supplies & Services,Promotion Expenses,Level 1 Group Lincoln Limited,04/11/2014,640
"Development, Business & Employment",Business & Development Planning,AEAB,Supplies & Services,Promotion Expenses,Level 1 Group Lincoln Limited,04/11/2014,497
"Development, Business & Employment",Business & Development Planning,AEAB,Supplies & Services,Promotion Expenses,SP HOLDING TRACTOR HIRE LTD,17/11/2014,1050
"Development, Business & Employment",Business & Development Planning,AEAG,Supplies & Services,Marketing & Publicity,GRITT DESIGN,17/11/2014,2200
"Development, Business & Employment",Business & Development Planning,AEAG,Supplies & Services,Marketing & Publicity,GRITT DESIGN,17/11/2014,2310
"Development, Business & Employment",Business & Development Planning,AEAG,Supplies & Services,Marketing & Publicity,Redacted Personal Information,17/11/2014,300
"Development, Business & Employment",Business & Development Planning,AEAG,Supplies & Services,Marketing & Publicity,Zen Communications (UK) Ltd,17/11/2014,900
"Development, Business & Employment",Business & Development Planning,AEAG,Supplies & Services,Marketing & Publicity,Zen Communications (UK) Ltd,17/11/2014,900
"Development, Business & Employment",Business & Development Planning,AEAG,Supplies & Services,Photographs,Redacted Personal Information,26/11/2014,250
"Development, Business & Employment",Business & Development Planning,AEAG,Supplies & Services,Photographs,Redacted Personal Information,17/11/2014,150
"Development, Business & Employment",Business & Development Planning,AEAJ,Supplies & Services,Business Sector Development,Sustainability West Midlands,14/11/2014,750.00
"Development, Business & Employment",Business & Development Planning,AEAJ,Supplies & Services,Business Sector Development,TELFORD INTERNATIONAL CENTRE,17/11/2014,1172
"Development, Business & Employment",Business & Development Planning,AEAX,Supplies & Services,Other Grants (Expenses),Good2Great Ltd,17/11/2014,8050
"Development, Business & Employment",Business & Development Planning,DDAK,Supplies & Services,Consultants Fees,IRONBRIDGE GORGE MUSEUM TRUST LTD,19/11/2014,"9,224.65"
"Development, Business & Employment",Business & Development Planning,DHAT,Supplies & Services,Marketing & Publicity,3S PRINT & DISPLAY LIMITED,20/11/2014,888
"Development, Business & Employment",Business & Development Planning,DHBB,Supplies & Services,Legal Expenses,Carillion Energy Services Ltd,17/11/2014,11550
"Development, Business & Employment",Business & Development Planning,DSAB,Employees,Professional Subs,ROYAL INSTITUTION OF CHARTERED SURVEYORS,14/11/2014,151
"Development, Business & Employment",Business & Development Planning,EWAJ,Supplies & Services,Computer Software (Maint),LIMEHOUSE SOFTWARE  LTD,24/11/2014,"8,694.29"
"Development, Business & Employment",Business & Development Planning,EWAJ,Supplies & Services,Research Surveys,AMEC ENVIRONMENT & INFRASTRUCTURE UK LTD,17/11/2014,17832
"Development, Business & Employment",Business & Development Planning,EWAJ,Supplies & Services,Service Contracts,SHROPSHIRE COUNCIL,24/11/2014,1670
"Development, Business & Employment",Business & Development Planning,WDAF,Capital Expenditure,Expenditure on loans & other financial assistance,A J Carpentry,17/11/2014,4750
"Development, Business & Employment",Business & Development Planning,WDAF,Capital Expenditure,Expenditure on loans & other financial assistance,A J Carpentry,10/11/2014,5320
"Development, Business & Employment",Business & Development Planning,WDAF,Capital Expenditure,Expenditure on loans & other financial assistance,AIDS & ADAPTIONS LTD,20/11/2014,2248.18
"Development, Business & Employment",Business & Development Planning,WDAF,Capital Expenditure,Expenditure on loans & other financial assistance,AIDS & ADAPTIONS LTD,20/11/2014,3630.88
"Development, Business & Employment",Business & Development Planning,WDAF,Capital Expenditure,Expenditure on loans & other financial assistance,DMW ENVIRONMENTAL SAFETY LTD,03/11/2014,150
"Development, Business & Employment",Business & Development Planning,WDAF,Capital Expenditure,Expenditure on loans & other financial assistance,DMW ENVIRONMENTAL SAFETY LTD,03/11/2014,150
"Development, Business & Employment",Business & Development Planning,WDAF,Capital Expenditure,Expenditure on loans & other financial assistance,DMW ENVIRONMENTAL SAFETY LTD,03/11/2014,150
"Development, Business & Employment",Business & Development Planning,WDAF,Capital Expenditure,Expenditure on loans & other financial assistance,DMW ENVIRONMENTAL SAFETY LTD,03/11/2014,150
"Development, Business & Employment",Business & Development Planning,WDAF,Capital Expenditure,Expenditure on loans & other financial assistance,M J PERRINS,20/11/2014,10000
"Development, Business & Employment",Business & Development Planning,WDAF,Capital Expenditure,Expenditure on loans & other financial assistance,M J PERRINS,20/11/2014,1800
"Development, Business & Employment",Business & Development Planning,WDAF,Capital Expenditure,Expenditure on loans & other financial assistance,ROSEMONT BUILDING CONTRACTORS,24/11/2014,685.5
"Development, Business & Employment",Business & Development Planning,WDAF,Capital Expenditure,Expenditure on loans & other financial assistance,STANNAH LIFT SERVICES LTD,19/11/2014,2038
"Development, Business & Employment",Business & Development Planning,WDAF,Capital Expenditure,Expenditure on loans & other financial assistance,STANNAH LIFT SERVICES LTD,19/11/2014,4878
"Development, Business & Employment",Business & Development Planning,WDAF,Capital Expenditure,Expenditure on loans & other financial assistance,STANNAH LIFT SERVICES LTD,20/11/2014,1826
"Development, Business & Employment",Business & Development Planning,WDAF,Capital Expenditure,Expenditure on loans & other financial assistance,STANNAH LIFT SERVICES LTD,20/11/2014,826.2
"Development, Business & Employment",Business & Development Planning,WDAF,Capital Expenditure,Expenditure on loans & other financial assistance,STANNAH LIFT SERVICES LTD,20/11/2014,4753
"Development, Business & Employment",Business & Development Planning,WDAF,Capital Expenditure,Expenditure on loans & other financial assistance,STANNAH LIFT SERVICES LTD,20/11/2014,4151
"Development, Business & Employment",Business & Development Planning,WDAF,Capital Expenditure,Expenditure on loans & other financial assistance,THE WREKIN HOUSING TRUST (INVOICES ONLY),04/11/2014,780
"Development, Business & Employment",Business & Development Planning,WDAF,Capital Expenditure,Expenditure on loans & other financial assistance,THE WREKIN HOUSING TRUST (INVOICES ONLY),04/11/2014,780
"Development, Business & Employment",Business & Development Planning,WDAF,Capital Expenditure,Expenditure on loans & other financial assistance,THE WREKIN HOUSING TRUST (INVOICES ONLY),04/11/2014,1600
"Development, Business & Employment",Business & Development Planning,WDAF,Capital Expenditure,Expenditure on loans & other financial assistance,THE WREKIN HOUSING TRUST (INVOICES ONLY),04/11/2014,1600
"Development, Business & Employment",Business & Development Planning,WDAF,Capital Expenditure,Expenditure on loans & other financial assistance,THE WREKIN HOUSING TRUST (INVOICES ONLY),04/11/2014,1600
"Development, Business & Employment",Business & Development Planning,WDAF,Capital Expenditure,Expenditure on loans & other financial assistance,THREE PINES BUILDING CO LTD,20/11/2014,9653.45
"Development, Business & Employment",Business & Development Planning,WDAF,Capital Expenditure,Expenditure on loans & other financial assistance,THREE PINES BUILDING CO LTD,20/11/2014,4651.92
"Development, Business & Employment",Business & Development Planning,WDAF,Capital Expenditure,Expenditure on loans & other financial assistance,THREE PINES BUILDING CO LTD,20/11/2014,4003.94
"Development, Business & Employment",Business & Development Planning,WDAF,Capital Expenditure,Expenditure on loans & other financial assistance,ULTIMATE SYSTEMS,24/11/2014,2900
"Development, Business & Employment",Business & Development Planning,WDGD,Capital Expenditure,Expenditure on loans & other financial assistance,Carillion Energy Services Ltd,19/11/2014,366.63
"Development, Business & Employment",Business & Development Planning,WDGD,Capital Expenditure,Expenditure on loans & other financial assistance,Carillion Energy Services Ltd,19/11/2014,4033.48
"Development, Business & Employment",Business & Development Planning,WDGD,Capital Expenditure,Expenditure on loans & other financial assistance,Carillion Energy Services Ltd,03/11/2014,6423.83
"Development, Business & Employment",Business & Development Planning,WDGD,Capital Expenditure,Expenditure on loans & other financial assistance,Carillion Energy Services Ltd,03/11/2014,5041.85
"Development, Business & Employment",Business & Development Planning,WDGD,Capital Expenditure,Expenditure on loans & other financial assistance,Carillion Energy Services Ltd,03/11/2014,2566.76
"Development, Business & Employment",Business & Development Planning,WDGD,Capital Expenditure,Expenditure on loans & other financial assistance,Carillion Energy Services Ltd,03/11/2014,599.94
"Development, Business & Employment",Business & Development Planning,WDGD,Capital Expenditure,Expenditure on loans & other financial assistance,Carillion Energy Services Ltd,03/11/2014,733.26
"Development, Business & Employment",Business & Development Planning,WDGD,Capital Expenditure,Expenditure on loans & other financial assistance,Carillion Energy Services Ltd,03/11/2014,27555.98
"Development, Business & Employment",Business & Development Planning,WDGD,Capital Expenditure,Expenditure on loans & other financial assistance,Carillion Energy Services Ltd,17/11/2014,70238.67
"Development, Business & Employment",Business & Development Planning,WDSQ,Capital Expenditure,Payments to Contractor,AJB CONTRACTING LTD,25/11/2014,16277
"Development, Business & Employment",Business & Development Planning,WDSQ,Capital Expenditure,Payments to Contractor,FITZGERALD CONTRACTORS LTD,26/11/2014,92853.02
"Development, Business & Employment",Business & Development Planning,WDSQ,Capital Expenditure,Payments to Contractor,SLR CONSULTING LIMITED,03/11/2014,585
"Development, Business & Employment",Business & Development Planning,WDST,Capital Expenditure,Payments to Contractor,BUSINESS WATCH GUARDING LIMITED,17/11/2014,602.55
"Development, Business & Employment",Business & Development Planning,WDST,Capital Expenditure,Payments to Contractor,PAVE AWAYS LTD,13/11/2014,131416.75
"Development, Business & Employment",Business & Development Planning,WDST,Capital Expenditure,Payments to Contractor,WPD MIDLANDS NETWORKS SERVICES LTD,26/11/2014,556.86
"Development, Business & Employment",Business & Development Planning,WDSW,Capital Expenditure,External Professional Fees,ABSOLUTE ECOLOGY,14/11/2014,2330
"Development, Business & Employment",Business & Development Planning,WDSW,Capital Expenditure,External Professional Fees,ABSOLUTE ECOLOGY,14/11/2014,583
"Development, Business & Employment",Business & Development Planning,WDSW,Capital Expenditure,External Professional Fees,ABSOLUTE ECOLOGY,14/11/2014,3710
"Development, Business & Employment",Business & Development Planning,WDSW,Capital Expenditure,External Professional Fees,ANDREW DIXON & CO,14/11/2014,2800
"Development, Business & Employment",Business & Development Planning,WDSW,Capital Expenditure,External Professional Fees,Contracts & Procurement Advice Limited,14/11/2014,848
"Development, Business & Employment",Business & Development Planning,WDSW,Capital Expenditure,External Professional Fees,Contracts & Procurement Advice Limited,14/11/2014,616.7
"Development, Business & Employment",Business & Development Planning,WDSW,Capital Expenditure,Legal Fees,Bond Dickinson LLP,24/11/2014,4744
"Development, Business & Employment",Business & Development Planning,WDSW,Capital Expenditure,Project Management Fees,MACE LTD,24/11/2014,129150
"Development, Business & Employment",Development Management,DDAA,Employees,Professional Subs,RICS BUSINESS SERVICES,24/11/2014,506
"Development, Business & Employment",Development Management,DDAA,Employees,Professional Subs,RICS BUSINESS SERVICES,24/11/2014,506
"Development, Business & Employment",Development Management,DDAA,Supplies & Services,Application Software Maint,MIS LOCAL GOVERNMENT SYSTEMS LTD,03/11/2014,15128.58
"Development, Business & Employment",Development Management,DDAC,Supplies & Services,Advertising,THE MIDLAND NEWS ASSOCIATION LTD,25/11/2014,198
"Development, Business & Employment",Development Management,DDAC,Supplies & Services,Advertising,THE MIDLAND NEWS ASSOCIATION LTD,27/11/2014,222.75
"Development, Business & Employment",Development Management,DDAC,Supplies & Services,Advertising,THE MIDLAND NEWS ASSOCIATION LTD,10/11/2014,198
"Development, Business & Employment",Development Management,DDAD,Premises-Related Expenditure,Planned Repairs,CADER CONSTRUCTION LTD,04/11/2014,"1,867.00"
"Development, Business & Employment",Development Management,DDAD,Premises-Related Expenditure,Planned Repairs,CADER CONSTRUCTION LTD,04/11/2014,"1,100.00"
"Development, Business & Employment",Development Management,DDAG,Employees,Other Employee Costs,matchtech,27/11/2014,"1,414.50"
"Development, Business & Employment",Development Management,DDAG,Employees,Professional Subs,R T P I,05/11/2014,290
"Development, Business & Employment",Development Management,DDAG,Employees,Professional Subs,R T P I,04/11/2014,290.00
"Development, Business & Employment",Development Management,DDAG,Employees,Professional Subs,R T P I,04/11/2014,290.00
"Development, Business & Employment",Development Management,DDAG,Employees,Professional Subs,R T P I,04/11/2014,290.00
"Development, Business & Employment",Development Management,DDAG,Employees,Professional Subs,R T P I,04/11/2014,290.00
"Development, Business & Employment",Development Management,DDAG,Employees,Professional Subs,R T P I,04/11/2014,-290.00
"Development, Business & Employment",Development Management,DDAG,Employees,Professional Subs,R T P I,04/11/2014,290.00
"Development, Business & Employment",Development Management,DDAG,Employees,Professional Subs,R T P I,27/11/2014,290.00
"Development, Business & Employment",Development Management,DDAG,Employees,Recruitment Advertising,HAYMARKET PUBLISHING SERVICES LTD,04/11/2014,"1,167.00"
"Development, Business & Employment",Development Management,DDAG,Employees,Training Expenses,No 5 Chambers (11774100),06/11/2014,200.00
"Development, Business & Employment",Development Management,DDAG,Supplies & Services,Computer Software (Maint),RASTEREX SOFTWARE A.S.,25/11/2014,2152.5
"Development, Business & Employment",Development Management,DDAG,Supplies & Services,Print & Data Services (Print Room) - Charges,RESOLUTION DATA MANAGEMENT LTD,13/11/2014,134.46
"Development, Business & Employment",Development Management,DDAL,Supplies & Services,Legal Expenses,WRAGGE LAWRENCE GRAHAM & CO,06/11/2014,17418.1
"Development, Business & Employment",Housing & Planning,DDAS,Supplies & Services,Subscriptions,R T P I,13/11/2014,290
"Development, Business & Employment",Housing & Planning,DDAS,Supplies & Services,Subscriptions,TOWN & COUNTRY PLANNING ASSOCIATION,13/11/2014,543.5
"Development, Business & Employment",Property & Design,CAAG,Employees,Agency Supply Costs,RACS Collective Limited,25/11/2014,849.56
"Development, Business & Employment",Property & Design,CAAG,Employees,Agency Supply Costs,RACS Collective Limited,10/11/2014,897.84
"Development, Business & Employment",Property & Design,CAAG,Employees,Agency Supply Costs,RACS Collective Limited,10/11/2014,843.84
"Development, Business & Employment",Property & Design,CAAG,Employees,Agency Supply Costs,RACS Collective Limited,17/11/2014,873.84
"Development, Business & Employment",Property & Design,CAAG,Supplies & Services,Comp Software (Purch / Hire),BCIS LTD,13/11/2014,1610
"Development, Business & Employment",Property & Design,CAAG,Supplies & Services,Other Services,Lift Source (UK) Limited,10/11/2014,-3320
"Development, Business & Employment",Property & Design,CAAG,Supplies & Services,Subscriptions,BSI,24/11/2014,1277
"Development, Business & Employment",Property & Design,CAAH,Premises-Related Expenditure,R&M -Buildings DLO Charge,A1 Glass & Glazing (Shropshire) Limited,20/11/2014,110
"Development, Business & Employment",Property & Design,CAAH,Premises-Related Expenditure,R&M -Buildings DLO Charge,AGS AUTOMATIC DOORS LTD,11/11/2014,145
"Development, Business & Employment",Property & Design,CAAH,Premises-Related Expenditure,R&M -Buildings DLO Charge,AQUALOGIC (WC) LTD,13/11/2014,216.7
"Development, Business & Employment",Property & Design,CAAH,Premises-Related Expenditure,R&M -Buildings DLO Charge,AQUALOGIC (WC) LTD,13/11/2014,113.9
"Development, Business & Employment",Property & Design,CAAH,Premises-Related Expenditure,R&M -Buildings DLO Charge,BRADLEY INDUSTRIAL SERVICES,25/11/2014,170.1
"Development, Business & Employment",Property & Design,CAAH,Premises-Related Expenditure,R&M -Buildings DLO Charge,BRITISH GAS SERVICES (COMMERCIAL) LTD,13/11/2014,227.5
"Development, Business & Employment",Property & Design,CAAH,Premises-Related Expenditure,R&M -Buildings DLO Charge,BRITISH GAS SERVICES (COMMERCIAL) LTD,13/11/2014,325
"Development, Business & Employment",Property & Design,CAAH,Premises-Related Expenditure,R&M -Buildings DLO Charge,BRITISH GAS SERVICES (COMMERCIAL) LTD,11/11/2014,292.5
"Development, Business & Employment",Property & Design,CAAH,Premises-Related Expenditure,R&M -Buildings DLO Charge,Churches Fire Security Ltd,13/11/2014,193.39
"Development, Business & Employment",Property & Design,CAAH,Premises-Related Expenditure,R&M -Buildings DLO Charge,Churches Fire Security Ltd,07/11/2014,294.17
"Development, Business & Employment",Property & Design,CAAH,Premises-Related Expenditure,R&M -Buildings DLO Charge,E DAVIES & SON,07/11/2014,392.73
"Development, Business & Employment",Property & Design,CAAH,Premises-Related Expenditure,R&M -Buildings DLO Charge,George Birchall Limited,19/11/2014,1719.7
"Development, Business & Employment",Property & Design,CAAH,Premises-Related Expenditure,R&M -Buildings DLO Charge,George Birchall Limited,19/11/2014,616.65
"Development, Business & Employment",Property & Design,CAAH,Premises-Related Expenditure,R&M -Buildings DLO Charge,George Birchall Limited,19/11/2014,124.15
"Development, Business & Employment",Property & Design,CAAH,Premises-Related Expenditure,R&M -Buildings DLO Charge,George Birchall Limited,20/11/2014,127
"Development, Business & Employment",Property & Design,CAAH,Premises-Related Expenditure,R&M -Buildings DLO Charge,George Birchall Limited,25/11/2014,214
"Development, Business & Employment",Property & Design,CAAH,Premises-Related Expenditure,R&M -Buildings DLO Charge,George Birchall Limited,25/11/2014,122
"Development, Business & Employment",Property & Design,CAAH,Premises-Related Expenditure,R&M -Buildings DLO Charge,George Birchall Limited,25/11/2014,168
"Development, Business & Employment",Property & Design,CAAH,Premises-Related Expenditure,R&M -Buildings DLO Charge,George Birchall Limited,25/11/2014,183
"Development, Business & Employment",Property & Design,CAAH,Premises-Related Expenditure,R&M -Buildings DLO Charge,George Birchall Limited,25/11/2014,190
"Development, Business & Employment",Property & Design,CAAH,Premises-Related Expenditure,R&M -Buildings DLO Charge,George Birchall Limited,25/11/2014,245
"Development, Business & Employment",Property & Design,CAAH,Premises-Related Expenditure,R&M -Buildings DLO Charge,George Birchall Limited,25/11/2014,168
"Development, Business & Employment",Property & Design,CAAH,Premises-Related Expenditure,R&M -Buildings DLO Charge,George Birchall Limited,25/11/2014,214
"Development, Business & Employment",Property & Design,CAAH,Premises-Related Expenditure,R&M -Buildings DLO Charge,George Birchall Limited,25/11/2014,309.50
"Development, Business & Employment",Property & Design,CAAH,Premises-Related Expenditure,R&M -Buildings DLO Charge,George Birchall Limited,25/11/2014,107
"Development, Business & Employment",Property & Design,CAAH,Premises-Related Expenditure,R&M -Buildings DLO Charge,George Birchall Limited,07/11/2014,140.87
"Development, Business & Employment",Property & Design,CAAH,Premises-Related Expenditure,R&M -Buildings DLO Charge,George Birchall Limited,20/11/2014,317.8
"Development, Business & Employment",Property & Design,CAAH,Premises-Related Expenditure,R&M -Buildings DLO Charge,George Birchall Limited,20/11/2014,137.84
"Development, Business & Employment",Property & Design,CAAH,Premises-Related Expenditure,R&M -Buildings DLO Charge,George Birchall Limited,20/11/2014,204.81
"Development, Business & Employment",Property & Design,CAAH,Premises-Related Expenditure,R&M -Buildings DLO Charge,GRANVILLE CONSTRUCTION & MAINTENANCE LTD,13/11/2014,1096
"Development, Business & Employment",Property & Design,CAAH,Premises-Related Expenditure,R&M -Buildings DLO Charge,GRANVILLE CONSTRUCTION & MAINTENANCE LTD,13/11/2014,220
"Development, Business & Employment",Property & Design,CAAH,Premises-Related Expenditure,R&M -Buildings DLO Charge,GRANVILLE CONSTRUCTION & MAINTENANCE LTD,13/11/2014,1495.14
"Development, Business & Employment",Property & Design,CAAH,Premises-Related Expenditure,R&M -Buildings DLO Charge,GRANVILLE CONSTRUCTION & MAINTENANCE LTD,13/11/2014,300
"Development, Business & Employment",Property & Design,CAAH,Premises-Related Expenditure,R&M -Buildings DLO Charge,GRANVILLE CONSTRUCTION & MAINTENANCE LTD,11/11/2014,453.47
"Development, Business & Employment",Property & Design,CAAH,Premises-Related Expenditure,R&M -Buildings DLO Charge,GRANVILLE CONSTRUCTION & MAINTENANCE LTD,11/11/2014,552
"Development, Business & Employment",Property & Design,CAAH,Premises-Related Expenditure,R&M -Buildings DLO Charge,HYDRO-TECH ENVIRONMENTAL LLP,13/11/2014,210
"Development, Business & Employment",Property & Design,CAAH,Premises-Related Expenditure,R&M -Buildings DLO Charge,HYDRO-TECH ENVIRONMENTAL LLP,13/11/2014,210
"Development, Business & Employment",Property & Design,CAAH,Premises-Related Expenditure,R&M -Buildings DLO Charge,HYDRO-TECH ENVIRONMENTAL LLP,13/11/2014,210
"Development, Business & Employment",Property & Design,CAAH,Premises-Related Expenditure,R&M -Buildings DLO Charge,HYDRO-TECH ENVIRONMENTAL LLP,13/11/2014,210
"Development, Business & Employment",Property & Design,CAAH,Premises-Related Expenditure,R&M -Buildings DLO Charge,HYDRO-TECH ENVIRONMENTAL LLP,11/11/2014,210
"Development, Business & Employment",Property & Design,CAAH,Premises-Related Expenditure,R&M -Buildings DLO Charge,HYDRO-TECH ENVIRONMENTAL LLP,11/11/2014,210
"Development, Business & Employment",Property & Design,CAAH,Premises-Related Expenditure,R&M -Buildings DLO Charge,JCE & SONS LTD,04/11/2014,129.54
"Development, Business & Employment",Property & Design,CAAH,Premises-Related Expenditure,R&M -Buildings DLO Charge,JCE & SONS LTD,07/11/2014,148.82
"Development, Business & Employment",Property & Design,CAAH,Premises-Related Expenditure,R&M -Buildings DLO Charge,JOHNSON CONTROLS LTD,11/11/2014,-135
"Development, Business & Employment",Property & Design,CAAH,Premises-Related Expenditure,R&M -Buildings DLO Charge,JONES & HAMPTON LTD,19/11/2014,106
"Development, Business & Employment",Property & Design,CAAH,Premises-Related Expenditure,R&M -Buildings DLO Charge,JONES & HAMPTON LTD,19/11/2014,559.73
"Development, Business & Employment",Property & Design,CAAH,Premises-Related Expenditure,R&M -Buildings DLO Charge,JONES & HAMPTON LTD,11/11/2014,117.2
"Development, Business & Employment",Property & Design,CAAH,Premises-Related Expenditure,R&M -Buildings DLO Charge,MK Door Systems Ltd T/A Style Midlands,13/11/2014,375
"Development, Business & Employment",Property & Design,CAAH,Premises-Related Expenditure,R&M -Buildings DLO Charge,NOBRIDGE LTD,19/11/2014,1775
"Development, Business & Employment",Property & Design,CAAH,Premises-Related Expenditure,R&M -Buildings DLO Charge,PHS GROUP LTD,19/11/2014,336.7
"Development, Business & Employment",Property & Design,CAAH,Premises-Related Expenditure,R&M -Buildings DLO Charge,PP ELECTRICAL SERVICES (Shropshire) Ltd,13/11/2014,196.8
"Development, Business & Employment",Property & Design,CAAH,Premises-Related Expenditure,R&M -Buildings DLO Charge,PP ELECTRICAL SERVICES (Shropshire) Ltd,13/11/2014,211.2
"Development, Business & Employment",Property & Design,CAAH,Premises-Related Expenditure,R&M -Buildings DLO Charge,PP ELECTRICAL SERVICES (Shropshire) Ltd,13/11/2014,192
"Development, Business & Employment",Property & Design,CAAH,Premises-Related Expenditure,R&M -Buildings DLO Charge,PP ELECTRICAL SERVICES (Shropshire) Ltd,13/11/2014,168
"Development, Business & Employment",Property & Design,CAAH,Premises-Related Expenditure,R&M -Buildings DLO Charge,PP ELECTRICAL SERVICES (Shropshire) Ltd,13/11/2014,110.4
"Development, Business & Employment",Property & Design,CAAH,Premises-Related Expenditure,R&M -Buildings DLO Charge,PP ELECTRICAL SERVICES (Shropshire) Ltd,13/11/2014,189.6
"Development, Business & Employment",Property & Design,CAAH,Premises-Related Expenditure,R&M -Buildings DLO Charge,PP ELECTRICAL SERVICES (Shropshire) Ltd,13/11/2014,120
"Development, Business & Employment",Property & Design,CAAH,Premises-Related Expenditure,R&M -Buildings DLO Charge,PP ELECTRICAL SERVICES (Shropshire) Ltd,19/11/2014,259.78
